Body Name,Trans.date,Department Code,Department,Expense Area Code,Expense Area,Expense Type Code,Expense Type,Amount Paid (�),Supplier name,Extended Description,TransNo,Period
Rother District Council,03/07/2023,T33HOUSING,Housing,20200,Housing Needs - HB (Housing Benefit),D2508,Removals and Storage,100.00,1066 Removal Services,Removals and Storage,2042554,202304
Rother District Council,03/07/2023,T33HOUSING,Housing,20200,Housing Needs - HB (Housing Benefit),D2508,Removals and Storage,170.00,1066 Removal Services,Removals and Storage,2042555,202304
Rother District Council,03/07/2023,T33HOUSING,Housing,20200,Housing Needs - HB (Housing Benefit),D2508,Removals and Storage,150.00,1066 Removal Services,Removals and Storage,2042556,202304
Rother District Council,03/07/2023,T33HOUSING,Housing,20200,Housing Needs - HB (Housing Benefit),D2508,Removals and Storage,170.00,1066 Removal Services,Removals and Storage,2042557,202304
Rother District Council,03/07/2023,T33HOUSING,Housing,20200,Housing Needs - HB (Housing Benefit),D2508,Removals and Storage,300.00,1066 Removal Services,Removals and Storage,2042558,202304
Rother District Council,03/07/2023,T33HOUSING,Housing,20200,Housing Needs - HB (Housing Benefit),D2508,Removals and Storage,250.00,1066 Removal Services,Removals and Storage,2042559,202304
Rother District Council,03/07/2023,T33HOUSING,Housing,20200,Housing Needs - HB (Housing Benefit),D2508,Removals and Storage,170.00,1066 Removal Services,Removals and Storage,2042560,202304
Rother District Council,03/07/2023,T33HOUSING,Housing,20200,Housing Needs - HB (Housing Benefit),D2508,Removals and Storage,125.00,1066 Removal Services,Removals and Storage,2042561,202304
Rother District Council,03/07/2023,T33HOUSING,Housing,20200,Housing Needs - HB (Housing Benefit),D2508,Removals and Storage,170.00,1066 Removal Services,Removals and Storage,2042562,202304
Rother District Council,03/07/2023,T33HOUSING,Housing,20200,Housing Needs - HB (Housing Benefit),D2508,Removals and Storage,170.00,1066 Removal Services,Removals and Storage,2042563,202304
Rother District Council,03/07/2023,T33HOUSING,Housing,20200,Housing Needs - HB (Housing Benefit),D2508,Removals and Storage,100.00,1066 Removal Services,Removals and Storage,2042564,202304
Rother District Council,03/07/2023,T33HOUSING,Housing,20200,Housing Needs - HB (Housing Benefit),D2508,Removals and Storage,350.00,1066 Removal Services,Removals and Storage,2042581,202304
Rother District Council,08/07/2023,T33HOUSING,Housing,20200,Housing Needs - HB (Housing Benefit),D2508,Removals and Storage,395.00,1066 Removal Services,Removals and Storage,2042720,202304
Rother District Council,21/07/2023,T33HOUSING,Housing,20200,Housing Needs - HB (Housing Benefit),D2508,Removals and Storage,-39.00,1066 Removal Services,Removals and Storage,2042907,202304
Rother District Council,27/07/2023,T33HOUSING,Housing,20200,Housing Needs - HB (Housing Benefit),D2508,Removals and Storage,316.00,1066 Removal Services,Removals and Storage,2043110,202305
Rother District Council,27/07/2023,T33HOUSING,Housing,20200,Housing Needs - HB (Housing Benefit),D2508,Removals and Storage,395.00,1066 Removal Services,Removals and Storage,2043111,202305
Rother District Council,31/07/2023,T33HOUSING,Housing,20200,Housing Needs - HB (Housing Benefit),D2508,Removals and Storage,170.00,1066 Removal Services,Removals and Storage,2043125,202305
Rother District Council,31/07/2023,T33HOUSING,Housing,20200,Housing Needs - HB (Housing Benefit),D2508,Removals and Storage,150.00,1066 Removal Services,Removals and Storage,2043126,202305
Rother District Council,31/07/2023,T33HOUSING,Housing,20200,Housing Needs - HB (Housing Benefit),D2508,Removals and Storage,170.00,1066 Removal Services,Removals and Storage,2043127,202305
Rother District Council,31/07/2023,T33HOUSING,Housing,20200,Housing Needs - HB (Housing Benefit),D2508,Removals and Storage,300.00,1066 Removal Services,Removals and Storage,2043128,202305
Rother District Council,31/07/2023,T33HOUSING,Housing,20200,Housing Needs - HB (Housing Benefit),D2508,Removals and Storage,250.00,1066 Removal Services,Removals and Storage,2043129,202305
Rother District Council,31/07/2023,T33HOUSING,Housing,20200,Housing Needs - HB (Housing Benefit),D2508,Removals and Storage,170.00,1066 Removal Services,Removals and Storage,2043130,202305
Rother District Council,31/07/2023,T33HOUSING,Housing,20200,Housing Needs - HB (Housing Benefit),D2508,Removals and Storage,125.00,1066 Removal Services,Removals and Storage,2043131,202305
Rother District Council,31/07/2023,T33HOUSING,Housing,20200,Housing Needs - HB (Housing Benefit),D2508,Removals and Storage,170.00,1066 Removal Services,Removals and Storage,2043132,202305
Rother District Council,31/07/2023,T33HOUSING,Housing,20200,Housing Needs - HB (Housing Benefit),D2508,Removals and Storage,170.00,1066 Removal Services,Removals and Storage,2043133,202305
Rother District Council,31/07/2023,T33HOUSING,Housing,20200,Housing Needs - HB (Housing Benefit),D2508,Removals and Storage,100.00,1066 Removal Services,Removals and Storage,2043185,202305
Rother District Council,31/07/2023,T33HOUSING,Housing,20200,Housing Needs - HB (Housing Benefit),D2508,Removals and Storage,100.00,1066 Removal Services,Removals and Storage,2043186,202305
Rother District Council,31/07/2023,T33HOUSING,Housing,20200,Housing Needs - HB (Housing Benefit),D2508,Removals and Storage,120.00,1066 Removal Services,Removals and Storage,2043187,202305
Rother District Council,05/09/2023,T33HOUSING,Housing,20200,Housing Needs - HB (Housing Benefit),D2508,Removals and Storage,150.00,1066 Removal Services,Removals and Storage,2044313,202306
Rother District Council,05/09/2023,T33HOUSING,Housing,20200,Housing Needs - HB (Housing Benefit),D2508,Removals and Storage,170.00,1066 Removal Services,Removals and Storage,2044314,202306
Rother District Council,05/09/2023,T33HOUSING,Housing,20200,Housing Needs - HB (Housing Benefit),D2508,Removals and Storage,300.00,1066 Removal Services,Removals and Storage,2044315,202306
Rother District Council,05/09/2023,T33HOUSING,Housing,20200,Housing Needs - HB (Housing Benefit),D2508,Removals and Storage,250.00,1066 Removal Services,Removals and Storage,2044316,202306
Rother District Council,05/09/2023,T33HOUSING,Housing,20200,Housing Needs - HB (Housing Benefit),D2508,Removals and Storage,170.00,1066 Removal Services,Removals and Storage,2044317,202306
Rother District Council,05/09/2023,T33HOUSING,Housing,20200,Housing Needs - HB (Housing Benefit),D2508,Removals and Storage,125.00,1066 Removal Services,Removals and Storage,2044318,202306
Rother District Council,05/09/2023,T33HOUSING,Housing,20200,Housing Needs - HB (Housing Benefit),D2508,Removals and Storage,170.00,1066 Removal Services,Removals and Storage,2044319,202306
Rother District Council,05/09/2023,T33HOUSING,Housing,20200,Housing Needs - HB (Housing Benefit),D2508,Removals and Storage,170.00,1066 Removal Services,Removals and Storage,2044320,202306
Rother District Council,05/09/2023,T33HOUSING,Housing,20200,Housing Needs - HB (Housing Benefit),D2508,Removals and Storage,100.00,1066 Removal Services,Removals and Storage,2044322,202306
Rother District Council,05/09/2023,T33HOUSING,Housing,20200,Housing Needs - HB (Housing Benefit),D2508,Removals and Storage,100.00,1066 Removal Services,Removals and Storage,2044323,202306
Rother District Council,05/09/2023,T33HOUSING,Housing,20200,Housing Needs - HB (Housing Benefit),D2508,Removals and Storage,120.00,1066 Removal Services,Removals and Storage,2044324,202306
Rother District Council,04/09/2023,T33HOUSING,Housing,20200,Housing Needs - HB (Housing Benefit),D2508,Removals and Storage,450.00,1066 Removal Services,Removals and Storage,2044325,202306
Rother District Council,18/09/2023,T33HOUSING,Housing,20200,Housing Needs - HB (Housing Benefit),D2508,Removals and Storage,170.00,1066 Removal Services,Removals and Storage,2044589,202306
Rother District Council,05/09/2023,T33HOUSING,Housing,20200,Housing Needs - HB (Housing Benefit),D2514,Accommodation Costs,170.00,1066 Removal Services,Accommodation Costs,2044321,202306
Rother District Council,20/07/2023,T33NBHDSERV,Neighbourhood Services,20114,Bexhill Parks & Open Spaces,D1201,Equipment & Materials,225.00,1env Solutions Ltd,Equipment & Materials - Parks- Litter Bins,2043004,202304
Rother District Council,05/09/2023,T33NBHDSERV,Neighbourhood Services,20109,Sports Development,D2923,Grants made,"1,000.00",20/20 Health,Grants made - Sports Development-Active Rother,2044381,202306
Rother District Council,05/09/2023,T33NBHDSERV,Neighbourhood Services,20109,Sports Development,D2923,Grants made,"1,000.00",20/20 Health,Grants made - Sports Development-Active Rother,2044382,202306
Rother District Council,04/07/2023,T31DEMSERV,Democratic Services,20156,Representing Local Interest,D2513,Hired and Contracted services,200.00,247 Transport Solutions Ltd,Hired and contracted services - Coach Hire for Planning Site Visits,2042655,202304
Rother District Council,30/06/2023,T33HOUSING,Housing,20200,Housing Needs - HB (Housing Benefit),D2513,Hired and Contracted services,51.77,247 Transport Solutions Ltd,Hired and Contracted services,2042592,202304
Rother District Council,31/07/2023,T33HOUSING,Housing,20200,Housing Needs - HB (Housing Benefit),D2513,Hired and Contracted services,39.51,247 Transport Solutions Ltd,Hired and Contracted services,2043535,202305
Rother District Council,31/08/2023,T33HOUSING,Housing,20200,Housing Needs - HB (Housing Benefit),D2513,Hired and Contracted services,41.30,247 Transport Solutions Ltd,Hired and Contracted services,2044564,202306
Rother District Council,31/08/2023,T33HOUSING,Housing ,20337,Homes for Ukraine Accommodation,D2513,Hired and Contracted services,18.60,247 Transport Solutions Ltd,Hired and Contracted services,2044564,202306
Rother District Council,31/08/2023,T33HOUSING,Housing ,20337,Homes for Ukraine Accommodation,D2513,Hired and Contracted services,20.10,247 Transport Solutions Ltd,Hired and Contracted services,2044564,202306
Rother District Council,31/08/2023,T33HOUSING,Housing ,20337,Homes for Ukraine Accommodation,D2513,Hired and Contracted services,45.10,247 Transport Solutions Ltd,Hired and Contracted services,2044564,202306
Rother District Council,31/08/2023,T33HOUSING,Housing,20200,Housing Needs - HB (Housing Benefit),D2513,Hired and Contracted services,6.26,247 Transport Solutions Ltd,Hired and Contracted services,2044564,202306
Rother District Council,03/07/2023,T33HOUSING,Housing ,20337,Homes for Ukraine Accommodation,D2514,Accommodation Costs,439.00,47-48 Havelock Road Ltd,Accommodation Costs,2042603,202304
Rother District Council,10/07/2023,T33HOUSING,Housing ,20337,Homes for Ukraine Accommodation,D2514,Accommodation Costs,439.00,47-48 Havelock Road Ltd,Accommodation Costs,2042737,202304
Rother District Council,17/07/2023,T33HOUSING,Housing ,20337,Homes for Ukraine Accommodation,D2514,Accommodation Costs,439.00,47-48 Havelock Road Ltd,Accommodation Costs,2042856,202304
Rother District Council,24/07/2023,T33HOUSING,Housing ,20337,Homes for Ukraine Accommodation,D2514,Accommodation Costs,439.00,47-48 Havelock Road Ltd,Accommodation Costs,2043020,202304
Rother District Council,31/07/2023,T33HOUSING,Housing ,20337,Homes for Ukraine Accommodation,D2514,Accommodation Costs,439.00,47-48 Havelock Road Ltd,Accommodation Costs,2043124,202305
Rother District Council,07/08/2023,T33HOUSING,Housing ,20337,Homes for Ukraine Accommodation,D2514,Accommodation Costs,439.00,47-48 Havelock Road Ltd,Accommodation Costs,2043407,202305
Rother District Council,14/08/2023,T33HOUSING,Housing ,20337,Homes for Ukraine Accommodation,D2514,Accommodation Costs,439.00,47-48 Havelock Road Ltd,Accommodation Costs,2043693,202305
Rother District Council,04/09/2023,T33HOUSING,Housing ,20337,Homes for Ukraine Accommodation,D2514,Accommodation Costs,439.00,47-48 Havelock Road Ltd,Accommodation Costs,2044338,202306
Rother District Council,11/09/2023,T33HOUSING,Housing ,20337,Homes for Ukraine Accommodation,D2514,Accommodation Costs,439.00,47-48 Havelock Road Ltd,Accommodation Costs,2044498,202306
Rother District Council,18/09/2023,T33HOUSING,Housing ,20337,Homes for Ukraine Accommodation,D2514,Accommodation Costs,439.00,47-48 Havelock Road Ltd,Accommodation Costs,2044575,202306
Rother District Council,21/08/2023,T33HOUSING,Housing ,20337,Homes for Ukraine Accommodation,D2514,Accommodation Costs,439.00,47-48 Havelock Road Ltd,Accommodation Costs - Homelessness services Temp Accom - No VAT,2044047,202305
Rother District Council,29/08/2023,T33HOUSING,Housing ,20337,Homes for Ukraine Accommodation,D2514,Accommodation Costs,439.00,47-48 Havelock Road Ltd,Accommodation Costs - Homelessness services Temp Accom - No VAT,2044048,202305
Rother District Council,10/09/2023,T33HOUSING,Housing,20202,Rother Tenant Finder (prev Rother Letting Service),D1201,Equipment & Materials,100.00,A&A Cleaning & Property Services Ltd,Equipment & materials - Miscellaneous,2044628,202306
Rother District Council,28/06/2023,T33HOUSING,Housing,20261,"TA Purchases (prev - 41 Jameson Mews, Bexhill on Sea)",D2513,Hired and Contracted services,100.00,A&A Cleaning & Property Services Ltd,Hired and contracted services - Service fee paid,2042575,202304
Rother District Council,06/07/2023,T33HOUSING,Housing,20261,"TA Purchases (prev - 41 Jameson Mews, Bexhill on Sea)",D2513,Hired and Contracted services,80.00,A&A Cleaning & Property Services Ltd,Hired and contracted services - Service fee paid,2042763,202304
Rother District Council,13/07/2023,T33HOUSING,Housing,20261,"TA Purchases (prev - 41 Jameson Mews, Bexhill on Sea)",D2513,Hired and Contracted services,70.00,A&A Cleaning & Property Services Ltd,Hired and contracted services - Service fee paid,2042935,202304
Rother District Council,13/07/2023,T33HOUSING,Housing,20261,"TA Purchases (prev - 41 Jameson Mews, Bexhill on Sea)",D2513,Hired and Contracted services,40.00,A&A Cleaning & Property Services Ltd,Hired and contracted services - Service fee paid,2042936,202304
Rother District Council,22/07/2023,T33HOUSING,Housing,20261,"TA Purchases (prev - 41 Jameson Mews, Bexhill on Sea)",D2513,Hired and Contracted services,50.00,A&A Cleaning & Property Services Ltd,Hired and contracted services - Service fee paid,2043023,202304
Rother District Council,28/06/2023,T33HOUSING,Housing,20304,Housing First,D2513,Hired and Contracted services,25.00,A&A Cleaning & Property Services Ltd,Hired and contracted services - Service fee paid,2043061,202304
Rother District Council,27/07/2023,T33HOUSING,Housing,20304,Housing First,D2513,Hired and Contracted services,25.00,A&A Cleaning & Property Services Ltd,Hired and contracted services - Service fee paid,2043113,202304
Rother District Council,12/07/2023,T33HOUSING,Housing,20304,Housing First,D2513,Hired and Contracted services,40.00,A&A Cleaning & Property Services Ltd,Hired and contracted services - Service fee paid,2043566,202305
Rother District Council,13/08/2023,T33HOUSING,Housing,20261,"TA Purchases (prev - 41 Jameson Mews, Bexhill on Sea)",D2513,Hired and Contracted services,160.00,A&A Cleaning & Property Services Ltd,Hired and contracted services - Service fee paid,2043948,202305
Rother District Council,13/08/2023,T33HOUSING,Housing,20304,Housing First,D2513,Hired and Contracted services,130.00,A&A Cleaning & Property Services Ltd,Hired and contracted services - Service fee paid,2043949,202305
Rother District Council,15/08/2023,T33HOUSING,Housing,20304,Housing First,D2513,Hired and Contracted services,150.00,A&A Cleaning & Property Services Ltd,Hired and contracted services - Service fee paid,2043950,202305
Rother District Council,16/08/2023,T33HOUSING,Housing,20304,Housing First,D2513,Hired and Contracted services,20.00,A&A Cleaning & Property Services Ltd,Hired and contracted services - Service fee paid,2043953,202305
Rother District Council,15/08/2023,T33HOUSING,Housing,20261,"TA Purchases (prev - 41 Jameson Mews, Bexhill on Sea)",D2513,Hired and Contracted services,"1,708.45",A&A Cleaning & Property Services Ltd,Hired and contracted services - Service fee paid,2043973,202305
Rother District Council,19/08/2023,T33HOUSING,Housing,20261,"TA Purchases (prev - 41 Jameson Mews, Bexhill on Sea)",D2513,Hired and Contracted services,60.00,A&A Cleaning & Property Services Ltd,Hired and contracted services - Service fee paid,2043974,202305
Rother District Council,31/08/2023,T33HOUSING,Housing,20261,"TA Purchases (prev - 41 Jameson Mews, Bexhill on Sea)",D2513,Hired and Contracted services,40.00,A&A Cleaning & Property Services Ltd,Hired and contracted services - Service fee paid,2044278,202306
Rother District Council,30/08/2023,T33HOUSING,Housing,20304,Housing First,D2513,Hired and Contracted services,25.00,A&A Cleaning & Property Services Ltd,Hired and contracted services - Service fee paid,2044403,202306
Rother District Council,10/07/2023,T33HOUSING,Housing,20304,Housing First,D2513,Hired and Contracted services,"1,040.00",A&A Cleaning & Property Services Ltd,Hired and contracted services - Service fee paid,2044613,202306
Rother District Council,30/06/2023,T33HOUSING,Housing,20317,Rother Leasing Scheme,D2513,Hired and Contracted services,72.00,A&A Cleaning & Property Services Ltd,Hired and contracted services - Service fee paid,2044627,202306
Rother District Council,17/09/2023,T33HOUSING,Housing,20304,Housing First,B1100,Repairs to Premises,150.00,A&A Cleaning & Property Services Ltd,Repairs to Premises - Electrical Installation,2044620,202306
Rother District Council,05/09/2023,T33HOUSING,Housing,20304,Housing First,B1100,Repairs to Premises,190.00,A&A Cleaning & Property Services Ltd,Repairs to Premises - Repairs - Plumbing Works,2044404,202306
Rother District Council,05/09/2023,T33HOUSING,Housing,20304,Housing First,B1100,Repairs to Premises,120.00,A&A Cleaning & Property Services Ltd,Repairs to Premises - Repairs - Plumbing Works,2044405,202306
Rother District Council,09/09/2023,T33HOUSING,Housing,20304,Housing First,B1100,Repairs to Premises,60.00,A&A Cleaning & Property Services Ltd,Repairs to Premises - Repairs - Plumbing Works,2044614,202306
Rother District Council,17/09/2023,T33HOUSING,Housing,20261,"TA Purchases (prev - 41 Jameson Mews, Bexhill on Sea)",B1100,Repairs to Premises,60.00,A&A Cleaning & Property Services Ltd,Repairs to Premises - Repairs - Plumbing Works,2044619,202306
Rother District Council,30/08/2023,T33HREGEN,Regeneration,20154,Committee Property Account,D2513,Hired and Contracted services,55.00,A&A Cleaning & Property Services Ltd,Hired and contracted services - Service fee paid,2044277,202306
Rother District Council,27/06/2023,T3ZCAPITAL,Housing ,70751,Capital - Temporary Accommodation,N1005,Other fees,150.00,A&A Cleaning & Property Services Ltd,Other Fees - Capital exp Std VAT,2042715,202304
Rother District Council,05/07/2023,T3ZCAPITAL,Housing ,70706,Capital - Disabled Facilities Grant,N1012,Capital Advances,"7,000.00",A&AJ Bishop Ltd,Capital Advances Disabled Facilities Grant,2042733,202304
Rother District Council,05/07/2023,T3ZCAPITAL,Housing ,70706,Capital - Disabled Facilities Grant,N1012,Capital Advances,"7,590.05",A&AJ Bishop Ltd,Capital Advances Disabled Facilities Grant,2042917,202304
Rother District Council,14/08/2023,T3ZCAPITAL,Housing ,70706,Capital - Disabled Facilities Grant,N1012,Capital Advances,"6,604.00",A&AJ Bishop Ltd,Capital Advances Disabled Facilities Grant,2044635,202306
Rother District Council,24/07/2023,T3ZCAPITAL,Housing ,70751,Capital - Temporary Accommodation,N1005,Other fees,350.00,A.G.I.S. ,Other Fees - Capital exp Std VAT,2043049,202304
Rother District Council,30/06/2023,T33NBHDSERV,Neighbourhood Services,20138,Residual Highway Services,B2611,Contract cleaning,500.00,Abacus Main Ltd,Contract cleaning - Bus Shelter Cleaning Contract,2043279,202305
Rother District Council,31/08/2023,T33NBHDSERV,Neighbourhood Services,20138,Residual Highway Services,B2611,Contract cleaning,500.00,Abacus Main Ltd,Contract cleaning - Bus Shelter Cleaning Contract,2044450,202306
Rother District Council,30/06/2023,T33NBHDSERV,Neighbourhood Services,20108,Bexhill Promenade & Foreshore,B2611,Contract cleaning,153.00,Abacus Main Ltd,Contract cleaning - Office Cleaning,2043280,202305
Rother District Council,31/08/2023,T33NBHDSERV,Neighbourhood Services,20108,Bexhill Promenade & Foreshore,B2611,Contract cleaning,153.00,Abacus Main Ltd,Contract cleaning - Office Cleaning,2044449,202306
Rother District Council,12/09/2023,T33HOUSING,Housing,20205,Housing Loans Account,D2514,Accommodation Costs,663.46,Abbott & Abbott Estate Agents Ltd,Accommodation Costs - Homelessness services Deposit for Landlords,2044529,202306
Rother District Council,15/08/2023,T33HOUSING,Housing,20202,Rother Tenant Finder (prev Rother Letting Service),D2514,Accommodation Costs,"1,000.00",Abbott & Abbott Estate Agents Ltd,Accommodation Costs - Homelessness services Housing Landlord Scheme-Rent payment,2043744,202305
Rother District Council,12/09/2023,T33HOUSING,Housing,20202,Rother Tenant Finder (prev Rother Letting Service),D2514,Accommodation Costs,500.00,Abbott & Abbott Estate Agents Ltd,Accommodation Costs - Homelessness services Housing Landlord Scheme-Rent payment,2044529,202306
Rother District Council,15/08/2023,T33HOUSING,Housing,20205,Housing Loans Account,D2514,Accommodation Costs,"1,100.00",Abbott & Abbott Estate Agents Ltd,Accommodation Costs - Homelessness services Rent in Advance for Homeless,2043744,202305
Rother District Council,12/09/2023,T33HOUSING,Housing,20205,Housing Loans Account,D2514,Accommodation Costs,442.31,Abbott & Abbott Estate Agents Ltd,Accommodation Costs - Homelessness services Rent in Advance for Homeless,2044529,202306
Rother District Council,27/07/2023,T31DEMSERV,Democratic Services,20156,Representing Local Interest,D2736,Chairmans Allowance,180.00,ABF The Soldiers� Charity,Chairmans Allowance - Chairmans Allowance,2043976,202305
Rother District Council,27/07/2023,T31DEMSERV,Democratic Services,20156,Representing Local Interest,D2736,Chairmans Allowance,50.00,ABF The Soldiers� Charity,Chairmans Allowance - Chairmans Allowance,2043977,202305
Rother District Council,27/07/2023,T31DEMSERV,Democratic Services,20156,Representing Local Interest,D2737,Vice Chairmans Allowance,50.00,ABF The Soldiers� Charity,Vice -Chairmans Allowance -Vice  Chairmans Allowance,2043978,202305
Rother District Council,12/09/2023,T33NBHDSERV,Neighbourhood Services,20109,Sports Development,D2927,Services Facilitated by External Grants,21.20,Active Sussex,Services Facilitated by External Grants - Sports Development,2044537,202306
Rother District Council,12/09/2023,T33NBHDSERV,Neighbourhood Services,20109,Sports Development,D2927,Services Facilitated by External Grants,21.20,Active Sussex,Services Facilitated by External Grants - Sports Development-Active Rother,2044537,202306
Rother District Council,10/07/2023,T33NBHDSERV,Neighbourhood Services,20107,Camber Beach & Foreshore,A2203,Training,"1,150.00",ADM Training Ltd,Training,2042764,202304
Rother District Council,01/07/2023,T31HUMANRES,Human Resources,20175,Admin Building - Amherst Rd (fmr Treasurer�s building),B1100,Repairs to Premises,592.66,ADT Fire and  Security Plc,Repairs to Premises - Fire Alarm System Maintenance,2043299,202305
Rother District Council,01/08/2023,T31HUMANRES,Human Resources,20175,Admin Building - Amherst Rd (fmr Treasurer�s building),B1100,Repairs to Premises,"2,383.47",ADT Fire and  Security Plc,Repairs to Premises - Fire Alarm System Maintenance,2043822,202305
Rother District Council,27/06/2023,T33NBHDSERV,Neighbourhood Services,20102,Rother Museum Services,B1100,Repairs to Premises,380.00,ADT Fire and  Security Plc,Repairs to Premises - Fire Alarm System Maintenance,2043230,202305
Rother District Council,01/09/2023,T33NBHDSERV,Neighbourhood Services,20102,Rother Museum Services,B1100,Repairs to Premises,"1,356.84",ADT Fire and  Security Plc,Repairs to Premises - Fire Alarm System Maintenance,2044452,202306
Rother District Council,14/07/2023,T32ENVSERV,"Environmental Services, Licencing & Community Safety",32134,EH Pollution R + W Partnership,D1201,Equipment & Materials,"2,150.00",AECOM Ltd,Equipment & Materials - EnvH- Air Quality Maintenance Contr,2043428,202305
Rother District Council,09/07/2023,T31HUMANRES,Human Resources,20171,Human Resources,D2922,Subscriptions,79.80,Agora Business Publications LLP,Subscriptions - Subscription to Organisations,2042912,202304
Rother District Council,01/07/2023,T31HUMANRES,Human Resources,20171,Human Resources,D2922,Subscriptions,134.85,Agora Business Publications LLP,Subscriptions - Subscription to Organisations,2043874,202305
Rother District Council,22/08/2023,T3ZCAPITAL,Neighbourhood Services,70781,Capital - Camber Sands Welcome Centre,N1004,Architects & Consultant Fees,"3,050.00",Aimcon Surveys Limited,Architects & Consultant Fees Capital-Architect and Conslt Fees,2044098,202305
Rother District Council,02/08/2023,T33NBHDSERV,Neighbourhood Services,20137,Car Parks,B1100,Repairs to Premises,725.00,AJL Roadmarking Ltd,Repairs to Premises - Car Park Maintenance,2043839,202305
Rother District Council,11/08/2023,T33NBHDSERV,Neighbourhood Services,20137,Car Parks,B1100,Repairs to Premises,995.00,AJL Roadmarking Ltd,Repairs to Premises - Car Park Maintenance,2043988,202305
Rother District Council,02/08/2023,T31HUMANRES,Human Resources,20175,Admin Building - Amherst Rd (fmr Treasurer�s building),B1100,Repairs to Premises,163.58,Alfa Electric Ltd,Repairs to Premises - Repairs - Electrical Works,2043850,202305
Rother District Council,11/07/2023,T32ENVSERV,"Environmental Services, Licencing & Community Safety",32134,EH Pollution R + W Partnership,D1201,Equipment & Materials,957.15,Alfa Electric Ltd,Equipment & Materials - Electrical Equipment,2043462,202305
Rother District Council,20/07/2023,T33HREGEN,Regeneration,20154,Committee Property Account,B1100,Repairs to Premises,"1,041.56",Alfa Electric Ltd,Repairs to Premises - Colonnade - repairs and fit out,2043469,202305
Rother District Council,30/06/2023,T33HREGEN,Regeneration,20154,Committee Property Account,B1100,Repairs to Premises,"1,795.43",Alfa Electric Ltd,Repairs to Premises - Repairs - Electrical Works,2042614,202304
Rother District Council,30/06/2023,T33HREGEN,Regeneration,20154,Committee Property Account,B1100,Repairs to Premises,"1,354.36",Alfa Electric Ltd,Repairs to Premises - Repairs - Electrical Works,2042615,202304
Rother District Council,21/06/2023,T33HREGEN,Regeneration,20153,"Elva Business Centre, Bexhill",B1100,Repairs to Premises,378.24,Alfa Electric Ltd,Repairs to Premises - Repairs - Electrical Works,2042701,202304
Rother District Council,22/06/2023,T33HREGEN,Regeneration,20338,7-12 Beeching Road Studios ( Regeneration Project ),B1100,Repairs to Premises,295.01,Alfa Electric Ltd,Repairs to Premises - Repairs - Electrical Works,2042704,202304
Rother District Council,05/07/2023,T33HREGEN,Regeneration,20145,Maintenance Services,B1100,Repairs to Premises,351.63,Alfa Electric Ltd,Repairs to Premises - Repairs - Electrical Works,2043372,202305
Rother District Council,28/07/2023,T33HREGEN,Regeneration,20145,Maintenance Services,B1100,Repairs to Premises,699.28,Alfa Electric Ltd,Repairs to Premises - Repairs - Electrical Works,2043471,202305
Rother District Council,17/08/2023,T33HREGEN,Regeneration,20153,"Elva Business Centre, Bexhill",B1100,Repairs to Premises,319.36,Alfa Electric Ltd,Repairs to Premises - Repairs - Electrical Works,2044216,202306
Rother District Council,06/09/2023,T33HREGEN,Regeneration,20151,Udimore Workshops,B1100,Repairs to Premises,"1,104.41",Alfa Electric Ltd,Repairs to Premises - Repairs - Electrical Works,2044423,202306
Rother District Council,11/09/2023,T33HREGEN,Regeneration,20153,"Elva Business Centre, Bexhill",B1100,Repairs to Premises,94.36,Alfa Electric Ltd,Repairs to Premises - Repairs - Electrical Works,2044583,202306
Rother District Council,19/05/2023,T33NBHDSERV,Neighbourhood Services,20108,Bexhill Promenade & Foreshore,B1100,Repairs to Premises,189.71,Alfa Electric Ltd,Repairs to Premises - Lighting Repairs,2041976,202305
Rother District Council,31/08/2023,T33NBHDSERV,Neighbourhood Services,20114,Bexhill Parks & Open Spaces,B1100,Repairs to Premises,506.35,Alfa Electric Ltd,Repairs to Premises - Lighting Repairs,2044235,202306
Rother District Council,30/06/2023,T33NBHDSERV,Neighbourhood Services,20128,Public Conveniences,B1100,Repairs to Premises,399.98,Alfa Electric Ltd,Repairs to Premises - Public Conveniences - Various repairs,2042707,202304
Rother District Council,01/03/2023,T33NBHDSERV,Neighbourhood Services,20107,Camber Beach & Foreshore,B1100,Repairs to Premises,296.37,Alfa Electric Ltd,Repairs to Premises - Repairs - Electrical Works,2039592,202304
Rother District Council,23/06/2023,T33NBHDSERV,Neighbourhood Services,20108,Bexhill Promenade & Foreshore,B1100,Repairs to Premises,"1,158.31",Alfa Electric Ltd,Repairs to Premises - Repairs - Electrical Works,2042394,202305
Rother District Council,19/04/2023,T33NBHDSERV,Neighbourhood Services,20137,Car Parks,B1100,Repairs to Premises,270.76,Alfa Electric Ltd,Repairs to Premises - Repairs - Electrical Works,2042497,202304
Rother District Council,16/06/2023,T33NBHDSERV,Neighbourhood Services,20128,Public Conveniences,B1100,Repairs to Premises,55.00,Alfa Electric Ltd,Repairs to Premises - Repairs - Electrical Works,2042699,202304
Rother District Council,14/06/2023,T33NBHDSERV,Neighbourhood Services,20128,Public Conveniences,B1100,Repairs to Premises,298.31,Alfa Electric Ltd,Repairs to Premises - Repairs - Electrical Works,2042700,202304
Rother District Council,22/06/2023,T33NBHDSERV,Neighbourhood Services,20128,Public Conveniences,B1100,Repairs to Premises,383.37,Alfa Electric Ltd,Repairs to Premises - Repairs - Electrical Works,2042702,202304
Rother District Council,28/06/2023,T33NBHDSERV,Neighbourhood Services,20102,Rother Museum Services,B1100,Repairs to Premises,129.70,Alfa Electric Ltd,Repairs to Premises - Repairs - Electrical Works,2042705,202304
Rother District Council,29/06/2023,T33NBHDSERV,Neighbourhood Services,20107,Camber Beach & Foreshore,B1100,Repairs to Premises,275.49,Alfa Electric Ltd,Repairs to Premises - Repairs - Electrical Works,2042708,202304
Rother District Council,30/06/2023,T33NBHDSERV,Neighbourhood Services,20107,Camber Beach & Foreshore,B1100,Repairs to Premises,593.16,Alfa Electric Ltd,Repairs to Premises - Repairs - Electrical Works,2042709,202304
Rother District Council,18/04/2023,T33NBHDSERV,Neighbourhood Services,20107,Camber Beach & Foreshore,B1100,Repairs to Premises,227.99,Alfa Electric Ltd,Repairs to Premises - Repairs - Electrical Works,2042738,202304
Rother District Council,14/06/2023,T33NBHDSERV,Neighbourhood Services,20102,Rother Museum Services,B1100,Repairs to Premises,"7,853.96",Alfa Electric Ltd,Repairs to Premises - Repairs - Electrical Works,2042746,202304
Rother District Council,26/07/2023,T33NBHDSERV,Neighbourhood Services,20128,Public Conveniences,B1100,Repairs to Premises,470.36,Alfa Electric Ltd,Repairs to Premises - Repairs - Electrical Works,2043076,202304
Rother District Council,04/07/2023,T33NBHDSERV,Neighbourhood Services,20128,Public Conveniences,B1100,Repairs to Premises,68.75,Alfa Electric Ltd,Repairs to Premises - Repairs - Electrical Works,2043347,202305
Rother District Council,05/07/2023,T33NBHDSERV,Neighbourhood Services,20102,Rother Museum Services,B1100,Repairs to Premises,157.50,Alfa Electric Ltd,Repairs to Premises - Repairs - Electrical Works,2043373,202305
Rother District Council,06/07/2023,T33NBHDSERV,Neighbourhood Services,20128,Public Conveniences,B1100,Repairs to Premises,413.76,Alfa Electric Ltd,Repairs to Premises - Repairs - Electrical Works,2043374,202305
Rother District Council,10/07/2023,T33NBHDSERV,Neighbourhood Services,20128,Public Conveniences,B1100,Repairs to Premises,239.61,Alfa Electric Ltd,Repairs to Premises - Repairs - Electrical Works,2043457,202305
Rother District Council,10/07/2023,T33NBHDSERV,Neighbourhood Services,20114,Bexhill Parks & Open Spaces,B1100,Repairs to Premises,125.84,Alfa Electric Ltd,Repairs to Premises - Repairs - Electrical Works,2043459,202305
Rother District Council,12/07/2023,T33NBHDSERV,Neighbourhood Services,20114,Bexhill Parks & Open Spaces,B1100,Repairs to Premises,456.65,Alfa Electric Ltd,Repairs to Premises - Repairs - Electrical Works,2043460,202305
Rother District Council,13/07/2023,T33NBHDSERV,Neighbourhood Services,20128,Public Conveniences,B1100,Repairs to Premises,169.91,Alfa Electric Ltd,Repairs to Premises - Repairs - Electrical Works,2043463,202305
Rother District Council,13/07/2023,T33NBHDSERV,Neighbourhood Services,20128,Public Conveniences,B1100,Repairs to Premises,181.61,Alfa Electric Ltd,Repairs to Premises - Repairs - Electrical Works,2043465,202305
Rother District Council,18/07/2023,T33NBHDSERV,Neighbourhood Services,20128,Public Conveniences,B1100,Repairs to Premises,219.30,Alfa Electric Ltd,Repairs to Premises - Repairs - Electrical Works,2043467,202305
Rother District Council,02/08/2023,T33NBHDSERV,Neighbourhood Services,20114,Bexhill Parks & Open Spaces,B1100,Repairs to Premises,267.74,Alfa Electric Ltd,Repairs to Premises - Repairs - Electrical Works,2043472,202305
Rother District Council,02/08/2023,T33NBHDSERV,Neighbourhood Services,20128,Public Conveniences,B1100,Repairs to Premises,584.31,Alfa Electric Ltd,Repairs to Premises - Repairs - Electrical Works,2043474,202305
Rother District Council,03/08/2023,T33NBHDSERV,Neighbourhood Services,20108,Bexhill Promenade & Foreshore,B1100,Repairs to Premises,635.04,Alfa Electric Ltd,Repairs to Premises - Repairs - Electrical Works,2043475,202305
Rother District Council,27/06/2023,T33NBHDSERV,Neighbourhood Services,20108,Bexhill Promenade & Foreshore,B1100,Repairs to Premises,346.38,Alfa Electric Ltd,Repairs to Premises - Repairs - Electrical Works,2043929,202305
Rother District Council,16/08/2023,T33NBHDSERV,Neighbourhood Services,20108,Bexhill Promenade & Foreshore,B1100,Repairs to Premises,691.25,Alfa Electric Ltd,Repairs to Premises - Repairs - Electrical Works,2044187,202306
Rother District Council,22/08/2023,T33NBHDSERV,Neighbourhood Services,20108,Bexhill Promenade & Foreshore,B1100,Repairs to Premises,184.99,Alfa Electric Ltd,Repairs to Premises - Repairs - Electrical Works,2044188,202306
Rother District Council,17/08/2023,T33NBHDSERV,Neighbourhood Services,20128,Public Conveniences,B1100,Repairs to Premises,328.29,Alfa Electric Ltd,Repairs to Premises - Repairs - Electrical Works,2044217,202306
Rother District Council,13/09/2023,T33NBHDSERV,Neighbourhood Services,20137,Car Parks,B1100,Repairs to Premises,199.99,Alfa Electric Ltd,Repairs to Premises - Repairs - Electrical Works,2044640,202306
Rother District Council,20/09/2023,T33NBHDSERV,Neighbourhood Services,20128,Public Conveniences,B1100,Repairs to Premises,65.00,Alfa Electric Ltd,Repairs to Premises - Repairs - Electrical Works,2044641,202306
Rother District Council,31/05/2023,T3ZCAPITAL,Housing ,70706,Capital - Disabled Facilities Grant,N1012,Capital Advances,"9,078.13",Alfa Electric Ltd,Capital Advances Disabled Facilities Grant,2042610,202304
Rother District Council,30/06/2023,T3ZCAPITAL,Housing ,70706,Capital - Disabled Facilities Grant,N1012,Capital Advances,"5,287.15",Alfa Electric Ltd,Capital Advances Disabled Facilities Grant,2042732,202304
Rother District Council,12/05/2023,T3ZCAPITAL,Housing ,70706,Capital - Disabled Facilities Grant,N1012,Capital Advances,"3,727.54",Alfa Electric Ltd,Capital Advances Disabled Facilities Grant,2042751,202304
Rother District Council,16/06/2023,T3ZCAPITAL,Housing ,70706,Capital - Disabled Facilities Grant,N1012,Capital Advances,"7,627.85",Alfa Electric Ltd,Capital Advances Disabled Facilities Grant,2042768,202304
Rother District Council,07/07/2023,T3ZCAPITAL,Housing ,70706,Capital - Disabled Facilities Grant,N1012,Capital Advances,"2,568.30",Alfa Electric Ltd,Capital Advances Disabled Facilities Grant,2042908,202304
Rother District Council,18/07/2023,T3ZCAPITAL,Housing ,70706,Capital - Disabled Facilities Grant,N1012,Capital Advances,162.25,Alfa Electric Ltd,Capital Advances Disabled Facilities Grant,2042910,202304
Rother District Council,31/07/2023,T3ZCAPITAL,Housing ,70706,Capital - Disabled Facilities Grant,N1012,Capital Advances,"9,455.38",Alfa Electric Ltd,Capital Advances Disabled Facilities Grant,2043956,202305
Rother District Council,25/07/2023,T3ZCAPITAL,Housing ,70706,Capital - Disabled Facilities Grant,N1012,Capital Advances,"1,210.29",Alfa Electric Ltd,Capital Advances Disabled Facilities Grant,2044272,202306
Rother District Council,18/08/2023,T3ZCAPITAL,Housing ,70706,Capital - Disabled Facilities Grant,N1012,Capital Advances,"10,000.00",Alfa Electric Ltd,Capital Advances Disabled Facilities Grant,2044273,202306
Rother District Council,12/09/2023,T3ZCAPITAL,Housing ,70706,Capital - Disabled Facilities Grant,N1012,Capital Advances,"5,282.99",Alfa Electric Ltd,Capital Advances Disabled Facilities Grant,2044547,202306
Rother District Council,15/09/2023,T3ZCAPITAL,Housing ,70706,Capital - Disabled Facilities Grant,N1012,Capital Advances,"5,573.08",Alfa Electric Ltd,Capital Advances Disabled Facilities Grant,2044593,202306
Rother District Council,21/09/2023,T3ZCAPITAL,Housing ,70706,Capital - Disabled Facilities Grant,N1012,Capital Advances,"10,000.00",Alfa Electric Ltd,Capital Advances Disabled Facilities Grant,2044633,202306
Rother District Council,21/09/2023,T3ZCAPITAL,Housing ,70706,Capital - Disabled Facilities Grant,N1012,Capital Advances,"7,000.00",Alfa Electric Ltd,Capital Advances Disabled Facilities Grant,2044634,202306
Rother District Council,31/07/2023,T3ZCAPITAL,Housing ,70706,Capital - Disabled Facilities Grant,N1012,Capital Advances,"1,335.67",Alfa Electric Ltd,Capital Advances Disabled Facilities Grant,2044666,202306
Rother District Council,27/06/2023,T33NBHDSERV,Neighbourhood Services,20107,Camber Beach & Foreshore,A2203,Training,665.00,All Terrain Services Ltd,Training,2043100,202305
Rother District Council,03/03/2023,T33HOUSING,Housing,20205,Housing Loans Account,D2514,Accommodation Costs,583.40,Allicin International Ltd,Accommodation Costs - Homelessness services Rent in Advance for Homeless,2042275,202304
Rother District Council,05/08/2023,T33HOUSING,Housing,20205,Housing Loans Account,D2514,Accommodation Costs,583.40,Allicin International Ltd,Accommodation Costs - Homelessness services Rent in Advance for Homeless,2042909,202304
Rother District Council,05/09/2023,T33HOUSING,Housing,20205,Housing Loans Account,D2514,Accommodation Costs,583.40,Allicin International Ltd,Accommodation Costs - Homelessness services Rent in Advance for Homeless,2043528,202305
Rother District Council,22/06/2023,T33HREGEN,Regeneration,20148,Misc Land & Buildings,B1100,Repairs to Premises,348.67,Alsford Timber Ltd,Repairs to Premises - Purchase of Materials - Build Maint,2043207,202305
Rother District Council,04/07/2023,T33HREGEN,Regeneration,20148,Misc Land & Buildings,B1100,Repairs to Premises,173.61,Alsford Timber Ltd,Repairs to Premises - Purchase of Materials - Build Maint,2043242,202305
Rother District Council,13/06/2023,T33NBHDSERV,Neighbourhood Services,20128,Public Conveniences,B1100,Repairs to Premises,19.02,Alsford Timber Ltd,Repairs to Premises - Purchase of Materials - Build Maint,2043083,202305
Rother District Council,07/07/2023,T33NBHDSERV,Neighbourhood Services,20128,Public Conveniences,B1100,Repairs to Premises,6.30,Alsford Timber Ltd,Repairs to Premises - Purchase of Materials - Build Maint,2043243,202305
Rother District Council,31/05/2023,T33PLANDEV,Planning Development Management,20246,Planning Applications,E2302,Third party payment private contractors,"3,450.00",Altair Consultancy & Advisory Services Ltd,Third Party Private contractors,2042204,202304
Rother District Council,31/07/2023,T3ZCAPITAL,Corporate Policy & Projects,70750,Capital - Development of Council Owned Sites,N1004,Architects & Consultant Fees,"2,000.00",Altair Consultancy & Advisory Services Ltd,Architects & Consultants Fees - Project support consultancy,2043841,202305
Rother District Council,21/07/2023,T3ZCAPITAL,Corporate Policy & Projects,70754,Capital - King Offa Residential Development Scheme,N1004,Architects & Consultant Fees,"47,420.00",Amstech Asbestos Removals Ltd,Architects & Consultant Fees Capital-Architect and Conslt Fees,2043170,202305
Rother District Council,15/08/2023,T33HOUSING,Housing,20261,"TA Purchases (prev - 41 Jameson Mews, Bexhill on Sea)",D2513,Hired and Contracted services,300.00,Amstech Inspections & Testing Ltd,Hired and contracted services - Service fee paid,2044141,202306
Rother District Council,15/08/2023,T33HOUSING,Housing,20261,"TA Purchases (prev - 41 Jameson Mews, Bexhill on Sea)",D2513,Hired and Contracted services,300.00,Amstech Inspections & Testing Ltd,Hired and contracted services - Service fee paid,2044142,202306
Rother District Council,29/08/2023,T33HOUSING,Housing,20261,"TA Purchases (prev - 41 Jameson Mews, Bexhill on Sea)",D2513,Hired and Contracted services,300.00,Amstech Inspections & Testing Ltd,Hired and contracted services - Service fee paid,2044692,202306
Rother District Council,31/07/2023,T33HREGEN,Regeneration,20148,Misc Land & Buildings,D2513,Hired and Contracted services,600.00,Amstech Inspections & Testing Ltd,Hired and contracted services - Service fee paid,2043172,202305
Rother District Council,15/05/2023,T33HREGEN,Regeneration,20146,West Trading Estate,B1100,Repairs to Premises,175.00,Amstech Inspections & Testing Ltd,Repairs to Premises - Specified Repairs and Works listed,2042552,202304
Rother District Council,10/07/2023,T3ZCAPITAL,Housing ,70751,Capital - Temporary Accommodation,N1005,Other fees,300.00,Amstech Inspections & Testing Ltd,Other Fees - Capital exp Std VAT,2044001,202305
Rother District Council,31/07/2023,T3ZCAPITAL,Corporate Policy & Projects,70737,Capital � Barnhorn Green,N1004,Architects & Consultant Fees,700.00,Anderson Acoustics Ltd,Architects & Consultant Fees Capital-Architect and Conslt Fees,2043838,202305
Rother District Council,09/06/2023,T32ENVSERV,"Environmental Services, Licencing & Community Safety",32135,EH Dog Control R + W Partnership,D2513,Hired and Contracted services,"3,127.00",Animal Wardens Ltd,Hired and contracted services - Rother Collection of Dogs EnvH,2042356,202304
Rother District Council,05/07/2023,T32ENVSERV,"Environmental Services, Licencing & Community Safety",32135,EH Dog Control R + W Partnership,D2513,Hired and Contracted services,"3,127.00",Animal Wardens Ltd,Hired and contracted services - Rother Collection of Dogs EnvH,2043277,202305
Rother District Council,07/08/2023,T32ENVSERV,"Environmental Services, Licencing & Community Safety",32135,EH Dog Control R + W Partnership,D2513,Hired and Contracted services,"3,127.00",Animal Wardens Ltd,Hired and contracted services - Rother Collection of Dogs EnvH,2043770,202305
Rother District Council,06/09/2023,T32ENVSERV,"Environmental Services, Licencing & Community Safety",32135,EH Dog Control R + W Partnership,D2513,Hired and Contracted services,"3,127.00",Animal Wardens Ltd,Hired and contracted services - Rother Collection of Dogs EnvH,2044409,202306
Rother District Council,09/06/2023,T32ENVSERV,"Environmental Services, Licencing & Community Safety",32135,EH Dog Control R + W Partnership,D2513,Hired and Contracted services,"3,571.14",Animal Wardens Ltd,Hired and contracted services - Wealden Stray Dogs Kennelling Costs EnvH,2042357,202304
Rother District Council,05/07/2023,T32ENVSERV,"Environmental Services, Licencing & Community Safety",32135,EH Dog Control R + W Partnership,D2513,Hired and Contracted services,"3,571.14",Animal Wardens Ltd,Hired and contracted services - Wealden Stray Dogs Kennelling Costs EnvH,2043276,202305
Rother District Council,07/08/2023,T32ENVSERV,"Environmental Services, Licencing & Community Safety",32135,EH Dog Control R + W Partnership,D2513,Hired and Contracted services,"3,571.14",Animal Wardens Ltd,Hired and contracted services - Wealden Stray Dogs Kennelling Costs EnvH,2043771,202305
Rother District Council,06/09/2023,T32ENVSERV,"Environmental Services, Licencing & Community Safety",32135,EH Dog Control R + W Partnership,D2513,Hired and Contracted services,"3,571.14",Animal Wardens Ltd,Hired and contracted services - Wealden Stray Dogs Kennelling Costs EnvH,2044410,202306
Rother District Council,30/04/2023,T33HREGEN,Regeneration,20319,King Offa - Management Southern Non Dev Site Area,D2507,Security Services,600.00,AP Security (APS) Ltd,Security services provided,2042819,202304
Rother District Council,31/05/2023,T33HREGEN,Regeneration,20319,King Offa - Management Southern Non Dev Site Area,D2507,Security Services,620.00,AP Security (APS) Ltd,Security services provided,2043055,202304
Rother District Council,30/06/2023,T33HREGEN,Regeneration,20319,King Offa - Management Southern Non Dev Site Area,D2507,Security Services,600.00,AP Security (APS) Ltd,Security services provided,2043983,202305
Rother District Council,31/07/2023,T33HREGEN,Regeneration,20319,King Offa - Management Southern Non Dev Site Area,D2507,Security Services,620.00,AP Security (APS) Ltd,Security services provided,2043984,202305
Rother District Council,09/06/2023,T32DIGCUSSER,Digital & Customer Services,20239,Computer Services,D2632,Additional Computer Equipment,"1,790.83",Apple Retail UK Ltd,Additional Computer Equipment - New PC/Computer,2044138,202305
Rother District Council,05/04/2023,T32DIGCUSSER,Digital & Customer Services,20239,Computer Services,D2633,Computer Equipment,"15,801.66",Apple Retail UK Ltd,Computer Equipment - New - Computer Hardware,2042659,202304
Rother District Council,15/06/2023,T3ZCAPITAL,Housing ,70751,Capital - Temporary Accommodation,N1005,Other fees,"4,200.00",APS Tree Surgery,Other Fees - Capital exp Std VAT,2043054,202304
Rother District Council,30/06/2023,T31CHFFIN,Chief Finance Officer (S151),20222,Accountancy,D2636,Computer Software,"1,100.87",Arribatec UK Ltd,Computer Software - charged to departments,2043291,202305
Rother District Council,31/07/2023,T31CHFFIN,Chief Finance Officer (S151),20222,Accountancy,D2636,Computer Software,"1,100.87",Arribatec UK Ltd,Computer Software - charged to departments,2043837,202306
Rother District Council,31/08/2023,T31CHFFIN,Chief Finance Officer (S151),20222,Accountancy,D2636,Computer Software,"1,100.87",Arribatec UK Ltd,Computer Software - charged to departments,2044419,202306
Rother District Council,10/08/2023,T31CHFFIN,Chief Finance Officer (S151),20212,Risk Management/Insurance,D2520,Insurance,75.00,Arthur J. Gallagher Insurance Brokers Ltd,Insurance - BROKER,2043963,202305
Rother District Council,05/07/2023,T33HOUSING,Housing,20261,"TA Purchases (prev - 41 Jameson Mews, Bexhill on Sea)",D2520,Insurance,62.32,Arthur J. Gallagher Insurance Brokers Ltd,Insurance - Property building Insurance,2042926,202304
Rother District Council,11/08/2023,T31CHFFIN,Chief Finance Officer (S151),20222,Accountancy,A2203,Training,188.00,Arun District Council,Training,2043995,202305
Rother District Council,11/08/2023,T31DEMSERV,Democratic Services,20158,Committee Service General Exp,A2203,Training,235.00,Arun District Council,Training,2043995,202305
Rother District Council,11/08/2023,T32DIGCUSSER,Digital & Customer Services,20236,Customer Services and Development,A2203,Training,232.00,Arun District Council,Training,2043995,202305
Rother District Council,11/08/2023,T32REVBEN,Revenues & Benefits,20215,Revenue and Benefits,A2203,Training,300.00,Arun District Council,Training,2043995,202305
Rother District Council,11/08/2023,T33CLIMCHNG,Climate Change Strategy,20273,Environment Strategy,A2203,Training,388.00,Arun District Council,Training,2043995,202305
Rother District Council,11/08/2023,T33HOUSING,Housing,20204,Housing Administration Account,A2203,Training,176.00,Arun District Council,Training,2043995,202305
Rother District Council,11/08/2023,T33NBHDSERV,Neighbourhood Services,20120,Neighbourhood Services,A2203,Training,60.00,Arun District Council,Training,2043995,202305
Rother District Council,11/08/2023,T33PLANDEV,Planning Development Management,20244,General Planning Expenses,A2203,Training,612.00,Arun District Council,Training,2043995,202305
Rother District Council,01/09/2023,T341PRECEPTS,Precepts,42203,Parish Precepts,F1201,Parish precepts,"6,825.00",Ashburnham and  Penhurst Parish Council,Parish precepts,2043481,202305
Rother District Council,07/08/2023,T31DEMSERV,Democratic Services,20156,Representing Local Interest,D2734,Members Training and Seminars,99.00,Association for Public Service Excellence (APSE),Members Training and Seminars - Expenses Fees,2043905,202305
Rother District Council,11/09/2023,T33HREGEN,Regeneration,20145,Maintenance Services,C1101,Vehicle Repairs & Servicing,21.97,Autolec Motor Factors / Alliance Automotive UK LV Ltd,Vehicle Insurance - Marine-Safety Boat Insurance,2044453,202306
Rother District Council,08/06/2023,T33HREGEN,Regeneration,20145,Maintenance Services,C1101,Vehicle Repairs & Servicing,23.47,Autolec Motor Factors / Alliance Automotive UK LV Ltd,Vehicle Repairs & Servicing,2042545,202304
Rother District Council,08/06/2023,T33HREGEN,Regeneration,20145,Maintenance Services,C1101,Vehicle Repairs & Servicing,20.40,Autolec Motor Factors / Alliance Automotive UK LV Ltd,Vehicle Repairs & Servicing,2042545,202304
Rother District Council,13/07/2023,T33HREGEN,Regeneration,20145,Maintenance Services,C1101,Vehicle Repairs & Servicing,11.81,Autolec Motor Factors / Alliance Automotive UK LV Ltd,Vehicle Repairs & Servicing,2044022,202306
Rother District Council,08/08/2023,T33HREGEN,Regeneration,20145,Maintenance Services,C1101,Vehicle Repairs & Servicing,42.14,Autolec Motor Factors / Alliance Automotive UK LV Ltd,Vehicle Repairs & Servicing,2044023,202306
Rother District Council,22/08/2023,T33HREGEN,Regeneration,20145,Maintenance Services,C1101,Vehicle Repairs & Servicing,11.33,Autolec Motor Factors / Alliance Automotive UK LV Ltd,Vehicle Repairs & Servicing,2044024,202306
Rother District Council,23/06/2023,T31HUMANRES,Human Resources,20171,Human Resources,D2513,Hired and Contracted services,164.94,AVC Wise Ltd,Hired and contracted services - Service fee paid,2042717,202304
Rother District Council,24/07/2023,T31HUMANRES,Human Resources,20171,Human Resources,D2513,Hired and Contracted services,205.09,AVC Wise Ltd,Hired and contracted services - Service fee paid,2043381,202305
Rother District Council,23/08/2023,T31HUMANRES,Human Resources,20171,Human Resources,D2513,Hired and Contracted services,219.90,AVC Wise Ltd,Hired and contracted services - Service fee paid,2044213,202306
Rother District Council,29/07/2023,T32DIGCUSSER,Digital & Customer Services,20239,Computer Services,D2635,Computer Licences,400.00,Avenell Ltd,Computer Licences - CAIRNS Cemetery Software,2043868,202305
Rother District Council,27/06/2023,T31HUMANRES,Human Resources,20176,Administrative Offices - Print Room,B1100,Repairs to Premises,175.00,B and G Environmental Services Limited,Repairs to Premises - Drainage Clearance,2044096,202305
Rother District Council,21/06/2023,T33HOUSING,Housing,20261,"TA Purchases (prev - 41 Jameson Mews, Bexhill on Sea)",D2513,Hired and Contracted services,450.00,B and G Environmental Services Limited,Hired and contracted services - Service fee paid,2042630,202304
Rother District Council,14/07/2023,T33HOUSING,Housing,20261,"TA Purchases (prev - 41 Jameson Mews, Bexhill on Sea)",D2513,Hired and Contracted services,275.00,B and G Environmental Services Limited,Hired and contracted services - Service fee paid,2043075,202304
Rother District Council,05/06/2023,T33NBHDSERV,Neighbourhood Services,20128,Public Conveniences,B1100,Repairs to Premises,195.00,B and G Environmental Services Limited,Repairs to Premises - Drainage Clearance,2042422,202304
Rother District Council,03/07/2023,T33NBHDSERV,Neighbourhood Services,20128,Public Conveniences,B1100,Repairs to Premises,180.00,B and G Environmental Services Limited,Repairs to Premises - Drainage Clearance,2043321,202305
Rother District Council,28/06/2023,T33NBHDSERV,Neighbourhood Services,20137,Car Parks,B1100,Repairs to Premises,415.00,B and G Environmental Services Limited,Repairs to Premises - Drainage Clearance,2043519,202305
Rother District Council,18/07/2023,T33NBHDSERV,Neighbourhood Services,20137,Car Parks,B1100,Repairs to Premises,415.00,B and G Environmental Services Limited,Repairs to Premises - Drainage Clearance,2043829,202305
Rother District Council,11/08/2023,T33NBHDSERV,Neighbourhood Services,20128,Public Conveniences,B1100,Repairs to Premises,175.00,B and G Environmental Services Limited,Repairs to Premises - Drainage Clearance,2043993,202305
Rother District Council,18/08/2023,T33NBHDSERV,Neighbourhood Services,20128,Public Conveniences,B1100,Repairs to Premises,195.00,B and G Environmental Services Limited,Repairs to Premises - Drainage Clearance,2044218,202306
Rother District Council,03/08/2023,T33NBHDSERV,Neighbourhood Services,20114,Bexhill Parks & Open Spaces,B1100,Repairs to Premises,950.00,B and G Environmental Services Limited,Repairs to Premises - Parks- Drainage Works,2043991,202305
Rother District Council,06/07/2023,T33NBHDSERV,Neighbourhood Services,20115,Rye Area Parks & Gardens,D1201,Equipment & Materials,50.00,B.F.J. Engraving Ltd,Equipment & Materials - Parks Purchase of Seats/ Benches/Plaques,2042995,202304
Rother District Council,06/07/2023,T33NBHDSERV,Neighbourhood Services,20114,Bexhill Parks & Open Spaces,D1201,Equipment & Materials,45.00,B.F.J. Engraving Ltd,Equipment & Materials - Parks Purchase of Seats/ Benches/Plaques,2042995,202304
Rother District Council,06/07/2023,T33NBHDSERV,Neighbourhood Services,20115,Rye Area Parks & Gardens,D2513,Hired and Contracted services,5.00,B.F.J. Engraving Ltd,Hired and contracted services - Delivery and/or Packaging of Equipm,2042995,202304
Rother District Council,06/07/2023,T33NBHDSERV,Neighbourhood Services,20114,Bexhill Parks & Open Spaces,D2513,Hired and Contracted services,5.00,B.F.J. Engraving Ltd,Hired and contracted services - Delivery and/or Packaging of Equipm,2042995,202304
Rother District Council,31/07/2023,T3ZCAPITAL,Regeneration,70779,Capital - The Heart of Sidley Community Hub Project,N1004,Architects & Consultant Fees,"3,070.00",Baker Architectural Ltd,Architects & Consultant Fees Capital-Architect and Conslt Fees,2043267,202305
Rother District Council,20/06/2023,T32DIGCUSSER,Digital & Customer Services,20241,Stationery,D2420,General office supplies (Stationery purchased from ext suppliers),106.52,Banner Group Ltd,General office supplies - Stationery (Stationery Services to buy ONLY),2043092,202304
Rother District Council,22/06/2023,T32DIGCUSSER,Digital & Customer Services,20241,Stationery,D2420,General office supplies (Stationery purchased from ext suppliers),45.40,Banner Group Ltd,General office supplies - Stationery (Stationery Services to buy ONLY),2043093,202304
Rother District Council,26/06/2023,T32DIGCUSSER,Digital & Customer Services,20241,Stationery,D2420,General office supplies (Stationery purchased from ext suppliers),2.08,Banner Group Ltd,General office supplies - Stationery (Stationery Services to buy ONLY),2043094,202304
Rother District Council,24/07/2023,T32DIGCUSSER,Digital & Customer Services,20241,Stationery,D2420,General office supplies (Stationery purchased from ext suppliers),36.64,Banner Group Ltd,General office supplies - Stationery (Stationery Services to buy ONLY),2043788,202305
Rother District Council,31/07/2023,T32DIGCUSSER,Digital & Customer Services,20241,Stationery,D2420,General office supplies (Stationery purchased from ext suppliers),119.96,Banner Group Ltd,General office supplies - Stationery (Stationery Services to buy ONLY),2043789,202305
Rother District Council,08/08/2023,T32DIGCUSSER,Digital & Customer Services,20241,Stationery,D2420,General office supplies (Stationery purchased from ext suppliers),20.82,Banner Group Ltd,General office supplies - Stationery (Stationery Services to buy ONLY),2043790,202305
Rother District Council,24/07/2023,T32DIGCUSSER,Digital & Customer Services,20241,Stationery,D2420,General office supplies (Stationery purchased from ext suppliers),32.66,Banner Group Ltd,General office supplies - Stationery (Stationery Services to buy ONLY),2043791,202305
Rother District Council,10/08/2023,T32DIGCUSSER,Digital & Customer Services,20241,Stationery,D2420,General office supplies (Stationery purchased from ext suppliers),35.02,Banner Group Ltd,General office supplies - Stationery (Stationery Services to buy ONLY),2043934,202305
Rother District Council,16/08/2023,T32DIGCUSSER,Digital & Customer Services,20241,Stationery,D2420,General office supplies (Stationery purchased from ext suppliers),10.83,Banner Group Ltd,General office supplies - Stationery (Stationery Services to buy ONLY),2044007,202305
Rother District Council,17/08/2023,T32DIGCUSSER,Digital & Customer Services,20241,Stationery,D2420,General office supplies (Stationery purchased from ext suppliers),20.13,Banner Group Ltd,General office supplies - Stationery (Stationery Services to buy ONLY),2044076,202305
Rother District Council,23/08/2023,T32DIGCUSSER,Digital & Customer Services,20241,Stationery,D2420,General office supplies (Stationery purchased from ext suppliers),15.82,Banner Group Ltd,General office supplies - Stationery (Stationery Services to buy ONLY),2044162,202306
Rother District Council,05/09/2023,T32DIGCUSSER,Digital & Customer Services,20241,Stationery,D2420,General office supplies (Stationery purchased from ext suppliers),16.98,Banner Group Ltd,General office supplies - Stationery (Stationery Services to buy ONLY),2044392,202306
Rother District Council,11/09/2023,T32DIGCUSSER,Digital & Customer Services,20241,Stationery,D2420,General office supplies (Stationery purchased from ext suppliers),21.60,Banner Group Ltd,General office supplies - Stationery (Stationery Services to buy ONLY),2044534,202306
Rother District Council,22/06/2023,T33NBHDSERV,Neighbourhood Services,20114,Bexhill Parks & Open Spaces,B1100,Repairs to Premises,148.00,Barcham Trees Plc,Repairs to Premises - Parks- Purchase of Trees,2043048,202304
Rother District Council,04/08/2023,T3ZCAPITAL,Corporate Policy & Projects,70714,Capital - Community Grants,N1011,Capital Grants,"1,723.00",Battle Local Action Plan,Capital Grants - Community Grants Scheme,2043827,202305
Rother District Council,03/07/2023,T3ZCAPITAL,Climate Change Strategy,70774,Capital � Village Halls Energy Project,N1005,Other fees,105.00,Battle Memorial Halls Management Committee,Hired and contracted services - Service fee paid,2043346,202305
Rother District Council,01/09/2023,T341PRECEPTS,Precepts,42203,Parish Precepts,F1201,Parish precepts,"199,888.50",Battle Town Council,Parish precepts,2043482,202305
Rother District Council,01/05/2023,T33NBHDSERV,Neighbourhood Services,20107,Camber Beach & Foreshore,D2621,Telephones,59.00,Beaming Ltd,Telephones - Broadband Connection,2042662,202304
Rother District Council,01/04/2023,T33NBHDSERV,Neighbourhood Services,20107,Camber Beach & Foreshore,D2621,Telephones,59.00,Beaming Ltd,Telephones - Broadband Connection,2042663,202304
Rother District Council,01/09/2023,T341PRECEPTS,Precepts,42203,Parish Precepts,F1201,Parish precepts,"12,500.00",Beckley Parish Council,Parish precepts,2043483,202305
Rother District Council,24/07/2023,T31DEMSERV,Democratic Services,20156,Representing Local Interest,D2734,Members Training and Seminars,756.00,Beckwith Consulting Ltd,Members Training and Seminars,2043034,202305
Rother District Council,06/07/2023,T33HOUSING,Housing,20261,"TA Purchases (prev - 41 Jameson Mews, Bexhill on Sea)",D2513,Hired and Contracted services,65.00,Ben Smith Appliances,Hired and contracted services - Service fee paid,2042760,202304
Rother District Council,16/08/2023,T33HOUSING,Housing,20261,"TA Purchases (prev - 41 Jameson Mews, Bexhill on Sea)",D2513,Hired and Contracted services,65.00,Ben Smith Appliances,Hired and contracted services - Service fee paid,2044003,202305
Rother District Council,16/08/2023,T33HOUSING,Housing,20261,"TA Purchases (prev - 41 Jameson Mews, Bexhill on Sea)",D2513,Hired and Contracted services,65.00,Ben Smith Appliances,Hired and contracted services - Service fee paid,2044004,202305
Rother District Council,24/04/2023,T3ZCAPITAL,Housing ,70725,Capital - Blackfriars,N1004,Architects & Consultant Fees,"2,613.00",Bevan Brittan LLP,Architects & Consultant Fees Capital-Architect and Conslt Fees,2042641,202304
Rother District Council,28/07/2023,T3ZCAPITAL,Housing ,70725,Capital - Blackfriars,N1004,Architects & Consultant Fees,897.00,Bevan Brittan LLP,Architects & Consultant Fees Capital-Architect and Conslt Fees,2044035,202305
Rother District Council,01/08/2023,T3ZCAPITAL,Housing ,70725,Capital - Blackfriars,N1005,Other fees,"2,767.50",Bevan Brittan LLP,Other Fees - Capital exp Std VAT,2043541,202305
Rother District Council,28/04/2023,T3ZCAPITAL,Corporate Policy & Projects,70754,Capital - King Offa Residential Development Scheme,N1005,Other fees,"2,613.00",Bevan Brittan LLP,Other Fees - Capital exp Std VAT,2044034,202306
Rother District Council,28/04/2023,T3ZCAPITAL,Corporate Policy & Projects,70754,Capital - King Offa Residential Development Scheme,N1005,Other fees,78.00,Bevan Brittan LLP,Other Fees - Capital exp Std VAT,2044034,202306
Rother District Council,07/07/2023,T33HOUSING,Housing ,20309,Homelessness Prevention Grant,D2513,Hired and Contracted services,"7,500.00",Bexhill & Rother Homelessness Unity Group (HUG) CIO,Hired and contracted services - Service fee paid,2042726,202304
Rother District Council,31/05/2023,T31DEMSERV,Democratic Services,20163,District Council Elections,D2513,Hired and Contracted services,250.00,Bexhill Amateur Athletic Community Association,Hire of Premises (RDC) - Hire of Premises (RDC),2042532,202304
Rother District Council,28/07/2023,T33NBHDSERV,Neighbourhood Services,20123,Cemeteries,D2513,Hired and Contracted services,"1,324.00",Bexhill Funeral Service / Dignity,Hired and contracted services - Parks-Public Health Burials,2043033,202304
Rother District Council,23/08/2023,T33NBHDSERV,Neighbourhood Services,20123,Cemeteries,D2513,Hired and Contracted services,655.00,Bexhill Funeral Service / Dignity,Hired and contracted services - Parks-Public Health Burials,2044207,202306
Rother District Council,20/09/2023,T33NBHDSERV,Neighbourhood Services,20123,Cemeteries,D2513,Hired and Contracted services,655.00,Bexhill Funeral Service / Dignity,Hired and contracted services - Parks-Public Health Burials,2044596,202306
Rother District Council,01/09/2023,T341PRECEPTS,Precepts,42203,Parish Precepts,F1201,Parish precepts,"325,857.50",Bexhill Town Council,Parish precepts,2043484,202305
Rother District Council,30/06/2023,T33NBHDSERV,Neighbourhood Services,20133,Refuse Collection,E2302,Third party payment private contractors,174.80,Biffa Waste Services Ltd,Third party payment private contractors - Commercial Waste Collection Contract,2042820,202304
Rother District Council,30/06/2023,T33NBHDSERV,Neighbourhood Services,20133,Refuse Collection,E2302,Third party payment private contractors,87.40,Biffa Waste Services Ltd,Third party payment private contractors - Commercial Waste Collection Contract,2042821,202304
Rother District Council,30/06/2023,T33NBHDSERV,Neighbourhood Services,20133,Refuse Collection,E2302,Third party payment private contractors,349.91,Biffa Waste Services Ltd,Third party payment private contractors - Commercial Waste Collection Contract,2043297,202305
Rother District Council,30/06/2023,T33NBHDSERV,Neighbourhood Services,20133,Refuse Collection,E2302,Third party payment private contractors,126.80,Biffa Waste Services Ltd,Third party payment private contractors - Commercial Waste Collection Contract,2043539,202305
Rother District Council,30/06/2023,T33NBHDSERV,Neighbourhood Services,20133,Refuse Collection,E2302,Third party payment private contractors,47.55,Biffa Waste Services Ltd,Third party payment private contractors - Commercial Waste Collection Contract,2043540,202305
Rother District Council,31/07/2023,T33NBHDSERV,Neighbourhood Services,20133,Refuse Collection,E2302,Third party payment private contractors,47.55,Biffa Waste Services Ltd,Third party payment private contractors - Commercial Waste Collection Contract,2043687,202305
Rother District Council,31/07/2023,T33NBHDSERV,Neighbourhood Services,20133,Refuse Collection,E2302,Third party payment private contractors,110.95,Biffa Waste Services Ltd,Third party payment private contractors - Commercial Waste Collection Contract,2043688,202305
Rother District Council,31/07/2023,T33NBHDSERV,Neighbourhood Services,20133,Refuse Collection,E2302,Third party payment private contractors,109.25,Biffa Waste Services Ltd,Third party payment private contractors - Commercial Waste Collection Contract,2043689,202305
Rother District Council,31/07/2023,T33NBHDSERV,Neighbourhood Services,20133,Refuse Collection,E2302,Third party payment private contractors,349.91,Biffa Waste Services Ltd,Third party payment private contractors - Commercial Waste Collection Contract,2043820,202305
Rother District Council,31/07/2023,T33NBHDSERV,Neighbourhood Services,20133,Refuse Collection,E2302,Third party payment private contractors,218.50,Biffa Waste Services Ltd,Third party payment private contractors - Commercial Waste Collection Contract,2043866,202305
Rother District Council,31/08/2023,T33NBHDSERV,Neighbourhood Services,20133,Refuse Collection,E2302,Third party payment private contractors,131.10,Biffa Waste Services Ltd,Third party payment private contractors - Commercial Waste Collection Contract,2044252,202306
Rother District Council,31/08/2023,T33NBHDSERV,Neighbourhood Services,20133,Refuse Collection,E2302,Third party payment private contractors,87.40,Biffa Waste Services Ltd,Third party payment private contractors - Commercial Waste Collection Contract,2044253,202306
Rother District Council,31/08/2023,T33NBHDSERV,Neighbourhood Services,20133,Refuse Collection,E2302,Third party payment private contractors,190.20,Biffa Waste Services Ltd,Third party payment private contractors - Commercial Waste Collection Contract,2044254,202306
Rother District Council,31/08/2023,T33NBHDSERV,Neighbourhood Services,20133,Refuse Collection,E2302,Third party payment private contractors,47.55,Biffa Waste Services Ltd,Third party payment private contractors - Commercial Waste Collection Contract,2044255,202306
Rother District Council,31/08/2023,T33NBHDSERV,Neighbourhood Services,20133,Refuse Collection,E2302,Third party payment private contractors,349.91,Biffa Waste Services Ltd,Third party payment private contractors - Commercial Waste Collection Contract,2044665,202306
Rother District Council,07/08/2023,T33HREGEN,Regeneration,20153,"Elva Business Centre, Bexhill",B1100,Repairs to Premises,165.00,Black Sheep Engineering Ltd,Repairs to Premises - Fire Alarm System Maintenance,2043762,202306
Rother District Council,04/07/2023,T33HREGEN,Regeneration,20150,Peasmarsh Workshops,B1100,Repairs to Premises,225.00,Black Sheep Engineering Ltd,Repairs to Premises - Repairs - Electrical Works,2042616,202304
Rother District Council,04/07/2023,T33HREGEN,Regeneration,20150,Peasmarsh Workshops,B1100,Repairs to Premises,225.00,Black Sheep Engineering Ltd,Repairs to Premises - Repairs - Electrical Works,2042616,202304
Rother District Council,04/07/2023,T33HREGEN,Regeneration,20150,Peasmarsh Workshops,B1100,Repairs to Premises,225.00,Black Sheep Engineering Ltd,Repairs to Premises - Repairs - Electrical Works,2042616,202304
Rother District Council,24/07/2023,T33HREGEN,Regeneration,20153,"Elva Business Centre, Bexhill",B1100,Repairs to Premises,355.00,Black Sheep Engineering Ltd,Repairs to Premises - Repairs - Electrical Works,2043021,202304
Rother District Council,03/08/2023,T33HREGEN,Regeneration,20153,"Elva Business Centre, Bexhill",B1100,Repairs to Premises,"1,729.50",Black Sheep Engineering Ltd,Repairs to Premises - Repairs - Electrical Works,2043763,202305
Rother District Council,20/07/2023,T33HREGEN,Regeneration,20153,"Elva Business Centre, Bexhill",B1100,Repairs to Premises,475.00,Black Sheep Engineering Ltd,Repairs to Premises - Repairs - Electrical Works,2043764,202305
Rother District Council,10/08/2023,T33HREGEN,Regeneration,20150,Peasmarsh Workshops,B1100,Repairs to Premises,420.00,Black Sheep Engineering Ltd,Repairs to Premises - Repairs - Electrical Works,2044018,202305
Rother District Council,10/08/2023,T33HREGEN,Regeneration,20150,Peasmarsh Workshops,B1100,Repairs to Premises,640.00,Black Sheep Engineering Ltd,Repairs to Premises - Repairs - Electrical Works,2044018,202305
Rother District Council,10/08/2023,T33HREGEN,Regeneration,20150,Peasmarsh Workshops,B1100,Repairs to Premises,375.00,Black Sheep Engineering Ltd,Repairs to Premises - Repairs - Electrical Works,2044018,202305
Rother District Council,31/07/2023,T33HOUSING,Housing,20200,Housing Needs - HB (Housing Benefit),D2514,Accommodation Costs,295.00,BNM Parkstone LLP T/A Fourways Residential,Accommodation Costs,2043394,202305
Rother District Council,01/09/2023,T341PRECEPTS,Precepts,42203,Parish Precepts,F1201,Parish precepts,"5,710.00",Bodiam Parish Council,Parish precepts,2043485,202305
Rother District Council,18/07/2023,T33HOUSING,Housing,20261,"TA Purchases (prev - 41 Jameson Mews, Bexhill on Sea)",D2513,Hired and Contracted services,35.70,Booker and Best Ltd,Hired and contracted services - Service fee paid,2043325,202305
Rother District Council,17/08/2023,T33HOUSING,Housing,20261,"TA Purchases (prev - 41 Jameson Mews, Bexhill on Sea)",D2513,Hired and Contracted services,438.26,Booker and Best Ltd,Hired and contracted services - Service fee paid,2043957,202305
Rother District Council,21/08/2023,T33HOUSING,Housing,20304,Housing First,D2513,Hired and Contracted services,254.60,Booker and Best Ltd,Hired and contracted services - Service fee paid,2043972,202305
Rother District Council,23/08/2023,T33HOUSING,Housing,20261,"TA Purchases (prev - 41 Jameson Mews, Bexhill on Sea)",D2513,Hired and Contracted services,203.50,Booker and Best Ltd,Hired and contracted services - Service fee paid,2044088,202305
Rother District Council,23/08/2023,T33HOUSING,Housing,20261,"TA Purchases (prev - 41 Jameson Mews, Bexhill on Sea)",D2513,Hired and Contracted services,203.50,Booker and Best Ltd,Hired and contracted services - Service fee paid,2044090,202305
Rother District Council,23/08/2023,T33HOUSING,Housing,20261,"TA Purchases (prev - 41 Jameson Mews, Bexhill on Sea)",D2513,Hired and Contracted services,203.50,Booker and Best Ltd,Hired and contracted services - Service fee paid,2044091,202305
Rother District Council,10/08/2023,T3ZCAPITAL,Housing ,70751,Capital - Temporary Accommodation,N1005,Other fees,50.00,Booker and Best Ltd,Other Fees - Capital exp Std VAT,2043683,202306
Rother District Council,26/07/2023,T3ZCAPITAL,Housing ,70751,Capital - Temporary Accommodation,N1005,Other fees,265.00,Booker and Best Ltd,Other Fees - Capital exp Std VAT,2043811,202305
Rother District Council,22/08/2023,T3ZCAPITAL,Housing ,70751,Capital - Temporary Accommodation,N1005,Other fees,190.30,Booker and Best Ltd,Other Fees - Capital exp Std VAT,2043967,202305
Rother District Council,22/08/2023,T3ZCAPITAL,Housing ,70751,Capital - Temporary Accommodation,N1005,Other fees,"4,310.43",Booker and Best Ltd,Other Fees - Capital exp Std VAT,2043968,202305
Rother District Council,18/08/2023,T3ZCAPITAL,Housing ,70751,Capital - Temporary Accommodation,N1005,Other fees,"3,220.00",Booker and Best Ltd,Other Fees - Capital exp Std VAT,2043970,202305
Rother District Council,14/08/2023,T3ZCAPITAL,Housing ,70751,Capital - Temporary Accommodation,N1005,Other fees,550.00,Booker and Best Ltd,Other Fees - Capital exp Std VAT,2044005,202305
Rother District Council,18/08/2023,T3ZCAPITAL,Housing ,70751,Capital - Temporary Accommodation,N1005,Other fees,528.64,Booker and Best Ltd,Other Fees - Capital exp Std VAT,2044006,202305
Rother District Council,21/08/2023,T3ZCAPITAL,Housing ,70751,Capital - Temporary Accommodation,N1005,Other fees,"2,660.00",Booker and Best Ltd,Other Fees - Capital exp Std VAT,2044391,202306
Rother District Council,03/05/2023,T31DEMSERV,Democratic Services,20163,District Council Elections,D2312,Refreshments,43.09,Booker Ltd,Refreshments - Catering/Refreshments for Meetings,2042668,202304
Rother District Council,03/05/2023,T31DEMSERV,Democratic Services,20156,Representing Local Interest,D2312,Refreshments,31.76,Booker Ltd,Refreshments - Catering/Refreshments for Meetings,2042668,202304
Rother District Council,03/05/2023,T31DEMSERV,Democratic Services,20156,Representing Local Interest,D2312,Refreshments,138.33,Booker Ltd,Refreshments - Catering/Refreshments for Meetings,2042668,202304
Rother District Council,31/07/2023,T3ZCAPITAL,Regeneration,70779,Capital - The Heart of Sidley Community Hub Project,N1004,Architects & Consultant Fees,"5,227.00",Borne Project Services Ltd,Architects & Consultant Fees Capital-Architect and Conslt Fees,2043794,202305
Rother District Council,29/08/2023,T3ZCAPITAL,Corporate Policy & Projects,70750,Capital - Development of Council Owned Sites,N1004,Architects & Consultant Fees,"1,800.00",Boutique Modern Limited,Architects & Consultant Fees Capital-Architect and Conslt Fees,2044618,202306
Rother District Council,01/09/2023,T341PRECEPTS,Precepts,42203,Parish Precepts,F1201,Parish precepts,"19,972.50",Brede Parish Council,Parish precepts,2043486,202305
Rother District Council,19/06/2023,T3ZCAPITAL,Housing ,70725,Capital - Blackfriars,N1003,Construction/Conversion,"323,229.69",Breheny Civil Engineering Ltd,Construction/Conversion Capital-Contract Payments - General,2042278,202304
Rother District Council,21/07/2023,T3ZCAPITAL,Housing ,70725,Capital - Blackfriars,N1003,Construction/Conversion,"332,047.49",Breheny Civil Engineering Ltd,Construction/Conversion Capital-Contract Payments - General,2043611,202305
Rother District Council,15/08/2023,T3ZCAPITAL,Housing ,70725,Capital - Blackfriars,N1003,Construction/Conversion,"501,659.36",Breheny Civil Engineering Ltd,Construction/Conversion Capital-Contract Payments - General,2043907,202305
Rother District Council,11/09/2023,T3ZCAPITAL,Housing ,70725,Capital - Blackfriars,N1003,Construction/Conversion,"647,322.77",Breheny Civil Engineering Ltd,Construction/Conversion Capital-Contract Payments - General,2044459,202306
Rother District Council,01/09/2023,T341PRECEPTS,Precepts,42203,Parish Precepts,F1201,Parish precepts,"3,947.00",Brightling Parish Council,Parish precepts,2043487,202305
Rother District Council,25/07/2023,T33HOUSING,Housing,20204,Housing Administration Account,D2513,Hired and Contracted services,"1,575.00",Brighton & Hove City Council,Hired and Contracted services,2043121,202306
Rother District Council,10/05/2023,T33HOUSING,Housing,20204,Housing Administration Account,D2513,Hired and Contracted services,207.50,Brighton & Hove City Council,Hired and contracted services - Service fee paid,2042643,202304
Rother District Council,10/07/2023,T33HOUSING,Housing ,20309,Homelessness Prevention Grant,D2513,Hired and Contracted services,"5,901.75",Brighton Housing Trust (BHT),Hired and contracted services - Service fee paid,2042725,202304
Rother District Council,05/09/2023,T33HOUSING,Housing,20261,"TA Purchases (prev - 41 Jameson Mews, Bexhill on Sea)",B2201,Electricity,54.72,British Gas Business (600 Accounts only),Electricity - Electricity Charges,2044526,202306
Rother District Council,07/06/2023,T33HOUSING,Housing,20261,"TA Purchases (prev - 41 Jameson Mews, Bexhill on Sea)",B2202,Gas,464.76,British Gas Business (600 Accounts only),Gas - Gas Charges,2042530,202304
Rother District Council,07/07/2023,T33HOUSING,Housing,20261,"TA Purchases (prev - 41 Jameson Mews, Bexhill on Sea)",B2202,Gas,71.33,British Gas Business (600 Accounts only),Gas - Gas Charges,2044069,202306
Rother District Council,08/08/2023,T33HOUSING,Housing,20261,"TA Purchases (prev - 41 Jameson Mews, Bexhill on Sea)",B2202,Gas,65.36,British Gas Business (600 Accounts only),Gas - Gas Charges,2044070,202306
Rother District Council,11/07/2023,T33HREGEN,Regeneration,20146,West Trading Estate,B2201,Electricity,67.92,British Gas Lite,Electricity - Electricity Charges,2043477,202305
Rother District Council,11/08/2023,T33HREGEN,Regeneration,20146,West Trading Estate,B2201,Electricity,70.21,British Gas Lite,Electricity - Electricity Charges,2043805,202305
Rother District Council,11/09/2023,T33HREGEN,Regeneration,20146,West Trading Estate,B2201,Electricity,70.09,British Gas Lite,Electricity - Electricity Charges,2044524,202306
Rother District Council,11/06/2023,T33HREGEN,Regeneration,20146,West Trading Estate,B2202,Gas,70.41,British Gas Lite,Electricity - Electricity Charges,2042703,202304
Rother District Council,09/08/2023,T33HOUSING,Housing,20261,"TA Purchases (prev - 41 Jameson Mews, Bexhill on Sea)",B2202,Gas,123.69,British Gas Trading Ltd (Residential),Gas - Gas Charges,2043875,202305
Rother District Council,12/06/2023,T32DIGCUSSER,Digital & Customer Services,20242,Communications-Phones,D2621,Telephones,528.49,BT British Telecommunications plc,Telephones - BT-Rental-General,2043086,202305
Rother District Council,12/06/2023,T32DIGCUSSER,Digital & Customer Services,20242,Communications-Phones,D2621,Telephones,40.00,BT British Telecommunications plc,Telephones - BT-Rental-General,2043086,202305
Rother District Council,27/06/2023,T32DIGCUSSER,Digital & Customer Services,20242,Communications-Phones,D2621,Telephones,40.00,BT British Telecommunications plc,Telephones - BT-Rental-General,2043376,202305
Rother District Council,27/06/2023,T32DIGCUSSER,Digital & Customer Services,20242,Communications-Phones,D2621,Telephones,381.01,BT British Telecommunications plc,Telephones - BT-Rental-General,2043376,202305
Rother District Council,27/07/2023,T32DIGCUSSER,Digital & Customer Services,20242,Communications-Phones,D2621,Telephones,385.51,BT British Telecommunications plc,Telephones - BT-Rental-General,2043399,202305
Rother District Council,27/08/2023,T32DIGCUSSER,Digital & Customer Services,20242,Communications-Phones,D2621,Telephones,494.69,BT British Telecommunications plc,Telephones - BT-Rental-General,2044370,202306
Rother District Council,01/09/2023,T341PRECEPTS,Precepts,42203,Parish Precepts,F1201,Parish precepts,"52,896.00",Burwash Parish Council,Parish precepts,2043488,202305
Rother District Council,31/07/2023,T33HREGEN,Regeneration,20148,Misc Land & Buildings,B1100,Repairs to Premises,5.98,C Brewer and Sons Ltd,Repairs to Premises - Purchase of Materials - Build Maint,2043784,202305
Rother District Council,31/05/2023,T33NBHDSERV,Neighbourhood Services,20114,Bexhill Parks & Open Spaces,B1100,Repairs to Premises,38.98,C Brewer and Sons Ltd,Repairs to Premises,2042215,202304
Rother District Council,31/05/2023,T33NBHDSERV,Neighbourhood Services,20128,Public Conveniences,B1100,Repairs to Premises,51.34,C Brewer and Sons Ltd,Repairs to Premises - Purchase of Materials - Build Maint,2042214,202304
Rother District Council,31/05/2023,T33NBHDSERV,Neighbourhood Services,20128,Public Conveniences,B1100,Repairs to Premises,18.49,C Brewer and Sons Ltd,Repairs to Premises - Purchase of Materials - Build Maint,2042216,202304
Rother District Council,31/05/2023,T33NBHDSERV,Neighbourhood Services,20114,Bexhill Parks & Open Spaces,B1100,Repairs to Premises,13.84,C Brewer and Sons Ltd,Repairs to Premises - Purchase of Materials - Build Maint,2042217,202304
Rother District Council,22/06/2023,T33NBHDSERV,Neighbourhood Services,20108,Bexhill Promenade & Foreshore,B1100,Repairs to Premises,38.19,C Brewer and Sons Ltd,Repairs to Premises - Purchase of Materials - Build Maint,2043208,202305
Rother District Council,31/07/2023,T33NBHDSERV,Neighbourhood Services,20114,Bexhill Parks & Open Spaces,B1100,Repairs to Premises,48.53,C Brewer and Sons Ltd,Repairs to Premises - Purchase of Materials - Build Maint,2043785,202305
Rother District Council,31/08/2023,T33NBHDSERV,Neighbourhood Services,20128,Public Conveniences,B1100,Repairs to Premises,35.80,C Brewer and Sons Ltd,Repairs to Premises - Purchase of Materials - Build Maint,2044421,202306
Rother District Council,02/08/2023,T32ENVSERV,"Environmental Services, Licencing & Community Safety",32134,EH Pollution R + W Partnership,D2513,Hired and Contracted services,"1,794.00",C P J Field & Co Ltd,Hired and contracted services - Parks-Public Health Burials,2043389,202305
Rother District Council,16/07/2023,T31DEMSERV,Democratic Services,20164,Parish Council Elections,D2513,Hired and Contracted services,330.00,Camber Memorial Hall,Hired and Contracted services,2043721,202305
Rother District Council,01/09/2023,T341PRECEPTS,Precepts,42203,Parish Precepts,F1201,Parish precepts,"31,749.00",Camber Parish Council,Parish precepts,2043489,202305
Rother District Council,18/07/2023,T32DIGCUSSER,Digital & Customer Services,20240,Printing Services,D2638,Photocopier Contracts,806.43,Canon (UK) Ltd,Photocopier Contracts,2043709,202305
Rother District Council,03/08/2023,T32DIGCUSSER,Digital & Customer Services,20240,Printing Services,D2638,Photocopier Contracts,260.40,Canon (UK) Ltd,Photocopier Contracts,2043710,202305
Rother District Council,03/08/2023,T32DIGCUSSER,Digital & Customer Services,20240,Printing Services,D2638,Photocopier Contracts,"4,011.61",Canon (UK) Ltd,Photocopier Contracts,2043711,202305
Rother District Council,09/08/2023,T32DIGCUSSER,Digital & Customer Services,20240,Printing Services,D2638,Photocopier Contracts,"1,439.92",Canon (UK) Ltd,Photocopier Contracts,2043712,202305
Rother District Council,28/06/2023,T32DIGCUSSER,Digital & Customer Services,20240,Printing Services,D2417,Photocopy Paper by external suppliers,476.52,Canon (UK) Ltd,Photocopy Paper by external supplier - Wide Format Consumables,2042479,202304
Rother District Council,27/07/2023,T32DIGCUSSER,Digital & Customer Services,20240,Printing Services,D2417,Photocopy Paper by external suppliers,645.49,Canon (UK) Ltd,Photocopy Paper by external supplier - Wide Format Consumables,2043479,202305
Rother District Council,29/08/2023,T32DIGCUSSER,Digital & Customer Services,20240,Printing Services,D2417,Photocopy Paper by external suppliers,736.00,Canon (UK) Ltd,Photocopy Paper by external suppliers - White,2044214,202306
Rother District Council,23/05/2023,T33PLANDEV,Planning Development Management,20246,Planning Applications,A1110,Agency Staff,"6,659.14",Capita Business Services Ltd,Agency Staff,2042189,202304
Rother District Council,21/06/2023,T33PLANDEV,Planning Development Management,20246,Planning Applications,A1110,Agency Staff,"8,033.02",Capita Business Services Ltd,Agency Staff,2042642,202304
Rother District Council,24/07/2023,T33PLANDEV,Planning Development Management,20246,Planning Applications,A1110,Agency Staff,"6,893.38",Capita Property & Infrastructure Ltd,Agency Staff,2044021,202305
Rother District Council,22/08/2023,T33PLANDEV,Planning Development Management,20246,Planning Applications,A1110,Agency Staff,"5,817.63",Capita Property & Infrastructure Ltd,Agency Staff,2044281,202306
Rother District Council,27/07/2023,T31CHFFIN,Chief Finance Officer (S151),20209,Corporate management,D2511,Bank Charges,201.40,Card Processing Advisory Service Ltd,Bank Charges,2044408,202306
Rother District Council,08/06/2023,T33PLANDEV,Planning Development Management,20246,Planning Applications,A1110,Agency Staff,609.00,Carrington West Ltd,Agency Staff,2042258,202304
Rother District Council,15/06/2023,T33PLANDEV,Planning Development Management,20246,Planning Applications,A1110,Agency Staff,942.50,Carrington West Ltd,Agency Staff,2042265,202304
Rother District Council,29/06/2023,T33PLANDEV,Planning Development Management,20246,Planning Applications,A1110,Agency Staff,"1,073.00",Carrington West Ltd,Agency Staff,2042583,202304
Rother District Council,29/06/2023,T33PLANDEV,Planning Development Management,20246,Planning Applications,A1110,Agency Staff,960.00,Carrington West Ltd,Agency Staff,2042584,202304
Rother District Council,29/06/2023,T33PLANDEV,Planning Development Management,20246,Planning Applications,A1110,Agency Staff,720.00,Carrington West Ltd,Agency Staff,2042585,202304
Rother District Council,29/06/2023,T33PLANDEV,Planning Development Management,20246,Planning Applications,A1110,Agency Staff,960.00,Carrington West Ltd,Agency Staff,2042586,202304
Rother District Council,22/06/2023,T33PLANDEV,Planning Development Management,20246,Planning Applications,A1110,Agency Staff,"1,073.00",Carrington West Ltd,Agency Staff,2043091,202304
Rother District Council,06/07/2023,T33PLANDEV,Planning Development Management,20246,Planning Applications,A1110,Agency Staff,870.00,Carrington West Ltd,Agency Staff,2043423,202305
Rother District Council,13/07/2023,T33PLANDEV,Planning Development Management,20246,Planning Applications,A1110,Agency Staff,980.20,Carrington West Ltd,Agency Staff,2043424,202305
Rother District Council,20/07/2023,T33PLANDEV,Planning Development Management,20246,Planning Applications,A1110,Agency Staff,881.60,Carrington West Ltd,Agency Staff,2043425,202305
Rother District Council,27/07/2023,T33PLANDEV,Planning Development Management,20246,Planning Applications,A1110,Agency Staff,826.50,Carrington West Ltd,Agency Staff,2043426,202305
Rother District Council,03/08/2023,T33PLANDEV,Planning Development Management,20246,Planning Applications,A1110,Agency Staff,435.00,Carrington West Ltd,Agency Staff,2043427,202305
Rother District Council,16/07/2023,T33PLANDEV,Planning Development Management,20246,Planning Applications,A1110,Agency Staff,720.00,Carrington West Ltd,Agency Staff,2043612,202305
Rother District Council,13/07/2023,T33PLANDEV,Planning Development Management,20246,Planning Applications,A1110,Agency Staff,690.00,Carrington West Ltd,Agency Staff,2043613,202305
Rother District Council,20/07/2023,T33PLANDEV,Planning Development Management,20246,Planning Applications,A1110,Agency Staff,510.00,Carrington West Ltd,Agency Staff,2043614,202305
Rother District Council,20/07/2023,T33PLANDEV,Planning Development Management,20246,Planning Applications,A1110,Agency Staff,510.00,Carrington West Ltd,Agency Staff,2043871,202305
Rother District Council,17/08/2023,T33PLANDEV,Planning Development Management,20246,Planning Applications,A1110,Agency Staff,783.00,Carrington West Ltd,Agency Staff,2043941,202305
Rother District Council,10/08/2023,T33PLANDEV,Planning Development Management,20246,Planning Applications,A1110,Agency Staff,928.00,Carrington West Ltd,Agency Staff,2044015,202305
Rother District Council,30/08/2023,T33PLANDEV,Planning Development Management,20246,Planning Applications,A1110,Agency Staff,510.00,Carrington West Ltd,Agency Staff,2044130,202306
Rother District Council,31/08/2023,T33PLANDEV,Planning Development Management,20246,Planning Applications,A1110,Agency Staff,957.00,Carrington West Ltd,Agency Staff,2044131,202306
Rother District Council,24/08/2023,T33PLANDEV,Planning Development Management,20246,Planning Applications,A1110,Agency Staff,986.00,Carrington West Ltd,Agency Staff,2044132,202306
Rother District Council,31/08/2023,T33PLANDEV,Planning Development Management,20246,Planning Applications,A1110,Agency Staff,"1,620.00",Carrington West Ltd,Agency Staff,2044133,202306
Rother District Council,31/08/2023,T33PLANDEV,Planning Development Management,20246,Planning Applications,A1110,Agency Staff,"2,040.00",Carrington West Ltd,Agency Staff,2044134,202306
Rother District Council,31/08/2023,T33PLANDEV,Planning Development Management,20246,Planning Applications,A1110,Agency Staff,"3,150.00",Carrington West Ltd,Agency Staff,2044135,202306
Rother District Council,31/08/2023,T33PLANDEV,Planning Development Management,20246,Planning Applications,A1110,Agency Staff,450.00,Carrington West Ltd,Agency Staff,2044136,202306
Rother District Council,07/09/2023,T33PLANDEV,Planning Development Management,20246,Planning Applications,A1110,Agency Staff,826.50,Carrington West Ltd,Agency Staff,2044380,202306
Rother District Council,30/06/2023,T31HUMANRES,Human Resources,20159,Corporate Policy Making,D2312,Refreshments,931.50,Cascade Water Systems Ltd,Refreshments - Water Cooler,2043547,202305
Rother District Council,30/06/2023,T33HREGEN,Regeneration,20338,7-12 Beeching Road Studios ( Regeneration Project ),D2312,Refreshments,115.00,Cascade Water Systems Ltd,Refreshments - Water Cooler,2043547,202305
Rother District Council,30/06/2023,T33HOUSING,Housing,20200,Housing Needs - HB (Housing Benefit),D2514,Accommodation Costs,"1,105.00",Castle Accommodation Ltd,Accommodation Costs,2042593,202304
Rother District Council,30/06/2023,T33HOUSING,Housing,20200,Housing Needs - HB (Housing Benefit),D2514,Accommodation Costs,"10,540.00",Castle Accommodation Ltd,Accommodation Costs,2042757,202304
Rother District Council,30/06/2023,T33HOUSING,Housing,20200,Housing Needs - HB (Housing Benefit),D2514,Accommodation Costs,"3,615.00",Castle Accommodation Ltd,Accommodation Costs,2042757,202304
Rother District Council,30/06/2023,T33HOUSING,Housing ,20337,Homes for Ukraine Accommodation,D2514,Accommodation Costs,"1,800.00",Castle Accommodation Ltd,Accommodation Costs,2042757,202304
Rother District Council,30/06/2023,T33HOUSING,Housing ,20337,Homes for Ukraine Accommodation,D2514,Accommodation Costs,450.00,Castle Accommodation Ltd,Accommodation Costs,2042757,202304
Rother District Council,31/07/2023,T33HOUSING,Housing,20200,Housing Needs - HB (Housing Benefit),D2514,Accommodation Costs,"5,870.00",Castle Accommodation Ltd,Accommodation Costs,2043198,202305
Rother District Council,31/07/2023,T33HOUSING,Housing,20200,Housing Needs - HB (Housing Benefit),D2514,Accommodation Costs,"9,500.00",Castle Accommodation Ltd,Accommodation Costs,2043198,202305
Rother District Council,31/07/2023,T33HOUSING,Housing ,20337,Homes for Ukraine Accommodation,D2514,Accommodation Costs,465.00,Castle Accommodation Ltd,Accommodation Costs,2043198,202305
Rother District Council,31/07/2023,T33HOUSING,Housing ,20337,Homes for Ukraine Accommodation,D2514,Accommodation Costs,"1,860.00",Castle Accommodation Ltd,Accommodation Costs,2043198,202305
Rother District Council,31/07/2023,T33HOUSING,Housing,20200,Housing Needs - HB (Housing Benefit),D2514,Accommodation Costs,364.00,Castle Accommodation Ltd,Accommodation Costs,2043387,202305
Rother District Council,31/07/2023,T33HOUSING,Housing,20200,Housing Needs - HB (Housing Benefit),D2514,Accommodation Costs,"1,716.00",Castle Accommodation Ltd,Accommodation Costs,2043387,202305
Rother District Council,31/08/2023,T33HOUSING,Housing,20200,Housing Needs - HB (Housing Benefit),D2514,Accommodation Costs,"19,750.00",Castle Accommodation Ltd,Accommodation Costs,2044301,202306
Rother District Council,31/08/2023,T33HOUSING,Housing,20200,Housing Needs - HB (Housing Benefit),D2514,Accommodation Costs,"1,371.67",Castle Accommodation Ltd,Accommodation Costs,2044301,202306
Rother District Council,31/08/2023,T33HOUSING,Housing ,20337,Homes for Ukraine Accommodation,D2514,Accommodation Costs,"2,325.00",Castle Accommodation Ltd,Accommodation Costs,2044301,202306
Rother District Council,31/08/2023,T33HOUSING,Housing ,20337,Homes for Ukraine Accommodation,D2514,Accommodation Costs,387.50,Castle Accommodation Ltd,Accommodation Costs,2044301,202306
Rother District Council,31/08/2023,T33HOUSING,Housing,20200,Housing Needs - HB (Housing Benefit),D2514,Accommodation Costs,100.00,Castle Accommodation Ltd,Accommodation Costs,2044302,202306
Rother District Council,31/08/2023,T33HOUSING,Housing,20200,Housing Needs - HB (Housing Benefit),D2514,Accommodation Costs,"4,472.00",Castle Accommodation Ltd,Accommodation Costs,2044342,202306
Rother District Council,25/07/2023,T33HOUSING,Housing,20202,Rother Tenant Finder (prev Rother Letting Service),D2514,Accommodation Costs,909.60,Castle Estates,Accommodation Costs - Homelessness services Deposit for Landlords,2043063,202304
Rother District Council,25/07/2023,T33HOUSING,Housing,20202,Rother Tenant Finder (prev Rother Letting Service),D2514,Accommodation Costs,500.00,Castle Estates,Accommodation Costs - Homelessness services Housing Landlord Scheme-Rent payment,2043059,202304
Rother District Council,25/07/2023,T33HOUSING,Housing,20205,Housing Loans Account,D2514,Accommodation Costs,875.00,Castle Estates,Accommodation Costs - Homelessness services Rent in Advance for Homeless,2043063,202304
Rother District Council,02/06/2023,T33HREGEN,Regeneration,20338,7-12 Beeching Road Studios ( Regeneration Project ),B2421,Water,59.04,Castle Water Ltd,Water - Water Charges,2042471,202304
Rother District Council,13/06/2023,T33NBHDSERV,Neighbourhood Services,20105,Allotments- Bexhill,B2421,Water,164.74,Castle Water Ltd,Water - Water Charges,2042480,202304
Rother District Council,14/06/2023,T33NBHDSERV,Neighbourhood Services,20105,Allotments- Bexhill,B2421,Water,29.68,Castle Water Ltd,Water - Water Charges,2042484,202304
Rother District Council,26/05/2023,T33NBHDSERV,Neighbourhood Services,20114,Bexhill Parks & Open Spaces,B2421,Water,63.16,Castle Water Ltd,Water - Water Charges,2042485,202304
Rother District Council,16/06/2023,T33NBHDSERV,Neighbourhood Services,20128,Public Conveniences,B2421,Water,784.73,Castle Water Ltd,Water - Water Charges,2042824,202304
Rother District Council,23/06/2023,T33NBHDSERV,Neighbourhood Services,20114,Bexhill Parks & Open Spaces,B2421,Water,"2,354.32",Castle Water Ltd,Water - Water Charges,2042825,202304
Rother District Council,23/06/2023,T33NBHDSERV,Neighbourhood Services,20114,Bexhill Parks & Open Spaces,B2421,Water,129.93,Castle Water Ltd,Water - Water Charges,2042825,202304
Rother District Council,23/06/2023,T33NBHDSERV,Neighbourhood Services,20114,Bexhill Parks & Open Spaces,B2421,Water,583.39,Castle Water Ltd,Water - Water Charges,2043212,202305
Rother District Council,23/06/2023,T33NBHDSERV,Neighbourhood Services,20114,Bexhill Parks & Open Spaces,B2421,Water,32.20,Castle Water Ltd,Water - Water Charges,2043212,202305
Rother District Council,23/06/2023,T33NBHDSERV,Neighbourhood Services,20114,Bexhill Parks & Open Spaces,B2421,Water,54.10,Castle Water Ltd,Water - Water Charges,2043213,202305
Rother District Council,23/06/2023,T33NBHDSERV,Neighbourhood Services,20114,Bexhill Parks & Open Spaces,B2421,Water,980.40,Castle Water Ltd,Water - Water Charges,2043213,202305
Rother District Council,23/06/2023,T33NBHDSERV,Neighbourhood Services,20114,Bexhill Parks & Open Spaces,B2421,Water,48.77,Castle Water Ltd,Water - Water Charges,2043216,202305
Rother District Council,23/06/2023,T33NBHDSERV,Neighbourhood Services,20114,Bexhill Parks & Open Spaces,B2421,Water,883.81,Castle Water Ltd,Water - Water Charges,2043216,202305
Rother District Council,23/06/2023,T33NBHDSERV,Neighbourhood Services,20114,Bexhill Parks & Open Spaces,B2421,Water,857.83,Castle Water Ltd,Water - Water Charges,2043218,202305
Rother District Council,23/06/2023,T33NBHDSERV,Neighbourhood Services,20114,Bexhill Parks & Open Spaces,B2421,Water,47.34,Castle Water Ltd,Water - Water Charges,2043218,202305
Rother District Council,01/09/2023,T341PRECEPTS,Precepts,42203,Parish Precepts,F1201,Parish precepts,"16,000.00",Catsfield Parish Council,Parish precepts,2043490,202305
Rother District Council,23/08/2023,T31HUMANRES,Human Resources,20171,Human Resources,A2203,Training,55.00,Central Conference Consultants Ltd,Training,2044335,202306
Rother District Council,30/06/2023,T33NBHDSERV,Neighbourhood Services,20133,Refuse Collection,E2302,Third party payment private contractors,"2,590.28",CFH Docmail Ltd,Third party payment private contractors - Payments to Contractor,2043039,202304
Rother District Council,30/06/2023,T33NBHDSERV,Neighbourhood Services,20133,Refuse Collection,E2302,Third party payment private contractors,"8,521.88",CFH Docmail Ltd,Third party payment private contractors - Payments to Contractor,2043041,202304
Rother District Council,31/07/2023,T33NBHDSERV,Neighbourhood Services,20133,Refuse Collection,E2302,Third party payment private contractors,158.93,CFH Docmail Ltd,Third party payment private contractors - Payments to Contractor,2043767,202305
Rother District Council,31/07/2023,T33NBHDSERV,Neighbourhood Services,20133,Refuse Collection,E2302,Third party payment private contractors,693.88,CFH Docmail Ltd,Third party payment private contractors - Payments to Contractor,2043768,202305
Rother District Council,31/08/2023,T33NBHDSERV,Neighbourhood Services,20133,Refuse Collection,E2302,Third party payment private contractors,92.95,CFH Docmail Ltd,Third party payment private contractors - Payments to Contractor,2044576,202306
Rother District Council,31/08/2023,T33NBHDSERV,Neighbourhood Services,20133,Refuse Collection,E2302,Third party payment private contractors,343.48,CFH Docmail Ltd,Third party payment private contractors - Payments to Contractor,2044577,202306
Rother District Council,21/03/2023,T33HOUSING,Housing,20200,Housing Needs - HB (Housing Benefit),D2508,Removals and Storage,725.00,Chapmans of Hastings,Removals and Storage,2042032,202304
Rother District Council,05/06/2023,T33HOUSING,Housing,20200,Housing Needs - HB (Housing Benefit),D2508,Removals and Storage,175.00,Chapmans of Hastings,Removals and Storage,2042514,202304
Rother District Council,05/06/2023,T33HOUSING,Housing,20200,Housing Needs - HB (Housing Benefit),D2508,Removals and Storage,100.00,Chapmans of Hastings,Removals and Storage,2042515,202304
Rother District Council,05/06/2023,T33HOUSING,Housing,20200,Housing Needs - HB (Housing Benefit),D2508,Removals and Storage,42.00,Chapmans of Hastings,Removals and Storage,2042517,202304
Rother District Council,05/06/2023,T33HOUSING,Housing,20200,Housing Needs - HB (Housing Benefit),D2508,Removals and Storage,200.00,Chapmans of Hastings,Removals and Storage,2042518,202304
Rother District Council,03/07/2023,T33HOUSING,Housing,20200,Housing Needs - HB (Housing Benefit),D2508,Removals and Storage,787.50,Chapmans of Hastings,Removals and Storage,2042580,202304
Rother District Council,03/07/2023,T33HOUSING,Housing,20200,Housing Needs - HB (Housing Benefit),D2508,Removals and Storage,100.00,Chapmans of Hastings,Removals and Storage,2042656,202304
Rother District Council,03/07/2023,T33HOUSING,Housing,20200,Housing Needs - HB (Housing Benefit),D2508,Removals and Storage,168.00,Chapmans of Hastings,Removals and Storage,2042696,202304
Rother District Council,14/06/2023,T33HOUSING,Housing,20200,Housing Needs - HB (Housing Benefit),D2508,Removals and Storage,445.71,Chapmans of Hastings,Removals and Storage,2042790,202304
Rother District Council,03/08/2023,T33HOUSING,Housing,20200,Housing Needs - HB (Housing Benefit),D2508,Removals and Storage,275.00,Chapmans of Hastings,Removals and Storage,2043341,202305
Rother District Council,07/08/2023,T33HOUSING,Housing,20200,Housing Needs - HB (Housing Benefit),D2508,Removals and Storage,262.50,Chapmans of Hastings,Removals and Storage,2043514,202305
Rother District Council,07/08/2023,T33HOUSING,Housing,20200,Housing Needs - HB (Housing Benefit),D2508,Removals and Storage,210.00,Chapmans of Hastings,Removals and Storage,2043515,202305
Rother District Council,04/09/2023,T33HOUSING,Housing,20200,Housing Needs - HB (Housing Benefit),D2508,Removals and Storage,210.00,Chapmans of Hastings,Removals and Storage,2044465,202306
Rother District Council,04/09/2023,T33HOUSING,Housing,20200,Housing Needs - HB (Housing Benefit),D2508,Removals and Storage,168.00,Chapmans of Hastings,Removals and Storage,2044494,202306
Rother District Council,20/06/2023,T33HREGEN,Regeneration,20318,UKSPF- UK Shared Prosperity Fund,D2513,Hired and Contracted services,"10,000.00",Chapmans of Rye Ltd,Hired and contracted services - Service fee paid,2042830,202304
Rother District Council,20/06/2023,T33HREGEN,Regeneration,20318,UKSPF- UK Shared Prosperity Fund,D2513,Hired and Contracted services,"7,541.64",Chapmans of Rye Ltd,Hired and contracted services - Service fee paid,2042830,202304
Rother District Council,16/07/2023,T33HOUSING,Housing,20200,Housing Needs - HB (Housing Benefit),D2514,Accommodation Costs,"1,650.00",Charles Lucas Property Management Ltd (Client Account),Accommodation Costs,2042853,202304
Rother District Council,16/07/2023,T33HOUSING,Housing,20200,Housing Needs - HB (Housing Benefit),D2514,Accommodation Costs,"1,650.00",Charles Lucas Property Management Ltd (Client Account),Accommodation Costs,2042854,202304
Rother District Council,16/07/2023,T33HOUSING,Housing,20200,Housing Needs - HB (Housing Benefit),D2514,Accommodation Costs,275.00,Charles Lucas Property Management Ltd (Client Account),Accommodation Costs,2042855,202304
Rother District Council,02/08/2023,T33HOUSING,Housing,20200,Housing Needs - HB (Housing Benefit),D2514,Accommodation Costs,810.00,Charles Lucas Property Management Ltd (Client Account),Accommodation Costs,2043329,202305
Rother District Council,02/08/2023,T33HOUSING,Housing,20200,Housing Needs - HB (Housing Benefit),D2514,Accommodation Costs,"1,575.00",Charles Lucas Property Management Ltd (Client Account),Accommodation Costs,2043330,202305
Rother District Council,02/08/2023,T33HOUSING,Housing,20200,Housing Needs - HB (Housing Benefit),D2514,Accommodation Costs,225.00,Charles Lucas Property Management Ltd (Client Account),Accommodation Costs,2043332,202305
Rother District Council,02/08/2023,T33HOUSING,Housing ,20337,Homes for Ukraine Accommodation,D2514,Accommodation Costs,"1,935.00",Charles Lucas Property Management Ltd (Client Account),Accommodation Costs,2043333,202305
Rother District Council,02/08/2023,T33HOUSING,Housing,20200,Housing Needs - HB (Housing Benefit),D2514,Accommodation Costs,900.00,Charles Lucas Property Management Ltd (Client Account),Accommodation Costs,2043334,202305
Rother District Council,02/08/2023,T33HOUSING,Housing,20200,Housing Needs - HB (Housing Benefit),D2514,Accommodation Costs,"2,250.00",Charles Lucas Property Management Ltd (Client Account),Accommodation Costs,2043335,202305
Rother District Council,02/08/2023,T33HOUSING,Housing,20200,Housing Needs - HB (Housing Benefit),D2514,Accommodation Costs,"1,305.00",Charles Lucas Property Management Ltd (Client Account),Accommodation Costs,2043336,202305
Rother District Council,02/08/2023,T33HOUSING,Housing,20200,Housing Needs - HB (Housing Benefit),D2514,Accommodation Costs,"2,250.00",Charles Lucas Property Management Ltd (Client Account),Accommodation Costs,2043337,202305
Rother District Council,02/08/2023,T33HOUSING,Housing,20200,Housing Needs - HB (Housing Benefit),D2514,Accommodation Costs,"1,575.00",Charles Lucas Property Management Ltd (Client Account),Accommodation Costs,2043340,202305
Rother District Council,13/08/2023,T33HOUSING,Housing,20200,Housing Needs - HB (Housing Benefit),D2514,Accommodation Costs,"1,705.00",Charles Lucas Property Management Ltd (Client Account),Accommodation Costs,2043695,202305
Rother District Council,13/08/2023,T33HOUSING,Housing,20200,Housing Needs - HB (Housing Benefit),D2514,Accommodation Costs,"1,705.00",Charles Lucas Property Management Ltd (Client Account),Accommodation Costs,2043696,202305
Rother District Council,14/08/2023,T33HOUSING,Housing,20200,Housing Needs - HB (Housing Benefit),D2514,Accommodation Costs,990.00,Charles Lucas Property Management Ltd (Client Account),Accommodation Costs,2043717,202305
Rother District Council,06/09/2023,T33HOUSING,Housing,20200,Housing Needs - HB (Housing Benefit),D2514,Accommodation Costs,"1,395.00",Charles Lucas Property Management Ltd (Client Account),Accommodation Costs,2044384,202306
Rother District Council,06/09/2023,T33HOUSING,Housing,20200,Housing Needs - HB (Housing Benefit),D2514,Accommodation Costs,"1,395.00",Charles Lucas Property Management Ltd (Client Account),Accommodation Costs,2044385,202306
Rother District Council,06/09/2023,T33HOUSING,Housing,20200,Housing Needs - HB (Housing Benefit),D2514,Accommodation Costs,"1,395.00",Charles Lucas Property Management Ltd (Client Account),Accommodation Costs,2044386,202306
Rother District Council,06/09/2023,T33HOUSING,Housing,20200,Housing Needs - HB (Housing Benefit),D2514,Accommodation Costs,"1,395.00",Charles Lucas Property Management Ltd (Client Account),Accommodation Costs,2044388,202306
Rother District Council,06/09/2023,T33HOUSING,Housing,20200,Housing Needs - HB (Housing Benefit),D2514,Accommodation Costs,"1,395.00",Charles Lucas Property Management Ltd (Client Account),Accommodation Costs,2044389,202306
Rother District Council,06/09/2023,T33HOUSING,Housing,20200,Housing Needs - HB (Housing Benefit),D2514,Accommodation Costs,"1,395.00",Charles Lucas Property Management Ltd (Client Account),Accommodation Costs,2044390,202306
Rother District Council,17/09/2023,T33HOUSING,Housing,20200,Housing Needs - HB (Housing Benefit),D2514,Accommodation Costs,"1,705.00",Charles Lucas Property Management Ltd (Client Account),Accommodation Costs,2044567,202306
Rother District Council,17/09/2023,T33HOUSING,Housing,20200,Housing Needs - HB (Housing Benefit),D2514,Accommodation Costs,"1,705.00",Charles Lucas Property Management Ltd (Client Account),Accommodation Costs,2044568,202306
Rother District Council,19/09/2023,T33HOUSING,Housing ,20337,Homes for Ukraine Accommodation,D2514,Accommodation Costs,180.00,Charles Lucas Property Management Ltd (Client Account),Accommodation Costs,2044612,202306
Rother District Council,16/05/2023,T32DIGCUSSER,Digital & Customer Services,20239,Computer Services,D2633,Computer Equipment,"2,315.89",Chess Cybersecurity / Chess ICT Burnley Ltd,Computer Equipment - New - Computer Hardware,2042752,202304
Rother District Council,04/07/2023,T32ENVSERV,"Environmental Services, Licencing & Community Safety",32144,EH Environmental Services Admin R + W Partnership,A2203,Training,360.00,CIEH-Chartered Institute of Environmental Health,Training,2042622,202304
Rother District Council,07/07/2023,T32ENVSERV,"Environmental Services, Licencing & Community Safety",32144,EH Environmental Services Admin R + W Partnership,A2203,Training,390.00,CIEH-Chartered Institute of Environmental Health,Training,2043570,202305
Rother District Council,06/03/2023,T31CHFFIN,Chief Finance Officer (S151),20222,Accountancy,D2922,Subscriptions,"5,295.00",CIPFA Business Ltd,Subscriptions - Subscription to Organisations,2042918,202304
Rother District Council,22/08/2023,T32ENVSERV,"Environmental Services, Licencing & Community Safety",32134,EH Pollution R + W Partnership,D1201,Equipment & Materials,56.00,Cirrus Research PLC,Equipment & Materials - Carriage/Handling Charge,2044097,202306
Rother District Council,22/08/2023,T32ENVSERV,"Environmental Services, Licencing & Community Safety",32134,EH Pollution R + W Partnership,D1201,Equipment & Materials,398.00,Cirrus Research PLC,Equipment & Materials - EnvH- Pollution Equipment,2044097,202306
Rother District Council,01/10/2023,T32CORPPOL,Corporate Policy & Projects,20219,Support To Elect Bodies/Grant,D2923,Grants made,"21,250.00",Citizens Advice 1066,Grants made - Bexhill and Rother CAB,2044602,202306
Rother District Council,07/06/2023,T31DEMSERV,Democratic Services,20162,Electoral Registration,D2415,Printing by external suppliers,264.40,Civica Election Services Ltd,Printing by external suppliers - Printing (Not from RDC Print Room),2042528,202304
Rother District Council,16/06/2023,T31DEMSERV,Democratic Services,20163,District Council Elections,D2415,Printing by external suppliers,"16,434.93",Civica Election Services Ltd,Printing by external suppliers - Printing (Not from RDC Print Room),2042728,202304
Rother District Council,16/06/2023,T31DEMSERV,Democratic Services,20163,District Council Elections,D2415,Printing by external suppliers,"4,277.12",Civica Election Services Ltd,Printing by external suppliers - Printing (Not from RDC Print Room),2042729,202304
Rother District Council,16/06/2023,T31DEMSERV,Democratic Services,20164,Parish Council Elections,D2415,Printing by external suppliers,"5,712.50",Civica Election Services Ltd,Printing by external suppliers - Printing (Not from RDC Print Room),2042730,202304
Rother District Council,16/06/2023,T31DEMSERV,Democratic Services,20164,Parish Council Elections,D2415,Printing by external suppliers,910.82,Civica Election Services Ltd,Printing by external suppliers - Printing (Not from RDC Print Room),2042731,202304
Rother District Council,30/06/2023,T31DEMSERV,Democratic Services,20162,Electoral Registration,D2415,Printing by external suppliers,131.58,Civica Election Services Ltd,Printing by external suppliers - Printing (Not from RDC Print Room),2043253,202305
Rother District Council,31/08/2023,T31DEMSERV,Democratic Services,20162,Electoral Registration,D2415,Printing by external suppliers,633.05,Civica Election Services Ltd,Printing by external suppliers - Printing (Not from RDC Print Room),2044230,202306
Rother District Council,31/07/2023,T31DEMSERV,Democratic Services,20162,Electoral Registration,D2415,Printing by external suppliers,107.34,Civica Election Services Ltd,Printing by external suppliers - Printing (Not from RDC Print Room),2044615,202306
Rother District Council,08/09/2023,T31DEMSERV,Democratic Services,20164,Parish Council Elections,D2415,Printing by external suppliers,647.97,Civica Election Services Ltd,Printing by external suppliers - Printing (Not from RDC Print Room),2044616,202306
Rother District Council,11/09/2023,T31DEMSERV,Democratic Services,20164,Parish Council Elections,D2415,Printing by external suppliers,754.29,Civica Election Services Ltd,Printing by external suppliers - Printing (Not from RDC Print Room),2044617,202306
Rother District Council,09/08/2023,T31DEMSERV,Democratic Services,20162,Electoral Registration,A2203,Training,216.00,Civica UK Ltd,Training,2043828,202305
Rother District Council,13/06/2023,T33NBHDSERV,Neighbourhood Services,20114,Bexhill Parks & Open Spaces,B2422,Sewerage,171.00,Cleansing Service Group Ltd,Sewerage Parks- Emptying of Cesspit,2042322,202304
Rother District Council,07/06/2023,T33NBHDSERV,Neighbourhood Services,20114,Bexhill Parks & Open Spaces,B2422,Sewerage,171.00,Cleansing Service Group Ltd,Sewerage Parks- Emptying of Cesspit,2042533,202304
Rother District Council,30/06/2023,T33NBHDSERV,Neighbourhood Services,20114,Bexhill Parks & Open Spaces,B2422,Sewerage,342.00,Cleansing Service Group Ltd,Sewerage Parks- Emptying of Cesspit,2043258,202305
Rother District Council,12/07/2023,T33NBHDSERV,Neighbourhood Services,20114,Bexhill Parks & Open Spaces,B2422,Sewerage,171.00,Cleansing Service Group Ltd,Sewerage Parks- Emptying of Cesspit,2043259,202305
Rother District Council,17/07/2023,T33NBHDSERV,Neighbourhood Services,20114,Bexhill Parks & Open Spaces,B2422,Sewerage,171.00,Cleansing Service Group Ltd,Sewerage Parks- Emptying of Cesspit,2043260,202305
Rother District Council,24/07/2023,T33NBHDSERV,Neighbourhood Services,20114,Bexhill Parks & Open Spaces,B2422,Sewerage,171.00,Cleansing Service Group Ltd,Sewerage Parks- Emptying of Cesspit,2043261,202305
Rother District Council,31/07/2023,T33NBHDSERV,Neighbourhood Services,20114,Bexhill Parks & Open Spaces,B2422,Sewerage,171.00,Cleansing Service Group Ltd,Sewerage Parks- Emptying of Cesspit,2043262,202305
Rother District Council,08/08/2023,T33NBHDSERV,Neighbourhood Services,20114,Bexhill Parks & Open Spaces,B2422,Sewerage,171.00,Cleansing Service Group Ltd,Sewerage Parks- Emptying of Cesspit,2043853,202305
Rother District Council,14/08/2023,T33NBHDSERV,Neighbourhood Services,20114,Bexhill Parks & Open Spaces,B2422,Sewerage,171.00,Cleansing Service Group Ltd,Sewerage Parks- Emptying of Cesspit,2044072,202306
Rother District Council,21/08/2023,T33NBHDSERV,Neighbourhood Services,20114,Bexhill Parks & Open Spaces,B2422,Sewerage,171.00,Cleansing Service Group Ltd,Sewerage Parks- Emptying of Cesspit,2044085,202306
Rother District Council,29/08/2023,T33NBHDSERV,Neighbourhood Services,20114,Bexhill Parks & Open Spaces,B2422,Sewerage,171.00,Cleansing Service Group Ltd,Sewerage Parks- Emptying of Cesspit,2044182,202306
Rother District Council,11/09/2023,T33CLIMCHNG,Climate Change Strategy,20273,Environment Strategy,A2203,Training,521.44,Climate Emergency UK LTD,Training,2044499,202306
Rother District Council,01/07/2023,T32DIGCUSSER,Digital & Customer Services,20239,Computer Services,D2631,Computer Equip Maintenance,61.60,CloudConnX Ltd,Computer Equip Maintenance - Maintenance of Network Equipment,2043051,202304
Rother District Council,01/09/2023,T32DIGCUSSER,Digital & Customer Services,20239,Computer Services,D2631,Computer Equip Maintenance,61.60,CloudConnX Ltd,Computer Equip Maintenance - Maintenance of Network Equipment,2044357,202306
Rother District Council,01/08/2023,T32DIGCUSSER,Digital & Customer Services,20239,Computer Services,D2633,Computer Equipment,61.60,CloudConnX Ltd,Computer Equipment - New - Computer Hardware,2043777,202305
Rother District Council,05/07/2023,T33HREGEN,Regeneration,20145,Maintenance Services,D1201,Equipment & Materials,750.00,CMJ Joinery (Southern) Ltd,Equipment and materials - Purchase of Materials for 3rd parties - Build Maint,2043350,202305
Rother District Council,27/06/2023,T33HOUSING,Housing,20200,Housing Needs - HB (Housing Benefit),D2514,Accommodation Costs,780.00,Coast Holiday Lettings Ltd,Accommodation Costs,2042280,202304
Rother District Council,27/06/2023,T33HOUSING,Housing ,20337,Homes for Ukraine Accommodation,D2514,Accommodation Costs,420.00,Coast Holiday Lettings Ltd,Accommodation Costs,2042280,202304
Rother District Council,04/07/2023,T33HOUSING,Housing,20200,Housing Needs - HB (Housing Benefit),D2514,Accommodation Costs,780.00,Coast Holiday Lettings Ltd,Accommodation Costs,2042602,202304
Rother District Council,04/07/2023,T33HOUSING,Housing ,20337,Homes for Ukraine Accommodation,D2514,Accommodation Costs,420.00,Coast Holiday Lettings Ltd,Accommodation Costs,2042602,202304
Rother District Council,11/07/2023,T33HOUSING,Housing,20200,Housing Needs - HB (Housing Benefit),D2514,Accommodation Costs,780.00,Coast Holiday Lettings Ltd,Accommodation Costs,2042734,202304
Rother District Council,11/07/2023,T33HOUSING,Housing ,20337,Homes for Ukraine Accommodation,D2514,Accommodation Costs,420.00,Coast Holiday Lettings Ltd,Accommodation Costs,2042734,202304
Rother District Council,11/07/2023,T33HOUSING,Housing,20200,Housing Needs - HB (Housing Benefit),D2514,Accommodation Costs,-780.00,Coast Holiday Lettings Ltd,Accommodation Costs,2042735,202304
Rother District Council,11/07/2023,T33HOUSING,Housing ,20337,Homes for Ukraine Accommodation,D2514,Accommodation Costs,-420.00,Coast Holiday Lettings Ltd,Accommodation Costs,2042735,202304
Rother District Council,18/07/2023,T33HOUSING,Housing,20200,Housing Needs - HB (Housing Benefit),D2514,Accommodation Costs,780.00,Coast Holiday Lettings Ltd,Accommodation Costs,2043018,202305
Rother District Council,18/07/2023,T33HOUSING,Housing ,20337,Homes for Ukraine Accommodation,D2514,Accommodation Costs,420.00,Coast Holiday Lettings Ltd,Accommodation Costs,2043018,202305
Rother District Council,25/07/2023,T33HOUSING,Housing,20200,Housing Needs - HB (Housing Benefit),D2514,Accommodation Costs,780.00,Coast Holiday Lettings Ltd,Accommodation Costs,2043019,202305
Rother District Council,25/07/2023,T33HOUSING,Housing ,20337,Homes for Ukraine Accommodation,D2514,Accommodation Costs,420.00,Coast Holiday Lettings Ltd,Accommodation Costs,2043019,202305
Rother District Council,01/08/2023,T33HOUSING,Housing ,20337,Homes for Ukraine Accommodation,D2514,Accommodation Costs,420.00,Coast Holiday Lettings Ltd,Accommodation Costs,2043175,202305
Rother District Council,01/08/2023,T33HOUSING,Housing,20200,Housing Needs - HB (Housing Benefit),D2514,Accommodation Costs,780.00,Coast Holiday Lettings Ltd,Accommodation Costs,2043175,202305
Rother District Council,08/08/2023,T33HOUSING,Housing ,20337,Homes for Ukraine Accommodation,D2514,Accommodation Costs,420.00,Coast Holiday Lettings Ltd,Accommodation Costs,2043694,202305
Rother District Council,08/08/2023,T33HOUSING,Housing,20200,Housing Needs - HB (Housing Benefit),D2514,Accommodation Costs,780.00,Coast Holiday Lettings Ltd,Accommodation Costs,2043694,202305
Rother District Council,15/08/2023,T33HOUSING,Housing,20200,Housing Needs - HB (Housing Benefit),D2514,Accommodation Costs,780.00,Coast Holiday Lettings Ltd,Accommodation Costs,2043719,202305
Rother District Council,15/08/2023,T33HOUSING,Housing ,20337,Homes for Ukraine Accommodation,D2514,Accommodation Costs,420.00,Coast Holiday Lettings Ltd,Accommodation Costs,2043719,202305
Rother District Council,22/08/2023,T33HOUSING,Housing ,20337,Homes for Ukraine Accommodation,D2514,Accommodation Costs,420.00,Coast Holiday Lettings Ltd,Accommodation Costs,2043859,202305
Rother District Council,22/08/2023,T33HOUSING,Housing,20200,Housing Needs - HB (Housing Benefit),D2514,Accommodation Costs,780.00,Coast Holiday Lettings Ltd,Accommodation Costs,2043859,202305
Rother District Council,29/08/2023,T33HOUSING,Housing ,20337,Homes for Ukraine Accommodation,D2514,Accommodation Costs,420.00,Coast Holiday Lettings Ltd,Accommodation Costs,2044049,202306
Rother District Council,29/08/2023,T33HOUSING,Housing,20200,Housing Needs - HB (Housing Benefit),D2514,Accommodation Costs,780.00,Coast Holiday Lettings Ltd,Accommodation Costs,2044049,202306
Rother District Council,05/09/2023,T33HOUSING,Housing,20200,Housing Needs - HB (Housing Benefit),D2514,Accommodation Costs,780.00,Coast Holiday Lettings Ltd,Accommodation Costs,2044337,202306
Rother District Council,05/09/2023,T33HOUSING,Housing ,20337,Homes for Ukraine Accommodation,D2514,Accommodation Costs,420.00,Coast Holiday Lettings Ltd,Accommodation Costs,2044337,202306
Rother District Council,12/09/2023,T33HOUSING,Housing,20200,Housing Needs - HB (Housing Benefit),D2514,Accommodation Costs,780.00,Coast Holiday Lettings Ltd,Accommodation Costs,2044565,202306
Rother District Council,12/09/2023,T33HOUSING,Housing ,20337,Homes for Ukraine Accommodation,D2514,Accommodation Costs,420.00,Coast Holiday Lettings Ltd,Accommodation Costs,2044565,202306
Rother District Council,19/09/2023,T33HOUSING,Housing,20200,Housing Needs - HB (Housing Benefit),D2514,Accommodation Costs,724.26,Coast Holiday Lettings Ltd,Accommodation Costs,2044594,202306
Rother District Council,19/09/2023,T33HOUSING,Housing ,20337,Homes for Ukraine Accommodation,D2514,Accommodation Costs,420.00,Coast Holiday Lettings Ltd,Accommodation Costs,2044594,202306
Rother District Council,19/06/2023,T33NBHDSERV,Neighbourhood Services,20107,Camber Beach & Foreshore,D2312,Refreshments,96.00,Colemans A B C (Wholesale) Distributors Ltd,Refreshments - Water Cooler,2044515,202306
Rother District Council,21/07/2023,T33NBHDSERV,Neighbourhood Services,20115,Rye Area Parks & Gardens,D1201,Equipment & Materials,20.00,Colin A May,Equipment & Materials - Maintenance of Seats/Plaques from Donations,2043622,202305
Rother District Council,08/06/2023,T33NBHDSERV,Neighbourhood Services,20120,Neighbourhood Services,D1201,Equipment & Materials,"1,760.00",Colin A May,Equipment & Materials - Parks- Benches repairs,2043056,202304
Rother District Council,21/07/2023,T33NBHDSERV,Neighbourhood Services,20115,Rye Area Parks & Gardens,D1201,Equipment & Materials,80.00,Colin A May,Equipment & Materials - Parks- Benches repairs,2043622,202305
Rother District Council,07/07/2023,T33NBHDSERV,Neighbourhood Services,20108,Bexhill Promenade & Foreshore,B1100,Repairs to Premises,"4,600.00",Colin A May,Repairs to Premises - Painting Works,2043555,202305
Rother District Council,14/07/2023,T33NBHDSERV,Neighbourhood Services,20115,Rye Area Parks & Gardens,B1100,Repairs to Premises,"1,320.00",Colin A May,Repairs to Premises - Parks - Redecoration Works,2043621,202305
Rother District Council,14/07/2023,T33NBHDSERV,Neighbourhood Services,20115,Rye Area Parks & Gardens,B1100,Repairs to Premises,900.00,Colin A May,Repairs to Premises - Parks - Redecoration Works,2043621,202305
Rother District Council,26/06/2023,T32ENVSERV,"Environmental Services, Licencing & Community Safety",32138,EH Health and Safety R + W Partnership,D2513,Hired and Contracted services,"2,350.00",Colleton Chambers,Hired and contracted services - Legal Advice,2043107,202304
Rother District Council,22/06/2023,T33HREGEN,Regeneration,20148,Misc Land & Buildings,B1100,Repairs to Premises,33.60,Colours Timber Ltd,Repairs to Premises - Purchase of Materials - Build Maint,2043209,202305
Rother District Council,23/06/2023,T33HREGEN,Regeneration,20148,Misc Land & Buildings,B1100,Repairs to Premises,26.95,Colours Timber Ltd,Repairs to Premises - Purchase of Materials - Build Maint,2043217,202305
Rother District Council,18/08/2023,T33HREGEN,Regeneration,20154,Committee Property Account,B1100,Repairs to Premises,100.00,Colours Timber Ltd,Repairs to Premises - Purchase of Materials - Build Maint,2044294,202306
Rother District Council,07/08/2023,T33HREGEN,Regeneration,20145,Maintenance Services,C1101,Vehicle Repairs & Servicing,151.45,Colours Timber Ltd,Repairs to Premises - Purchase of Materials - Build Maint,2044292,202306
Rother District Council,07/08/2023,T33HREGEN,Regeneration,20145,Maintenance Services,C1101,Vehicle Repairs & Servicing,27.00,Colours Timber Ltd,Repairs to Premises - Purchase of Materials - Build Maint,2044293,202306
Rother District Council,19/06/2023,T33NBHDSERV,Neighbourhood Services,20128,Public Conveniences,B1100,Repairs to Premises,100.88,Colours Timber Ltd,Repairs to Premises - Purchase of Materials - Build Maint,2043190,202305
Rother District Council,11/07/2023,T33NBHDSERV,Neighbourhood Services,20108,Bexhill Promenade & Foreshore,B1100,Repairs to Premises,40.32,Colours Timber Ltd,Repairs to Premises - Purchase of Materials - Build Maint,2043191,202305
Rother District Council,19/07/2023,T33NBHDSERV,Neighbourhood Services,20114,Bexhill Parks & Open Spaces,B1100,Repairs to Premises,42.00,Colours Timber Ltd,Repairs to Premises - Purchase of Materials - Build Maint,2043192,202305
Rother District Council,18/08/2023,T33NBHDSERV,Neighbourhood Services,20114,Bexhill Parks & Open Spaces,B1100,Repairs to Premises,42.50,Colours Timber Ltd,Repairs to Premises - Purchase of Materials - Build Maint,2044295,202306
Rother District Council,05/07/2023,T33HREGEN,Regeneration,20145,Maintenance Services,D1201,Equipment & Materials,199.00,Commercial Vehicle Contracts Limited,Equipment & Materials - Purchase of Tools,2042899,202304
Rother District Council,30/06/2023,T31HUMANRES,Human Resources,20171,Human Resources,D2513,Hired and Contracted services,8.00,Computershare Voucher Services,Hired and contracted services - Child Care Voucher Service Charge,2043292,202305
Rother District Council,30/06/2023,T3ZZNOREPORT,Chief Finance Officer (S151),90000,Balance sheet all accounts,T1002,Childcare Vouchers,100.00,Computershare Voucher Services,Childcare Vouchers,2043292,202305
Rother District Council,31/05/2023,T33NBHDSERV,Neighbourhood Services,20137,Car Parks,D2507,Security Services,297.00,Continental Facilities Management Group Ltd,Security services provided,2042698,202304
Rother District Council,09/06/2023,T33NBHDSERV,Neighbourhood Services,20137,Car Parks,D1201,Equipment & Materials,75.66,Contract Sign Systems,Equipment & Materials - Purchase of Signs,2042543,202304
Rother District Council,22/08/2023,T33NBHDSERV,Neighbourhood Services,20137,Car Parks,D1201,Equipment & Materials,45.94,Contract Sign Systems,Equipment & Materials - Purchase of Signs,2044083,202305
Rother District Council,09/06/2023,T33NBHDSERV,Neighbourhood Services,20137,Car Parks,D2513,Hired and Contracted services,30.00,Contract Sign Systems,Hired and contracted services - Delivery and/or Packaging of Equipm,2042543,202304
Rother District Council,22/08/2023,T33NBHDSERV,Neighbourhood Services,20137,Car Parks,D2513,Hired and Contracted services,30.00,Contract Sign Systems,Hired and contracted services - Delivery and/or Packaging of Equipm,2044083,202305
Rother District Council,08/09/2023,T33HREGEN,Regeneration,20152,Watch Oak Estate,D2513,Hired and Contracted services,"4,000.00",Coppard Giles,Hired and contracted services - Service fee paid,2044422,202306
Rother District Council,15/08/2023,T33PLANDEV,Planning Development Management,20246,Planning Applications,E2302,Third party payment private contractors,"4,950.00",Coppard Giles,Third Party Private contractors,2043997,202305
Rother District Council,07/07/2023,T3ZCAPITAL,Corporate Programme & Improvement,70764,Capital - Invest to Save Project,N1004,Architects & Consultant Fees,"5,800.00",Coppard Giles,Architects & Consultant Fees Capital-Architect and Conslt Fees,2043530,202305
Rother District Council,15/08/2023,T3ZCAPITAL,Corporate Programme & Improvement,70764,Capital - Invest to Save Project,N1004,Architects & Consultant Fees,"5,800.00",Coppard Giles,Architects & Consultant Fees Capital-Architect and Conslt Fees,2043999,202305
Rother District Council,08/08/2023,T32ENVSERV,"Environmental Services, Licencing & Community Safety",32134,EH Pollution R + W Partnership,D1201,Equipment & Materials,6.50,CopShopUK Ltd,Equipment & Materials - Carriage/Handling Charge,2043836,202305
Rother District Council,11/09/2023,T32ENVSERV,"Environmental Services, Licencing & Community Safety",32134,EH Pollution R + W Partnership,D1201,Equipment & Materials,4.16,CopShopUK Ltd,Equipment & Materials - Carriage/Handling Charge,2044533,202306
Rother District Council,08/08/2023,T32ENVSERV,"Environmental Services, Licencing & Community Safety",32134,EH Pollution R + W Partnership,D1201,Equipment & Materials,18.71,CopShopUK Ltd,Equipment & Materials - EnvH- Pollution Equipment,2043836,202305
Rother District Council,11/09/2023,T32ENVSERV,"Environmental Services, Licencing & Community Safety",32134,EH Pollution R + W Partnership,D1201,Equipment & Materials,18.71,CopShopUK Ltd,Equipment & Materials - EnvH- Pollution Equipment,2044533,202306
Rother District Council,02/06/2023,T32ENVSERV,"Environmental Services, Licencing & Community Safety",32134,EH Pollution R + W Partnership,D2513,Hired and Contracted services,142.45,Corserv Care Limited,Hired and contracted services - RDC ENV H Out Of Hours Call Answering Service,2042607,202304
Rother District Council,22/05/2023,T32ENVSERV,"Environmental Services, Licencing & Community Safety",32134,EH Pollution R + W Partnership,D2513,Hired and Contracted services,119.23,Corserv Care Limited,Hired and contracted services - RDC ENV H Out Of Hours Call Answering Service,2042608,202304
Rother District Council,06/07/2023,T32ENVSERV,"Environmental Services, Licencing & Community Safety",32134,EH Pollution R + W Partnership,D2513,Hired and Contracted services,123.16,Corserv Care Limited,Hired and contracted services - RDC ENV H Out Of Hours Call Answering Service,2044557,202306
Rother District Council,10/08/2023,T32ENVSERV,"Environmental Services, Licencing & Community Safety",32134,EH Pollution R + W Partnership,D2513,Hired and Contracted services,157.40,Corserv Care Limited,Hired and contracted services - RDC ENV H Out Of Hours Call Answering Service,2044558,202306
Rother District Council,02/06/2023,T33HOUSING,Housing,20204,Housing Administration Account,D2513,Hired and Contracted services,168.36,Corserv Care Limited,Hired and contracted services - RDC Homelessness Out Of Hours Call Answering Service,2042607,202304
Rother District Council,22/05/2023,T33HOUSING,Housing,20204,Housing Administration Account,D2513,Hired and Contracted services,152.88,Corserv Care Limited,Hired and contracted services - RDC Homelessness Out Of Hours Call Answering Service,2042608,202304
Rother District Council,06/07/2023,T33HOUSING,Housing,20204,Housing Administration Account,D2513,Hired and Contracted services,112.24,Corserv Care Limited,Hired and contracted services - RDC Homelessness Out Of Hours Call Answering Service,2044557,202306
Rother District Council,10/08/2023,T33HOUSING,Housing,20204,Housing Administration Account,D2513,Hired and Contracted services,266.57,Corserv Care Limited,Hired and contracted services - RDC Homelessness Out Of Hours Call Answering Service,2044558,202306
Rother District Council,13/07/2023,T32ENVSERV,"Environmental Services, Licencing & Community Safety",20130,Crime and Disorder Initiatives,D2923,Grants made,491.26,CountyClean Environmental Services Ltd,Grants made - Crime Prevention Initiative (JAG),2043309,202305
Rother District Council,19/07/2023,T32ENVSERV,"Environmental Services, Licencing & Community Safety",20187,Pollution,D2513,Hired and Contracted services,385.00,CountyClean Environmental Services Ltd,Hired and contracted services - Service fee paid,2043310,202305
Rother District Council,10/08/2023,T32ENVSERV,"Environmental Services, Licencing & Community Safety",20187,Pollution,D2513,Hired and Contracted services,375.00,CountyClean Environmental Services Ltd,Hired and contracted services - Service fee paid,2043927,202305
Rother District Council,07/09/2023,T32ENVSERV,"Environmental Services, Licencing & Community Safety",20187,Pollution,D2513,Hired and Contracted services,"1,195.00",CountyClean Environmental Services Ltd,Hired and contracted services - Service fee paid,2044502,202306
Rother District Council,30/05/2023,T33HREGEN,Regeneration,20154,Committee Property Account,B1100,Repairs to Premises,187.25,CountyClean Environmental Services Ltd,Repairs to Premises - Cesspool Pumping station service/Call out,2042527,202304
Rother District Council,30/05/2023,T33HREGEN,Regeneration,20154,Committee Property Account,B1100,Repairs to Premises,187.25,CountyClean Environmental Services Ltd,Repairs to Premises - Cesspool Pumping station service/Call out,2042527,202304
Rother District Council,30/05/2023,T33HREGEN,Regeneration,20153,"Elva Business Centre, Bexhill",B1100,Repairs to Premises,299.65,CountyClean Environmental Services Ltd,Repairs to Premises - Cesspool Pumping station service/Call out,2042527,202304
Rother District Council,20/06/2023,T33HREGEN,Regeneration,20154,Committee Property Account,B1100,Repairs to Premises,187.25,CountyClean Environmental Services Ltd,Repairs to Premises - Cesspool Pumping station service/Call out,2043706,202305
Rother District Council,20/06/2023,T33HREGEN,Regeneration,20154,Committee Property Account,B1100,Repairs to Premises,187.25,CountyClean Environmental Services Ltd,Repairs to Premises - Cesspool Pumping station service/Call out,2043706,202305
Rother District Council,20/06/2023,T33HREGEN,Regeneration,20153,"Elva Business Centre, Bexhill",B1100,Repairs to Premises,208.65,CountyClean Environmental Services Ltd,Repairs to Premises - Cesspool Pumping station service/Call out,2043706,202305
Rother District Council,18/07/2023,T33HREGEN,Regeneration,20154,Committee Property Account,B1100,Repairs to Premises,187.25,CountyClean Environmental Services Ltd,Repairs to Premises - Cesspool Pumping station service/Call out,2043707,202306
Rother District Council,18/07/2023,T33HREGEN,Regeneration,20154,Committee Property Account,B1100,Repairs to Premises,187.25,CountyClean Environmental Services Ltd,Repairs to Premises - Cesspool Pumping station service/Call out,2043707,202306
Rother District Council,18/07/2023,T33HREGEN,Regeneration,20153,"Elva Business Centre, Bexhill",B1100,Repairs to Premises,208.65,CountyClean Environmental Services Ltd,Repairs to Premises - Cesspool Pumping station service/Call out,2043707,202306
Rother District Council,29/08/2023,T33HREGEN,Regeneration,20154,Committee Property Account,B1100,Repairs to Premises,187.25,CountyClean Environmental Services Ltd,Repairs to Premises - Cesspool Pumping station service/Call out,2044560,202306
Rother District Council,29/08/2023,T33HREGEN,Regeneration,20153,"Elva Business Centre, Bexhill",B1100,Repairs to Premises,208.65,CountyClean Environmental Services Ltd,Repairs to Premises - Cesspool Pumping station service/Call out,2044560,202306
Rother District Council,30/05/2023,T33HREGEN,Regeneration,20154,Committee Property Account,B2422,Sewerage,268.82,CountyClean Environmental Services Ltd,Sewerage - Sewage/Cesspool Emptying,2042527,202304
Rother District Council,30/05/2023,T33HREGEN,Regeneration,20154,Committee Property Account,B2422,Sewerage,183.83,CountyClean Environmental Services Ltd,Sewerage - Sewage/Cesspool Emptying,2042527,202304
Rother District Council,30/05/2023,T33HREGEN,Regeneration,20153,"Elva Business Centre, Bexhill",B2422,Sewerage,268.82,CountyClean Environmental Services Ltd,Sewerage - Sewage/Cesspool Emptying,2042527,202304
Rother District Council,20/06/2023,T33HREGEN,Regeneration,20154,Committee Property Account,B2422,Sewerage,268.55,CountyClean Environmental Services Ltd,Sewerage - Sewage/Cesspool Emptying,2043706,202305
Rother District Council,20/06/2023,T33HREGEN,Regeneration,20154,Committee Property Account,B2422,Sewerage,183.54,CountyClean Environmental Services Ltd,Sewerage - Sewage/Cesspool Emptying,2043706,202305
Rother District Council,20/06/2023,T33HREGEN,Regeneration,20153,"Elva Business Centre, Bexhill",B2422,Sewerage,268.55,CountyClean Environmental Services Ltd,Sewerage - Sewage/Cesspool Emptying,2043706,202305
Rother District Council,18/07/2023,T33HREGEN,Regeneration,20154,Committee Property Account,B2422,Sewerage,268.55,CountyClean Environmental Services Ltd,Sewerage - Sewage/Cesspool Emptying,2043707,202306
Rother District Council,18/07/2023,T33HREGEN,Regeneration,20154,Committee Property Account,B2422,Sewerage,183.54,CountyClean Environmental Services Ltd,Sewerage - Sewage/Cesspool Emptying,2043707,202306
Rother District Council,18/07/2023,T33HREGEN,Regeneration,20153,"Elva Business Centre, Bexhill",B2422,Sewerage,268.55,CountyClean Environmental Services Ltd,Sewerage - Sewage/Cesspool Emptying,2043707,202306
Rother District Council,29/08/2023,T33HREGEN,Regeneration,20154,Committee Property Account,B2422,Sewerage,262.00,CountyClean Environmental Services Ltd,Sewerage - Sewage/Cesspool Emptying,2044560,202306
Rother District Council,29/08/2023,T33HREGEN,Regeneration,20153,"Elva Business Centre, Bexhill",B2422,Sewerage,262.00,CountyClean Environmental Services Ltd,Sewerage - Sewage/Cesspool Emptying,2044560,202306
Rother District Council,30/05/2023,T33NBHDSERV,Neighbourhood Services,20137,Car Parks,B1100,Repairs to Premises,187.25,CountyClean Environmental Services Ltd,Repairs to Premises - Cesspool Pumping station service/Call out,2042527,202304
Rother District Council,30/05/2023,T33NBHDSERV,Neighbourhood Services,20128,Public Conveniences,B1100,Repairs to Premises,187.25,CountyClean Environmental Services Ltd,Repairs to Premises - Cesspool Pumping station service/Call out,2042527,202304
Rother District Council,20/06/2023,T33NBHDSERV,Neighbourhood Services,20137,Car Parks,B1100,Repairs to Premises,187.25,CountyClean Environmental Services Ltd,Repairs to Premises - Cesspool Pumping station service/Call out,2043706,202305
Rother District Council,20/06/2023,T33NBHDSERV,Neighbourhood Services,20128,Public Conveniences,B1100,Repairs to Premises,187.25,CountyClean Environmental Services Ltd,Repairs to Premises - Cesspool Pumping station service/Call out,2043706,202305
Rother District Council,18/07/2023,T33NBHDSERV,Neighbourhood Services,20137,Car Parks,B1100,Repairs to Premises,187.25,CountyClean Environmental Services Ltd,Repairs to Premises - Cesspool Pumping station service/Call out,2043707,202306
Rother District Council,18/07/2023,T33NBHDSERV,Neighbourhood Services,20128,Public Conveniences,B1100,Repairs to Premises,187.25,CountyClean Environmental Services Ltd,Repairs to Premises - Cesspool Pumping station service/Call out,2043707,202306
Rother District Council,29/08/2023,T33NBHDSERV,Neighbourhood Services,20137,Car Parks,B1100,Repairs to Premises,187.25,CountyClean Environmental Services Ltd,Repairs to Premises - Cesspool Pumping station service/Call out,2044560,202306
Rother District Council,29/08/2023,T33NBHDSERV,Neighbourhood Services,20128,Public Conveniences,B1100,Repairs to Premises,187.25,CountyClean Environmental Services Ltd,Repairs to Premises - Cesspool Pumping station service/Call out,2044560,202306
Rother District Council,28/06/2023,T33NBHDSERV,Neighbourhood Services,20128,Public Conveniences,B2422,Sewerage,411.08,CountyClean Environmental Services Ltd,Sewerage - Sewage/Cesspool Emptying,2042500,202304
Rother District Council,30/05/2023,T33NBHDSERV,Neighbourhood Services,20137,Car Parks,B2422,Sewerage,268.82,CountyClean Environmental Services Ltd,Sewerage - Sewage/Cesspool Emptying,2042527,202304
Rother District Council,30/05/2023,T33NBHDSERV,Neighbourhood Services,20128,Public Conveniences,B2422,Sewerage,268.82,CountyClean Environmental Services Ltd,Sewerage - Sewage/Cesspool Emptying,2042527,202304
Rother District Council,14/06/2023,T33NBHDSERV,Neighbourhood Services,20128,Public Conveniences,B2422,Sewerage,411.08,CountyClean Environmental Services Ltd,Sewerage - Sewage/Cesspool Emptying,2043180,202305
Rother District Council,12/07/2023,T33NBHDSERV,Neighbourhood Services,20128,Public Conveniences,B2422,Sewerage,411.08,CountyClean Environmental Services Ltd,Sewerage - Sewage/Cesspool Emptying,2043308,202305
Rother District Council,20/06/2023,T33NBHDSERV,Neighbourhood Services,20137,Car Parks,B2422,Sewerage,268.55,CountyClean Environmental Services Ltd,Sewerage - Sewage/Cesspool Emptying,2043706,202305
Rother District Council,20/06/2023,T33NBHDSERV,Neighbourhood Services,20128,Public Conveniences,B2422,Sewerage,268.55,CountyClean Environmental Services Ltd,Sewerage - Sewage/Cesspool Emptying,2043706,202305
Rother District Council,18/07/2023,T33NBHDSERV,Neighbourhood Services,20137,Car Parks,B2422,Sewerage,268.55,CountyClean Environmental Services Ltd,Sewerage - Sewage/Cesspool Emptying,2043707,202306
Rother District Council,18/07/2023,T33NBHDSERV,Neighbourhood Services,20128,Public Conveniences,B2422,Sewerage,268.55,CountyClean Environmental Services Ltd,Sewerage - Sewage/Cesspool Emptying,2043707,202306
Rother District Council,28/07/2023,T33NBHDSERV,Neighbourhood Services,20128,Public Conveniences,B2422,Sewerage,411.08,CountyClean Environmental Services Ltd,Sewerage - Sewage/Cesspool Emptying,2043708,202305
Rother District Council,10/08/2023,T33NBHDSERV,Neighbourhood Services,20128,Public Conveniences,B2422,Sewerage,405.00,CountyClean Environmental Services Ltd,Sewerage - Sewage/Cesspool Emptying,2043928,202305
Rother District Council,23/08/2023,T33NBHDSERV,Neighbourhood Services,20128,Public Conveniences,B2422,Sewerage,462.00,CountyClean Environmental Services Ltd,Sewerage - Sewage/Cesspool Emptying,2043998,202305
Rother District Council,05/09/2023,T33NBHDSERV,Neighbourhood Services,20128,Public Conveniences,B2422,Sewerage,405.00,CountyClean Environmental Services Ltd,Sewerage - Sewage/Cesspool Emptying,2044394,202306
Rother District Council,29/08/2023,T33NBHDSERV,Neighbourhood Services,20137,Car Parks,B2422,Sewerage,262.00,CountyClean Environmental Services Ltd,Sewerage - Sewage/Cesspool Emptying,2044560,202306
Rother District Council,29/08/2023,T33NBHDSERV,Neighbourhood Services,20128,Public Conveniences,B2422,Sewerage,262.00,CountyClean Environmental Services Ltd,Sewerage - Sewage/Cesspool Emptying,2044560,202306
Rother District Council,23/08/2023,T33NBHDSERV,Neighbourhood Services,20128,Public Conveniences,B2422,Sewerage,405.00,CountyClean Environmental Services Ltd,Sewerage - Sewage/Cesspool Emptying,2044561,202306
Rother District Council,26/07/2023,T33NBHDSERV,Neighbourhood Services,20114,Bexhill Parks & Open Spaces,B2422,Sewerage,265.93,CountyClean Environmental Services Ltd,Sewerage Parks- Emptying of Cesspit,2043112,202304
Rother District Council,04/09/2023,T33NBHDSERV,Neighbourhood Services,20114,Bexhill Parks & Open Spaces,B2422,Sewerage,512.00,CountyClean Environmental Services Ltd,Sewerage Parks- Emptying of Cesspit,2044562,202306
Rother District Council,23/08/2023,T33NBHDSERV,Neighbourhood Services,20125,Coast Protection,E2302,Third party payment private contractors,"4,927.00",CountyClean Environmental Services Ltd,Third party payment private contractors - Fairlight Compressor Maintenance Contract,2044559,202306
Rother District Council,06/09/2023,T31HUMANRES,Human Resources,20178,Corporate Training,A2203,Training,175.00,CPT Ltd,Training,2044432,202306
Rother District Council,25/04/2023,T31HUMANRES,Human Resources,20171,Human Resources,A2203,Training,818.10,Croner Group Ltd,Training,2042667,202304
Rother District Council,25/04/2023,T31HUMANRES,Human Resources,20171,Human Resources,A2203,Training,101.81,Croner Group Ltd,Training,2042667,202304
Rother District Council,25/08/2023,T31HUMANRES,Human Resources,20171,Human Resources,A2203,Training,818.10,Croner Group Ltd,Training,2044159,202306
Rother District Council,25/08/2023,T31HUMANRES,Human Resources,20171,Human Resources,A2203,Training,101.81,Croner Group Ltd,Training,2044159,202306
Rother District Council,01/09/2023,T341PRECEPTS,Precepts,42203,Parish Precepts,F1201,Parish precepts,"16,227.50",Crowhurst Parish Council,Parish precepts,2043491,202305
Rother District Council,25/09/2023,T33NBHDSERV,Neighbourhood Services,20137,Car Parks,B1100,Repairs to Premises,"1,414.80",CS Engineering,Repairs to Premises - Car Park Maintenance,2044642,202306
Rother District Council,25/09/2023,T33NBHDSERV,Neighbourhood Services,20137,Car Parks,B1100,Repairs to Premises,"1,308.80",CS Engineering,Repairs to Premises - Car Park Maintenance,2044643,202306
Rother District Council,03/07/2023,T33HREGEN,Regeneration,20153,"Elva Business Centre, Bexhill",B2611,Contract cleaning,240.00,C-Thru Window Cleaning,Contract cleaning - Office Cleaning,2043139,202305
Rother District Council,25/06/2023,T33PLANDEV,Planning Development Management,20246,Planning Applications,E2302,Third party payment private contractors,208.35,Curley Consultants,Third Party Private contractors,2043098,202304
Rother District Council,10/07/2023,T33PLANDEV,Planning Development Management,20246,Planning Applications,E2302,Third party payment private contractors,262.65,Curley Consultants,Third Party Private contractors,2043564,202305
Rother District Council,29/07/2023,T33PLANDEV,Planning Development Management,20246,Planning Applications,E2302,Third party payment private contractors,264.90,Curley Consultants,Third Party Private contractors,2043684,202305
Rother District Council,08/08/2023,T33PLANDEV,Planning Development Management,20246,Planning Applications,E2302,Third party payment private contractors,223.60,Curley Consultants,Third Party Private contractors,2043685,202305
Rother District Council,11/08/2023,T33PLANDEV,Planning Development Management,20246,Planning Applications,E2302,Third party payment private contractors,225.40,Curley Consultants,Third Party Private contractors,2043863,202305
Rother District Council,25/08/2023,T33PLANDEV,Planning Development Management,20246,Planning Applications,E2302,Third party payment private contractors,286.90,Curley Consultants,Third Party Private contractors,2044197,202306
Rother District Council,05/04/2023,T31HUMANRES,Human Resources,20173,Administrative Offices - Town Hall,B1100,Repairs to Premises,145.00,Cuttings South Ltd,Repairs to Premises - Specified Repairs and Works listed,2043138,202305
Rother District Council,05/04/2023,T33HREGEN,Regeneration,20153,"Elva Business Centre, Bexhill",B1100,Repairs to Premises,145.00,Cuttings South Ltd,Repairs to Premises - Specified Repairs and Works listed,2043138,202305
Rother District Council,05/04/2023,T33HREGEN,Regeneration,20153,"Elva Business Centre, Bexhill",B1100,Repairs to Premises,145.00,Cuttings South Ltd,Repairs to Premises - Specified Repairs and Works listed,2043138,202305
Rother District Council,05/04/2023,T33HREGEN,Regeneration,20153,"Elva Business Centre, Bexhill",B1100,Repairs to Premises,145.00,Cuttings South Ltd,Repairs to Premises - Specified Repairs and Works listed,2043138,202305
Rother District Council,05/04/2023,T33HREGEN,Regeneration,20308,Amherst Road as Investment Property,B1100,Repairs to Premises,145.00,Cuttings South Ltd,Repairs to Premises - Specified Repairs and Works listed,2043138,202305
Rother District Council,15/08/2023,T33HREGEN,Regeneration,20267,Property Investment Strategy - 18-40 Beeching Road ( Land and Buildings),B1100,Repairs to Premises,525.00,Cuttings South Ltd,Repairs to Premises - Specified Repairs and Works listed,2044100,202305
Rother District Council,18/08/2023,T33NBHDSERV,Neighbourhood Services,20123,Cemeteries,B1100,Repairs to Premises,754.00,Cuttings South Ltd,Repairs to Premises - Lightning Conductor Repairs,2044172,202306
Rother District Council,05/04/2023,T33NBHDSERV,Neighbourhood Services,20123,Cemeteries,B1100,Repairs to Premises,145.00,Cuttings South Ltd,Repairs to Premises - Specified Repairs and Works listed,2043138,202305
Rother District Council,01/06/2023,T32DIGCUSSER,Digital & Customer Services,20242,Communications-Phones,D2621,Telephones,110.95,Daisy Communications PLC,Telephones,2042628,202304
Rother District Council,01/06/2023,T32DIGCUSSER,Digital & Customer Services,20180,Emergency Planning,D2621,Telephones,22.19,Daisy Communications PLC,Telephones,2042628,202304
Rother District Council,01/06/2023,T32DIGCUSSER,Digital & Customer Services,20239,Computer Services,D2621,Telephones,44.38,Daisy Communications PLC,Telephones,2042628,202304
Rother District Council,01/07/2023,T32DIGCUSSER,Digital & Customer Services,20242,Communications-Phones,D2621,Telephones,110.95,Daisy Communications PLC,Telephones,2043301,202306
Rother District Council,01/07/2023,T32DIGCUSSER,Digital & Customer Services,20180,Emergency Planning,D2621,Telephones,22.19,Daisy Communications PLC,Telephones,2043301,202306
Rother District Council,01/07/2023,T32DIGCUSSER,Digital & Customer Services,20239,Computer Services,D2621,Telephones,44.58,Daisy Communications PLC,Telephones,2043301,202306
Rother District Council,01/08/2023,T32DIGCUSSER,Digital & Customer Services,20242,Communications-Phones,D2621,Telephones,110.95,Daisy Communications PLC,Telephones,2043835,202306
Rother District Council,01/08/2023,T32DIGCUSSER,Digital & Customer Services,20180,Emergency Planning,D2621,Telephones,22.20,Daisy Communications PLC,Telephones,2043835,202306
Rother District Council,01/08/2023,T32DIGCUSSER,Digital & Customer Services,20239,Computer Services,D2621,Telephones,44.38,Daisy Communications PLC,Telephones,2043835,202306
Rother District Council,01/09/2023,T32DIGCUSSER,Digital & Customer Services,20242,Communications-Phones,D2621,Telephones,110.95,Daisy Communications PLC,Telephones,2044495,202306
Rother District Council,01/09/2023,T32DIGCUSSER,Digital & Customer Services,20180,Emergency Planning,D2621,Telephones,22.19,Daisy Communications PLC,Telephones,2044495,202306
Rother District Council,01/09/2023,T32DIGCUSSER,Digital & Customer Services,20239,Computer Services,D2621,Telephones,44.38,Daisy Communications PLC,Telephones,2044495,202306
Rother District Council,01/09/2023,T32DIGCUSSER,Digital & Customer Services,20242,Communications-Phones,D2621,Telephones,44.63,Daisy Communications PLC,Telephones,2044495,202306
Rother District Council,01/06/2023,T32ENVSERV,"Environmental Services, Licencing & Community Safety",32134,EH Pollution R + W Partnership,D2621,Telephones,22.19,Daisy Communications PLC,Telephones,2042628,202304
Rother District Council,01/07/2023,T32ENVSERV,"Environmental Services, Licencing & Community Safety",32134,EH Pollution R + W Partnership,D2621,Telephones,22.19,Daisy Communications PLC,Telephones,2043301,202306
Rother District Council,01/08/2023,T32ENVSERV,"Environmental Services, Licencing & Community Safety",32134,EH Pollution R + W Partnership,D2621,Telephones,22.20,Daisy Communications PLC,Telephones,2043835,202306
Rother District Council,01/09/2023,T32ENVSERV,"Environmental Services, Licencing & Community Safety",32134,EH Pollution R + W Partnership,D2621,Telephones,22.20,Daisy Communications PLC,Telephones,2044495,202306
Rother District Council,01/06/2023,T33NBHDSERV,Neighbourhood Services,20102,Rother Museum Services,D2621,Telephones,22.19,Daisy Communications PLC,Telephones,2042628,202304
Rother District Council,01/06/2023,T33NBHDSERV,Neighbourhood Services,20107,Camber Beach & Foreshore,D2621,Telephones,44.38,Daisy Communications PLC,Telephones,2042628,202304
Rother District Council,01/07/2023,T33NBHDSERV,Neighbourhood Services,20102,Rother Museum Services,D2621,Telephones,22.19,Daisy Communications PLC,Telephones,2043301,202306
Rother District Council,01/07/2023,T33NBHDSERV,Neighbourhood Services,20107,Camber Beach & Foreshore,D2621,Telephones,44.38,Daisy Communications PLC,Telephones,2043301,202306
Rother District Council,01/08/2023,T33NBHDSERV,Neighbourhood Services,20102,Rother Museum Services,D2621,Telephones,22.20,Daisy Communications PLC,Telephones,2043835,202306
Rother District Council,01/08/2023,T33NBHDSERV,Neighbourhood Services,20107,Camber Beach & Foreshore,D2621,Telephones,47.40,Daisy Communications PLC,Telephones,2043835,202306
Rother District Council,01/09/2023,T33NBHDSERV,Neighbourhood Services,20102,Rother Museum Services,D2621,Telephones,22.19,Daisy Communications PLC,Telephones,2044495,202306
Rother District Council,30/06/2023,T33HOUSING,Housing,20200,Housing Needs - HB (Housing Benefit),D2514,Accommodation Costs,"8,571.00",Dale Saunders (Holdings) Ltd,Accommodation Costs,2042601,202304
Rother District Council,31/07/2023,T33HOUSING,Housing,20200,Housing Needs - HB (Housing Benefit),D2514,Accommodation Costs,"8,742.42",Dale Saunders (Holdings) Ltd,Accommodation Costs,2043137,202305
Rother District Council,31/08/2023,T33HOUSING,Housing,20200,Housing Needs - HB (Housing Benefit),D2514,Accommodation Costs,"8,856.70",Dale Saunders (Holdings) Ltd,Accommodation Costs,2044574,202306
Rother District Council,03/07/2023,T33HREGEN,Regeneration,20153,"Elva Business Centre, Bexhill",B1100,Repairs to Premises,70.00,Dale Saunders Ltd,Repairs to Premises - Specified Repairs and Works listed,2043322,202305
Rother District Council,01/09/2023,T341PRECEPTS,Precepts,42203,Parish Precepts,F1201,Parish precepts,"4,717.50",Dallington Parish Council,Parish precepts,2043492,202305
Rother District Council,28/06/2023,T33NBHDSERV,Neighbourhood Services,20114,Bexhill Parks & Open Spaces,D1201,Equipment & Materials,130.00,Damm Group Ltd t/a Security Bollards Direct,Equipment & Materials - Parks- Fencing Products,2043016,202304
Rother District Council,28/06/2023,T33NBHDSERV,Neighbourhood Services,20114,Bexhill Parks & Open Spaces,D1201,Equipment & Materials,150.00,Damm Group Ltd t/a Security Bollards Direct,Equipment & Materials - Purchase of Keys/ Locks/ Padlocks,2043015,202304
Rother District Council,31/05/2023,T31HUMANRES,Human Resources,20173,Administrative Offices - Town Hall,D2513,Hired and Contracted services,40.00,Data Shredding Services Ltd,Hired and contracted services - Charges-Confidential Office Waste,2042793,202304
Rother District Council,30/06/2023,T31HUMANRES,Human Resources,20173,Administrative Offices - Town Hall,D2513,Hired and Contracted services,60.00,Data Shredding Services Ltd,Hired and contracted services - Charges-Confidential Office Waste,2043296,202305
Rother District Council,31/07/2023,T31HUMANRES,Human Resources,20173,Administrative Offices - Town Hall,D2513,Hired and Contracted services,40.00,Data Shredding Services Ltd,Hired and contracted services - Charges-Confidential Office Waste,2043831,202305
Rother District Council,31/08/2023,T31HUMANRES,Human Resources,20173,Administrative Offices - Town Hall,D2513,Hired and Contracted services,169.20,Data Shredding Services Ltd,Hired and contracted services - Charges-Confidential Office Waste,2044454,202306
Rother District Council,30/06/2023,T32ENVSERV,"Environmental Services, Licencing & Community Safety",32142,EH Taxi and Private Hire Licences R + W Partnership,D2513,Hired and Contracted services,76.00,DBS The Disclosure and Barring Service,Hired and contracted services - Service fee paid,2042872,202304
Rother District Council,31/07/2023,T32ENVSERV,"Environmental Services, Licencing & Community Safety",32142,EH Taxi and Private Hire Licences R + W Partnership,D2513,Hired and Contracted services,380.00,DBS The Disclosure and Barring Service,Hired and contracted services - Service fee paid,2043395,202305
Rother District Council,31/08/2023,T32ENVSERV,"Environmental Services, Licencing & Community Safety",32142,EH Taxi and Private Hire Licences R + W Partnership,D2513,Hired and Contracted services,266.00,DBS The Disclosure and Barring Service,Hired and contracted services - Service fee paid,2044326,202306
Rother District Council,05/07/2023,T33HREGEN,Regeneration,20101,Cultural Development,D2926,District Events- Concessionary Use,"2,000.00",De La Warr Pavilion (Enterprise) Ltd,District Events-Concessionary Use - DLWP Community Concessionary Grant,2042654,202304
Rother District Council,14/07/2023,T33HREGEN,Regeneration,20101,Cultural Development,D2926,District Events- Concessionary Use,"1,500.00",De La Warr Pavilion (Enterprise) Ltd,District Events-Concessionary Use - DLWP Community Concessionary Grant,2042920,202304
Rother District Council,31/05/2023,T33HREGEN,Regeneration,20101,Cultural Development,D2926,District Events- Concessionary Use,"1,000.00",De La Warr Pavilion (Enterprise) Ltd,District Events-Concessionary Use - DLWP Community Concessionary Grant,2042982,202304
Rother District Council,31/07/2023,T33HREGEN,Regeneration,20101,Cultural Development,D2926,District Events- Concessionary Use,"1,500.00",De La Warr Pavilion (Enterprise) Ltd,District Events-Concessionary Use - DLWP Community Concessionary Grant,2043176,202305
Rother District Council,01/08/2023,T33HREGEN,Regeneration,20136,Regeneration,D2513,Hired and Contracted services,420.00,De La Warr Pavilion (Enterprise) Ltd,Hired and contracted services - Service fee paid,2043686,202305
Rother District Council,01/10/2023,T33HREGEN,Regeneration,20103,De La Warr Pav-Client,D2923,Grants made,"119,250.00",De La Warr Pavilion Charitable Trust,Grants made - Revenue Grants,2044601,202306
Rother District Council,26/09/2023,T33HREGEN,Regeneration,20103,De La Warr Pav-Client,D2923,Grants made,"119,250.00",De La Warr Pavilion Charitable Trust,Grants made - Revenue Grants,2044650,202306
Rother District Council,22/08/2023,T33HREGEN,Regeneration,20318,UKSPF- UK Shared Prosperity Fund,D2923,Grants made,"11,250.00",De La Warr Pavilion Charitable Trust,"Grants made -UKSPF-Support arts, culture, heritage",2044087,202305
Rother District Council,01/10/2023,T3ZCAPITAL,Regeneration,70702,Capital - De La Warr Pavilion - Capital Grant,N1011,Capital Grants,"14,784.75",De La Warr Pavilion Charitable Trust,Capital Grants - Community Grants Scheme,2044601,202306
Rother District Council,26/09/2023,T3ZCAPITAL,Regeneration,70702,Capital - De La Warr Pavilion - Capital Grant,N1011,Capital Grants,"14,784.75",De La Warr Pavilion Charitable Trust,Capital Grants - Community Grants Scheme,2044650,202306
Rother District Council,11/07/2023,T32DIGCUSSER,Digital & Customer Services,20239,Computer Services,D2632,Additional Computer Equipment,"6,059.90",Dell Corporation Ltd,Additional Computer Equipment - New PC/Computer,2043699,202305
Rother District Council,11/07/2023,T32DIGCUSSER,Digital & Customer Services,20239,Computer Services,D2633,Computer Equipment,"2,522.00",Dell Corporation Ltd,Computer Equipment - Computer peripherals,2043699,202305
Rother District Council,07/08/2023,T33PLANDEV,Planning Development Management,20246,Planning Applications,A2203,Training,150.00,Design South East Limited,Training,2043926,202305
Rother District Council,21/07/2023,T3ZCAPITAL,Corporate Policy & Projects,70750,Capital - Development of Council Owned Sites,N1005,Other fees,95.00,Design South East Limited,Other Fees - Capital exp Std VAT,2043040,202304
Rother District Council,05/07/2023,T33PLANDEV,Planning Development Management,20246,Planning Applications,A1110,Agency Staff,"3,859.35",DGC (Historic Buildings) Consultants Ltd,Agency Staff,2042901,202304
Rother District Council,07/08/2023,T33PLANDEV,Planning Development Management,20246,Planning Applications,A1110,Agency Staff,"3,767.60",DGC (Historic Buildings) Consultants Ltd,Agency Staff,2043772,202305
Rother District Council,08/09/2023,T33PLANDEV,Planning Development Management,20246,Planning Applications,A1110,Agency Staff,"5,457.15",DGC (Historic Buildings) Consultants Ltd,Agency Staff,2044496,202306
Rother District Council,11/07/2023,T33NBHDSERV,Neighbourhood Services,20133,Refuse Collection,E2302,Third party payment private contractors,252.00,Diamond Hygiene Ltd,Third party payment private contractors - Waste Collection Contract Variable cost to RDC,2043060,202304
Rother District Council,19/07/2023,T33HOUSING,Housing,20202,Rother Tenant Finder (prev Rother Letting Service),D2514,Accommodation Costs,90.00,Digital Sussex Ltd,Accommodation Costs - Homelessness services Housing Landlord Scheme-Rent payment,2042736,202304
Rother District Council,18/07/2023,T33HOUSING,Housing,20202,Rother Tenant Finder (prev Rother Letting Service),D2514,Accommodation Costs,80.00,Digital Sussex Ltd,Accommodation Costs - Homelessness services Housing Landlord Scheme-Rent payment,2043013,202304
Rother District Council,21/08/2023,T33HOUSING,Housing ,20337,Homes for Ukraine Accommodation,D2513,Hired and Contracted services,80.00,Digital Sussex Ltd,Hired and contracted services - All Translation Services,2044186,202306
Rother District Council,21/06/2023,T3ZCAPITAL,Housing ,70751,Capital - Temporary Accommodation,N1005,Other fees,80.00,Digital Sussex Ltd,Other Fees - Capital exp Std VAT,2042921,202304
Rother District Council,21/05/2023,T3ZCAPITAL,Housing ,70751,Capital - Temporary Accommodation,N1005,Other fees,110.00,Digital Sussex Ltd,Other Fees - Capital exp Std VAT,2042979,202304
Rother District Council,21/05/2023,T3ZCAPITAL,Housing ,70751,Capital - Temporary Accommodation,N1005,Other fees,90.00,Digital Sussex Ltd,Other Fees - Capital exp Std VAT,2042980,202304
Rother District Council,21/05/2023,T3ZCAPITAL,Housing ,70751,Capital - Temporary Accommodation,N1005,Other fees,90.00,Digital Sussex Ltd,Other Fees - Capital exp Std VAT,2042981,202304
Rother District Council,26/07/2023,T3ZCAPITAL,Housing ,70751,Capital - Temporary Accommodation,N1005,Other fees,90.00,Digital Sussex Ltd,Other Fees - Capital exp Std VAT,2043119,202304
Rother District Council,30/06/2023,T3ZCAPITAL,Neighbourhood Services,70781,Capital - Camber Sands Welcome Centre,N1004,Architects & Consultant Fees,"10,381.25",DK-CM Limited,Architects & Consultant Fees Capital-Architect and Conslt Fees,2043104,202304
Rother District Council,09/08/2023,T3ZCAPITAL,Neighbourhood Services,70781,Capital - Camber Sands Welcome Centre,N1004,Architects & Consultant Fees,"10,381.25",DK-CM Limited,Architects & Consultant Fees Capital-Architect and Conslt Fees,2043904,202305
Rother District Council,31/05/2023,T31HUMANRES,Human Resources,20171,Human Resources,D2513,Hired and Contracted services,726.00,DMH Stallard,Hired and contracted services - Legal Advice,2043154,202305
Rother District Council,30/08/2023,T31HUMANRES,Human Resources,20171,Human Resources,D2513,Hired and Contracted services,326.70,DMH Stallard,Hired and contracted services - Legal Advice,2044420,202306
Rother District Council,01/08/2023,T33HOUSING,Housing,20205,Housing Loans Account,D2514,Accommodation Costs,675.00,Domaines Investments Ltd,Accommodation Costs - Homelessness services Deposit for Landlords,2043204,202305
Rother District Council,01/08/2023,T33HOUSING,Housing,20202,Rother Tenant Finder (prev Rother Letting Service),D2514,Accommodation Costs,500.00,Domaines Investments Ltd,Accommodation Costs - Homelessness services Housing Landlord Scheme-Rent payment,2043204,202305
Rother District Council,01/08/2023,T33HOUSING,Housing,20205,Housing Loans Account,D2514,Accommodation Costs,519.66,Domaines Investments Ltd,Accommodation Costs - Homelessness services Rent in Advance for Homeless,2043204,202305
Rother District Council,13/09/2023,T3ZCAPITAL,Corporate Policy & Projects,70754,Capital - King Offa Residential Development Scheme,N1003,Construction/Conversion,"62,405.00",Dorton Demolition & Excavation Limited,Construction/Conversion Capital-Contract Payments - General,2044588,202306
Rother District Council,08/11/2022,T31CHFFIN,Chief Finance Officer (S151),20222,Accountancy,D2626,Postages,169.08,DSI Billing Services Ltd,Postages - DSI Billing,2042679,202304
Rother District Council,07/12/2022,T31CHFFIN,Chief Finance Officer (S151),20222,Accountancy,D2626,Postages,119.16,DSI Billing Services Ltd,Postages - DSI Billing,2042687,202304
Rother District Council,09/01/2023,T31CHFFIN,Chief Finance Officer (S151),20222,Accountancy,D2626,Postages,79.72,DSI Billing Services Ltd,Postages - DSI Billing,2042688,202304
Rother District Council,08/02/2023,T31CHFFIN,Chief Finance Officer (S151),20222,Accountancy,D2626,Postages,130.28,DSI Billing Services Ltd,Postages - DSI Billing,2042689,202304
Rother District Council,06/03/2023,T31CHFFIN,Chief Finance Officer (S151),20222,Accountancy,D2626,Postages,91.91,DSI Billing Services Ltd,Postages - DSI Billing,2042690,202304
Rother District Council,12/05/2023,T31CHFFIN,Chief Finance Officer (S151),20222,Accountancy,D2626,Postages,79.83,DSI Billing Services Ltd,Postages - DSI Billing,2042693,202304
Rother District Council,06/07/2023,T31CHFFIN,Chief Finance Officer (S151),20222,Accountancy,D2626,Postages,124.82,DSI Billing Services Ltd,Postages - DSI Billing,2043161,202305
Rother District Council,09/06/2023,T31CHFFIN,Chief Finance Officer (S151),20222,Accountancy,D2626,Postages,111.56,DSI Billing Services Ltd,Postages - DSI Billing,2044287,202306
Rother District Council,25/05/2023,T31CHFFIN,Chief Finance Officer (S151),20222,Accountancy,D2626,Postages,154.65,DSI Billing Services Ltd,Postages - DSI Billing,2044289,202306
Rother District Council,27/03/2023,T31CHFFIN,Chief Finance Officer (S151),20222,Accountancy,D2626,Postages,206.26,DSI Billing Services Ltd,Postages - DSI Billing,2044296,202306
Rother District Council,24/08/2023,T31CHFFIN,Chief Finance Officer (S151),20222,Accountancy,D2626,Postages,109.98,DSI Billing Services Ltd,Postages - DSI Billing,2044299,202306
Rother District Council,08/11/2022,T32DIGCUSSER,Digital & Customer Services,20236,Customer Services and Development,D2626,Postages,22.75,DSI Billing Services Ltd,Postages - DSI Billing,2042679,202304
Rother District Council,07/12/2022,T32DIGCUSSER,Digital & Customer Services,20236,Customer Services and Development,D2626,Postages,19.41,DSI Billing Services Ltd,Postages - DSI Billing,2042687,202304
Rother District Council,09/01/2023,T32DIGCUSSER,Digital & Customer Services,20236,Customer Services and Development,D2626,Postages,26.19,DSI Billing Services Ltd,Postages - DSI Billing,2042688,202304
Rother District Council,08/02/2023,T32DIGCUSSER,Digital & Customer Services,20236,Customer Services and Development,D2626,Postages,19.15,DSI Billing Services Ltd,Postages - DSI Billing,2042689,202304
Rother District Council,06/03/2023,T32DIGCUSSER,Digital & Customer Services,20236,Customer Services and Development,D2626,Postages,43.81,DSI Billing Services Ltd,Postages - DSI Billing,2042690,202304
Rother District Council,12/05/2023,T32DIGCUSSER,Digital & Customer Services,20236,Customer Services and Development,D2626,Postages,23.50,DSI Billing Services Ltd,Postages - DSI Billing,2042693,202304
Rother District Council,06/07/2023,T32DIGCUSSER,Digital & Customer Services,20236,Customer Services and Development,D2626,Postages,8.05,DSI Billing Services Ltd,Postages - DSI Billing,2043161,202305
Rother District Council,09/06/2023,T32DIGCUSSER,Digital & Customer Services,20236,Customer Services and Development,D2626,Postages,22.99,DSI Billing Services Ltd,Postages - DSI Billing,2044287,202306
Rother District Council,25/05/2023,T32DIGCUSSER,Digital & Customer Services,20236,Customer Services and Development,D2626,Postages,32.26,DSI Billing Services Ltd,Postages - DSI Billing,2044289,202306
Rother District Council,27/03/2023,T32DIGCUSSER,Digital & Customer Services,20236,Customer Services and Development,D2626,Postages,15.23,DSI Billing Services Ltd,Postages - DSI Billing,2044296,202306
Rother District Council,24/08/2023,T32DIGCUSSER,Digital & Customer Services,20236,Customer Services and Development,D2626,Postages,16.37,DSI Billing Services Ltd,Postages - DSI Billing,2044299,202306
Rother District Council,08/11/2022,T32ENVSERV,"Environmental Services, Licencing & Community Safety",32144,EH Environmental Services Admin R + W Partnership,D2626,Postages,405.30,DSI Billing Services Ltd,Postages - DSI Billing,2042679,202304
Rother District Council,08/11/2022,T32ENVSERV,"Environmental Services, Licencing & Community Safety",32142,EH Taxi and Private Hire Licences R + W Partnership,D2626,Postages,8.82,DSI Billing Services Ltd,Postages - DSI Billing,2042679,202304
Rother District Council,07/12/2022,T32ENVSERV,"Environmental Services, Licencing & Community Safety",32144,EH Environmental Services Admin R + W Partnership,D2626,Postages,36.27,DSI Billing Services Ltd,Postages - DSI Billing,2042687,202304
Rother District Council,07/12/2022,T32ENVSERV,"Environmental Services, Licencing & Community Safety",32142,EH Taxi and Private Hire Licences R + W Partnership,D2626,Postages,24.75,DSI Billing Services Ltd,Postages - DSI Billing,2042687,202304
Rother District Council,09/01/2023,T32ENVSERV,"Environmental Services, Licencing & Community Safety",32144,EH Environmental Services Admin R + W Partnership,D2626,Postages,21.54,DSI Billing Services Ltd,Postages - DSI Billing,2042688,202304
Rother District Council,09/01/2023,T32ENVSERV,"Environmental Services, Licencing & Community Safety",32142,EH Taxi and Private Hire Licences R + W Partnership,D2626,Postages,24.99,DSI Billing Services Ltd,Postages - DSI Billing,2042688,202304
Rother District Council,08/02/2023,T32ENVSERV,"Environmental Services, Licencing & Community Safety",32144,EH Environmental Services Admin R + W Partnership,D2626,Postages,56.99,DSI Billing Services Ltd,Postages - DSI Billing,2042689,202304
Rother District Council,08/02/2023,T32ENVSERV,"Environmental Services, Licencing & Community Safety",32142,EH Taxi and Private Hire Licences R + W Partnership,D2626,Postages,12.88,DSI Billing Services Ltd,Postages - DSI Billing,2042689,202304
Rother District Council,06/03/2023,T32ENVSERV,"Environmental Services, Licencing & Community Safety",32144,EH Environmental Services Admin R + W Partnership,D2626,Postages,25.28,DSI Billing Services Ltd,Postages - DSI Billing,2042690,202304
Rother District Council,06/03/2023,T32ENVSERV,"Environmental Services, Licencing & Community Safety",32142,EH Taxi and Private Hire Licences R + W Partnership,D2626,Postages,1.19,DSI Billing Services Ltd,Postages - DSI Billing,2042690,202304
Rother District Council,12/05/2023,T32ENVSERV,"Environmental Services, Licencing & Community Safety",32144,EH Environmental Services Admin R + W Partnership,D2626,Postages,46.73,DSI Billing Services Ltd,Postages - DSI Billing,2042693,202304
Rother District Council,12/05/2023,T32ENVSERV,"Environmental Services, Licencing & Community Safety",32142,EH Taxi and Private Hire Licences R + W Partnership,D2626,Postages,1.16,DSI Billing Services Ltd,Postages - DSI Billing,2042693,202304
Rother District Council,06/07/2023,T32ENVSERV,"Environmental Services, Licencing & Community Safety",32144,EH Environmental Services Admin R + W Partnership,D2626,Postages,96.32,DSI Billing Services Ltd,Postages - DSI Billing,2043161,202305
Rother District Council,06/07/2023,T32ENVSERV,"Environmental Services, Licencing & Community Safety",32142,EH Taxi and Private Hire Licences R + W Partnership,D2626,Postages,0.98,DSI Billing Services Ltd,Postages - DSI Billing,2043161,202305
Rother District Council,09/06/2023,T32ENVSERV,"Environmental Services, Licencing & Community Safety",32144,EH Environmental Services Admin R + W Partnership,D2626,Postages,42.44,DSI Billing Services Ltd,Postages - DSI Billing,2044287,202306
Rother District Council,09/06/2023,T32ENVSERV,"Environmental Services, Licencing & Community Safety",32142,EH Taxi and Private Hire Licences R + W Partnership,D2626,Postages,1.13,DSI Billing Services Ltd,Postages - DSI Billing,2044287,202306
Rother District Council,25/05/2023,T32ENVSERV,"Environmental Services, Licencing & Community Safety",32144,EH Environmental Services Admin R + W Partnership,D2626,Postages,44.66,DSI Billing Services Ltd,Postages - DSI Billing,2044289,202306
Rother District Council,25/05/2023,T32ENVSERV,"Environmental Services, Licencing & Community Safety",32142,EH Taxi and Private Hire Licences R + W Partnership,D2626,Postages,1.98,DSI Billing Services Ltd,Postages - DSI Billing,2044289,202306
Rother District Council,27/03/2023,T32ENVSERV,"Environmental Services, Licencing & Community Safety",32144,EH Environmental Services Admin R + W Partnership,D2626,Postages,42.38,DSI Billing Services Ltd,Postages - DSI Billing,2044296,202306
Rother District Council,27/03/2023,T32ENVSERV,"Environmental Services, Licencing & Community Safety",32142,EH Taxi and Private Hire Licences R + W Partnership,D2626,Postages,0.64,DSI Billing Services Ltd,Postages - DSI Billing,2044296,202306
Rother District Council,24/08/2023,T32ENVSERV,"Environmental Services, Licencing & Community Safety",32144,EH Environmental Services Admin R + W Partnership,D2626,Postages,52.13,DSI Billing Services Ltd,Postages - DSI Billing,2044299,202306
Rother District Council,06/07/2023,T32REVBEN,Revenues & Benefits,20216,Cost Of Collection,D2513,Hired and Contracted services,"1,321.01",DSI Billing Services Ltd,Hired and contracted services - DSI Billing Printing,2043159,202305
Rother District Council,24/08/2023,T32REVBEN,Revenues & Benefits,20216,Cost Of Collection,D2513,Hired and Contracted services,"1,122.56",DSI Billing Services Ltd,Hired and contracted services - DSI Billing Printing,2044175,202306
Rother District Council,04/07/2023,T32REVBEN,Revenues & Benefits,20216,Cost Of Collection,D2626,Postages,"1,192.77",DSI Billing Services Ltd,Postages - DSI Billing,2042620,202304
Rother District Council,05/07/2023,T32REVBEN,Revenues & Benefits,20216,Cost Of Collection,D2626,Postages,748.03,DSI Billing Services Ltd,Postages - DSI Billing,2042648,202304
Rother District Council,08/11/2022,T32REVBEN,Revenues & Benefits,20216,Cost Of Collection,D2626,Postages,"1,915.31",DSI Billing Services Ltd,Postages - DSI Billing,2042679,202304
Rother District Council,07/12/2022,T32REVBEN,Revenues & Benefits,20216,Cost Of Collection,D2626,Postages,"1,472.90",DSI Billing Services Ltd,Postages - DSI Billing,2042687,202304
Rother District Council,09/01/2023,T32REVBEN,Revenues & Benefits,20216,Cost Of Collection,D2626,Postages,"1,000.30",DSI Billing Services Ltd,Postages - DSI Billing,2042688,202304
Rother District Council,08/02/2023,T32REVBEN,Revenues & Benefits,20216,Cost Of Collection,D2626,Postages,"2,247.43",DSI Billing Services Ltd,Postages - DSI Billing,2042689,202304
Rother District Council,06/03/2023,T32REVBEN,Revenues & Benefits,20216,Cost Of Collection,D2626,Postages,"1,425.93",DSI Billing Services Ltd,Postages - DSI Billing,2042690,202304
Rother District Council,12/05/2023,T32REVBEN,Revenues & Benefits,20216,Cost Of Collection,D2626,Postages,"2,167.68",DSI Billing Services Ltd,Postages - DSI Billing,2042693,202304
Rother District Council,06/07/2023,T32REVBEN,Revenues & Benefits,20216,Cost Of Collection,D2626,Postages,"3,280.50",DSI Billing Services Ltd,Postages - DSI Billing,2043161,202305
Rother District Council,14/07/2023,T32REVBEN,Revenues & Benefits,20216,Cost Of Collection,D2626,Postages,"1,220.64",DSI Billing Services Ltd,Postages - DSI Billing,2043163,202305
Rother District Council,18/07/2023,T32REVBEN,Revenues & Benefits,20216,Cost Of Collection,D2626,Postages,634.04,DSI Billing Services Ltd,Postages - DSI Billing,2043165,202305
Rother District Council,25/07/2023,T32REVBEN,Revenues & Benefits,20216,Cost Of Collection,D2626,Postages,744.71,DSI Billing Services Ltd,Postages - DSI Billing,2043167,202305
Rother District Council,01/08/2023,T32REVBEN,Revenues & Benefits,20216,Cost Of Collection,D2626,Postages,725.16,DSI Billing Services Ltd,Postages - DSI Billing,2043391,202305
Rother District Council,10/08/2023,T32REVBEN,Revenues & Benefits,20216,Cost Of Collection,D2626,Postages,939.88,DSI Billing Services Ltd,Postages - DSI Billing,2043898,202305
Rother District Council,16/08/2023,T32REVBEN,Revenues & Benefits,20216,Cost Of Collection,D2626,Postages,632.96,DSI Billing Services Ltd,Postages - DSI Billing,2043996,202306
Rother District Council,22/08/2023,T32REVBEN,Revenues & Benefits,20216,Cost Of Collection,D2626,Postages,"1,034.32",DSI Billing Services Ltd,Postages - DSI Billing,2044151,202306
Rother District Council,30/08/2023,T32REVBEN,Revenues & Benefits,20216,Cost Of Collection,D2626,Postages,697.86,DSI Billing Services Ltd,Postages - DSI Billing,2044223,202306
Rother District Council,09/06/2023,T32REVBEN,Revenues & Benefits,20216,Cost Of Collection,D2626,Postages,"1,810.29",DSI Billing Services Ltd,Postages - DSI Billing,2044287,202306
Rother District Council,25/05/2023,T32REVBEN,Revenues & Benefits,20216,Cost Of Collection,D2626,Postages,"1,507.39",DSI Billing Services Ltd,Postages - DSI Billing,2044289,202306
Rother District Council,27/03/2023,T32REVBEN,Revenues & Benefits,20216,Cost Of Collection,D2626,Postages,"2,339.49",DSI Billing Services Ltd,Postages - DSI Billing,2044296,202306
Rother District Council,24/08/2023,T32REVBEN,Revenues & Benefits,20216,Cost Of Collection,D2626,Postages,"2,093.79",DSI Billing Services Ltd,Postages - DSI Billing,2044299,202306
Rother District Council,07/09/2023,T32REVBEN,Revenues & Benefits,20216,Cost Of Collection,D2626,Postages,727.16,DSI Billing Services Ltd,Postages - DSI Billing,2044440,202306
Rother District Council,08/11/2022,T33HOUSING,Housing,20200,Housing Needs - HB (Housing Benefit),D2626,Postages,73.80,DSI Billing Services Ltd,Postages - DSI Billing,2042679,202304
Rother District Council,07/12/2022,T33HOUSING,Housing,20200,Housing Needs - HB (Housing Benefit),D2626,Postages,75.75,DSI Billing Services Ltd,Postages - DSI Billing,2042687,202304
Rother District Council,09/01/2023,T33HOUSING,Housing,20200,Housing Needs - HB (Housing Benefit),D2626,Postages,79.20,DSI Billing Services Ltd,Postages - DSI Billing,2042688,202304
Rother District Council,08/02/2023,T33HOUSING,Housing,20200,Housing Needs - HB (Housing Benefit),D2626,Postages,104.49,DSI Billing Services Ltd,Postages - DSI Billing,2042689,202304
Rother District Council,06/03/2023,T33HOUSING,Housing,20200,Housing Needs - HB (Housing Benefit),D2626,Postages,96.64,DSI Billing Services Ltd,Postages - DSI Billing,2042690,202304
Rother District Council,12/05/2023,T33HOUSING,Housing,20200,Housing Needs - HB (Housing Benefit),D2626,Postages,105.22,DSI Billing Services Ltd,Postages - DSI Billing,2042693,202304
Rother District Council,06/07/2023,T33HOUSING,Housing,20200,Housing Needs - HB (Housing Benefit),D2626,Postages,147.09,DSI Billing Services Ltd,Postages - DSI Billing,2043161,202305
Rother District Council,09/06/2023,T33HOUSING,Housing,20200,Housing Needs - HB (Housing Benefit),D2626,Postages,94.30,DSI Billing Services Ltd,Postages - DSI Billing,2044287,202306
Rother District Council,25/05/2023,T33HOUSING,Housing,20200,Housing Needs - HB (Housing Benefit),D2626,Postages,110.71,DSI Billing Services Ltd,Postages - DSI Billing,2044289,202306
Rother District Council,27/03/2023,T33HOUSING,Housing,20200,Housing Needs - HB (Housing Benefit),D2626,Postages,55.41,DSI Billing Services Ltd,Postages - DSI Billing,2044296,202306
Rother District Council,24/08/2023,T33HOUSING,Housing,20200,Housing Needs - HB (Housing Benefit),D2626,Postages,180.29,DSI Billing Services Ltd,Postages - DSI Billing,2044299,202306
Rother District Council,07/12/2022,T33HREGEN,Regeneration,20122,Economic Development,D2626,Postages,1.03,DSI Billing Services Ltd,Postages - DSI Billing,2042687,202304
Rother District Council,09/01/2023,T33HREGEN,Regeneration,20122,Economic Development,D2626,Postages,3.03,DSI Billing Services Ltd,Postages - DSI Billing,2042688,202304
Rother District Council,08/02/2023,T33HREGEN,Regeneration,20122,Economic Development,D2626,Postages,2.67,DSI Billing Services Ltd,Postages - DSI Billing,2042689,202304
Rother District Council,06/03/2023,T33HREGEN,Regeneration,20122,Economic Development,D2626,Postages,2.56,DSI Billing Services Ltd,Postages - DSI Billing,2042690,202304
Rother District Council,12/05/2023,T33HREGEN,Regeneration,20122,Economic Development,D2626,Postages,1.32,DSI Billing Services Ltd,Postages - DSI Billing,2042693,202304
Rother District Council,06/07/2023,T33HREGEN,Regeneration,20122,Economic Development,D2626,Postages,0.42,DSI Billing Services Ltd,Postages - DSI Billing,2043161,202305
Rother District Council,09/06/2023,T33HREGEN,Regeneration,20122,Economic Development,D2626,Postages,4.89,DSI Billing Services Ltd,Postages - DSI Billing,2044287,202306
Rother District Council,25/05/2023,T33HREGEN,Regeneration,20122,Economic Development,D2626,Postages,9.95,DSI Billing Services Ltd,Postages - DSI Billing,2044289,202306
Rother District Council,27/03/2023,T33HREGEN,Regeneration,20122,Economic Development,D2626,Postages,3.52,DSI Billing Services Ltd,Postages - DSI Billing,2044296,202306
Rother District Council,24/08/2023,T33HREGEN,Regeneration,20122,Economic Development,D2626,Postages,4.23,DSI Billing Services Ltd,Postages - DSI Billing,2044299,202306
Rother District Council,08/11/2022,T33NBHDSERV,Neighbourhood Services,20120,Neighbourhood Services,D2626,Postages,94.28,DSI Billing Services Ltd,Postages - DSI Billing,2042679,202304
Rother District Council,07/12/2022,T33NBHDSERV,Neighbourhood Services,20120,Neighbourhood Services,D2626,Postages,121.22,DSI Billing Services Ltd,Postages - DSI Billing,2042687,202304
Rother District Council,09/01/2023,T33NBHDSERV,Neighbourhood Services,20120,Neighbourhood Services,D2626,Postages,70.43,DSI Billing Services Ltd,Postages - DSI Billing,2042688,202304
Rother District Council,08/02/2023,T33NBHDSERV,Neighbourhood Services,20120,Neighbourhood Services,D2626,Postages,111.93,DSI Billing Services Ltd,Postages - DSI Billing,2042689,202304
Rother District Council,06/03/2023,T33NBHDSERV,Neighbourhood Services,20120,Neighbourhood Services,D2626,Postages,97.22,DSI Billing Services Ltd,Postages - DSI Billing,2042690,202304
Rother District Council,12/05/2023,T33NBHDSERV,Neighbourhood Services,20120,Neighbourhood Services,D2626,Postages,61.10,DSI Billing Services Ltd,Postages - DSI Billing,2042693,202304
Rother District Council,06/07/2023,T33NBHDSERV,Neighbourhood Services,20120,Neighbourhood Services,D2626,Postages,46.22,DSI Billing Services Ltd,Postages - DSI Billing,2043161,202305
Rother District Council,09/06/2023,T33NBHDSERV,Neighbourhood Services,20120,Neighbourhood Services,D2626,Postages,48.31,DSI Billing Services Ltd,Postages - DSI Billing,2044287,202306
Rother District Council,25/05/2023,T33NBHDSERV,Neighbourhood Services,20120,Neighbourhood Services,D2626,Postages,177.78,DSI Billing Services Ltd,Postages - DSI Billing,2044289,202306
Rother District Council,27/03/2023,T33NBHDSERV,Neighbourhood Services,20120,Neighbourhood Services,D2626,Postages,87.77,DSI Billing Services Ltd,Postages - DSI Billing,2044296,202306
Rother District Council,24/08/2023,T33NBHDSERV,Neighbourhood Services,20120,Neighbourhood Services,D2626,Postages,145.35,DSI Billing Services Ltd,Postages - DSI Billing,2044299,202306
Rother District Council,09/06/2023,T31CHFFIN,Chief Finance Officer (S151),20222,Accountancy,D2513,Hired and Contracted services,540.00,Dun & Bradstreet Ltd,Hired and contracted services - Service fee paid,2043058,202305
Rother District Council,22/08/2023,T33NBHDSERV,Neighbourhood Services,20116,Rural Open Spaces & Amenities,B1100,Repairs to Premises,655.00,DWCF Blacksmith & Farrier,Repairs to Premises - Parks - Playground Repairs,2044211,202306
Rother District Council,31/05/2023,T33HREGEN,Regeneration,20266,Property Investment Strategy,D2513,Hired and Contracted services,"4,155.80",DWF LLP Client Account,Hired and contracted services - Service fee paid,2042900,202304
Rother District Council,31/05/2023,T33HREGEN,Regeneration,20266,Property Investment Strategy,D2513,Hired and Contracted services,"3,734.20",DWF LLP Client Account,Hired and contracted services - Service fee paid,2043153,202305
Rother District Council,31/07/2023,T33HREGEN,Regeneration,20266,Property Investment Strategy,D2513,Hired and Contracted services,"1,623.84",DWF LLP Client Account,Hired and contracted services - Service fee paid,2044037,202305
Rother District Council,24/08/2023,T33HREGEN,Regeneration,20266,Property Investment Strategy,D2513,Hired and Contracted services,"2,781.20",DWF LLP Client Account,Hired and contracted services - Service fee paid,2044237,202306
Rother District Council,30/06/2023,T33HREGEN,Regeneration,20145,Maintenance Services,D1201,Equipment & Materials,18.00,E O Culverwell Ltd,Equipment & Materials - Purchase of Tools,2042883,202305
Rother District Council,30/06/2023,T33HREGEN,Regeneration,20145,Maintenance Services,D1201,Equipment & Materials,96.65,E O Culverwell Ltd,Equipment & Materials - Purchase of Tools,2042884,202305
Rother District Council,30/06/2023,T33HREGEN,Regeneration,20145,Maintenance Services,D1201,Equipment & Materials,159.67,E O Culverwell Ltd,Equipment & Materials - Purchase of Tools,2042885,202305
Rother District Council,30/06/2023,T33HREGEN,Regeneration,20145,Maintenance Services,D1201,Equipment & Materials,70.22,E O Culverwell Ltd,Equipment & Materials - Purchase of Tools,2042886,202305
Rother District Council,30/06/2023,T33HREGEN,Regeneration,20145,Maintenance Services,D1201,Equipment & Materials,77.15,E O Culverwell Ltd,Equipment & Materials - Purchase of Tools,2042887,202305
Rother District Council,31/07/2023,T33HREGEN,Regeneration,20145,Maintenance Services,D1201,Equipment & Materials,155.75,E O Culverwell Ltd,Equipment & Materials - Purchase of Tools,2043843,202305
Rother District Council,30/06/2023,T33HREGEN,Regeneration,20145,Maintenance Services,D1201,Equipment & Materials,97.43,E O Culverwell Ltd,Equipment & Materials - Purchase of Tools,2044039,202306
Rother District Council,31/05/2023,T33NBHDSERV,Neighbourhood Services,20107,Camber Beach & Foreshore,D1201,Equipment & Materials,"1,179.00",E.Y.E. Marine Ltd,Equipment & Materials - Marker Buoys and Signs,2042546,202304
Rother District Council,31/05/2023,T33NBHDSERV,Neighbourhood Services,20108,Bexhill Promenade & Foreshore,D1201,Equipment & Materials,932.80,E.Y.E. Marine Ltd,Equipment & Materials - Marker Buoys and Signs,2042547,202304
Rother District Council,22/08/2023,T33NBHDSERV,Neighbourhood Services,20108,Bexhill Promenade & Foreshore,B1100,Repairs to Premises,858.31,EA Group UK Ltd,Repairs to Premises - Beach maintenance,2044146,202306
Rother District Council,11/07/2023,T31CHFFIN,Chief Finance Officer (S151),20222,Accountancy,D2509,Consultants and Other Services,648.00,East Sussex County Council,Consultants and other services - Consultants Fees,2042767,202304
Rother District Council,22/05/2023,T31HUMANRES,Human Resources,20171,Human Resources,D2513,Hired and Contracted services,9.00,East Sussex County Council,Hired and contracted services - Service fee paid,2042888,202304
Rother District Council,22/05/2023,T31HUMANRES,Human Resources,20171,Human Resources,D2513,Hired and Contracted services,18.00,East Sussex County Council,Hired and contracted services - Service fee paid,2042888,202304
Rother District Council,20/07/2023,T32DEPUTYCHF,Deputy Chief Executive,20179,Communications,E1101,Third party payment other LAs,"3,600.00",East Sussex County Council,Third party payment other LAs - Communications-Officer costs,2043307,202305
Rother District Council,17/08/2023,T32DEPUTYCHF,Deputy Chief Executive,20179,Communications,E1101,Third party payment other LAs,"3,600.00",East Sussex County Council,Third party payment other LAs - Communications-Officer costs,2044200,202306
Rother District Council,24/08/2023,T32ENVSERV,"Environmental Services, Licencing & Community Safety",20130,Crime and Disorder Initiatives,D2513,Hired and Contracted services,"2,313.20",East Sussex County Council,Hired and contracted services - Safer Rother Partnership,2044033,202306
Rother District Council,10/07/2023,T33HOUSING,Housing ,20309,Homelessness Prevention Grant,D2513,Hired and Contracted services,"7,000.00",East Sussex County Council,Hired and contracted services - Service fee paid,2042766,202304
Rother District Council,01/08/2023,T33HOUSING,Housing,20204,Housing Administration Account,D2513,Hired and Contracted services,60.00,East Sussex County Council,Hired and contracted services - Service fee paid,2043682,202305
Rother District Council,01/08/2023,T33HOUSING,Housing,20204,Housing Administration Account,D2513,Hired and Contracted services,228.00,East Sussex County Council,Hired and contracted services - Service fee paid,2043682,202305
Rother District Council,10/08/2023,T33NBHDSERV,Neighbourhood Services,20107,Camber Beach & Foreshore,D2518,Advertising,250.00,East Sussex County Council,Advertising - ADVERT WEBSITE,2044017,202305
Rother District Council,21/07/2023,T33NBHDSERV,Neighbourhood Services,20108,Bexhill Promenade & Foreshore,A2203,Training,675.00,East Sussex County Council,Training,2042966,202304
Rother District Council,13/07/2023,T33PLANDEV,Planning Development Management,20246,Planning Applications,E1101,Third party payment other LAs,"12,694.50",East Sussex County Council,Third party payment other LAs - East Sussex Hub,2043761,202305
Rother District Council,13/07/2023,T33PLANDEV,Planning Development Management,20259,Land Charges,E1101,Third party payment other LAs,"6,899.20",East Sussex County Council,Third party payment other LAs - Fee Payments to ESCC,2043306,202305
Rother District Council,18/08/2023,T33PLANDEV,Planning Development Management,20259,Land Charges,E1101,Third party payment other LAs,"4,047.00",East Sussex County Council,Third party payment other LAs - Fee Payments to ESCC,2043994,202305
Rother District Council,23/08/2023,T3ZCAPITAL,Housing ,70706,Capital - Disabled Facilities Grant,N1012,Capital Advances,"26,674.44",East Sussex County Council,Capital Advances Disabled Facilities Grant,2044000,202305
Rother District Council,21/08/2023,T33HOUSING,Housing,20202,Rother Tenant Finder (prev Rother Letting Service),D2514,Accommodation Costs,395.00,East Sussex Fire & Electrical Ltd,Accommodation Costs - Homelessness services Housing Landlord Scheme-Rent payment,2044215,202306
Rother District Council,10/07/2023,T33HOUSING,Housing,20304,Housing First,D2513,Hired and Contracted services,85.00,East Sussex Fire & Electrical Ltd,Hired and contracted services - Service fee paid,2042775,202304
Rother District Council,16/06/2023,T33NBHDSERV,Neighbourhood Services,20102,Rother Museum Services,B1100,Repairs to Premises,"5,125.00",East Sussex Lifts Ltd,Repairs to Premises - Lift Repairs/ Maintenance cost,2042792,202304
Rother District Council,03/07/2023,T31CHFFIN,Chief Finance Officer (S151),20214,Unapportion Central Overheads,D2513,Hired and Contracted services,"24,654.34",East Sussex Pension Fund,Hired and contracted services - Salary-Pension Fund ERS Unfunded,2042629,202304
Rother District Council,19/07/2023,T31CHFFIN,Chief Finance Officer (S151),20214,Unapportion Central Overheads,D2513,Hired and Contracted services,"24,704.34",East Sussex Pension Fund,Hired and contracted services - Salary-Pension Fund ERS Unfunded,2042911,202304
Rother District Council,16/08/2023,T31CHFFIN,Chief Finance Officer (S151),20214,Unapportion Central Overheads,D2513,Hired and Contracted services,"24,509.96",East Sussex Pension Fund,Hired and contracted services - Salary-Pension Fund ERS Unfunded,2043954,202305
Rother District Council,21/09/2023,T31CHFFIN,Chief Finance Officer (S151),20214,Unapportion Central Overheads,D2513,Hired and Contracted services,"32,194.04",East Sussex Pension Fund,Hired and contracted services - Salary-Pension Fund ERS Unfunded,2044610,202306
Rother District Council,30/06/2023,T3ZCAPITAL,Neighbourhood Services,70775,Capital - LUF Parks Sidley House Open Space Improvements,N1008,Equipment,"2,985.00",Easy-Gate Ltd,Capital - Purchase of Equipment,2043298,202305
Rother District Council,11/09/2023,T33NBHDSERV,Neighbourhood Services,20123,Cemeteries,B1100,Repairs to Premises,"2,144.50",eB Sculpture Ltd,Repairs to Premises -  Building Surveys and Inspection,2044585,202306
Rother District Council,01/09/2023,T33NBHDSERV,Neighbourhood Services,20123,Cemeteries,B1100,Repairs to Premises,"1,167.50",eB Sculpture Ltd,Repairs to Premises -  Building Surveys and Inspection,2044586,202306
Rother District Council,04/09/2023,T31HUMANRES,Human Resources,20176,Administrative Offices - Print Room,B1101,Repairs funded from reserves,36.83,Ecotricity Ltd,Electricity - Electricity Charges,2044487,202306
Rother District Council,04/11/2022,T31HUMANRES,Human Resources,20176,Administrative Offices - Print Room,B2201,Electricity,"1,008.38",Ecotricity Ltd,Electricity - Electricity Charges,2040645,202305
Rother District Council,05/06/2023,T31HUMANRES,Human Resources,20176,Administrative Offices - Print Room,B2201,Electricity,"1,442.64",Ecotricity Ltd,Electricity - Electricity Charges,2043650,202305
Rother District Council,05/06/2023,T31HUMANRES,Human Resources,20176,Administrative Offices - Print Room,B2201,Electricity,39.42,Ecotricity Ltd,Electricity - Electricity Charges,2043651,202305
Rother District Council,04/07/2023,T31HUMANRES,Human Resources,20176,Administrative Offices - Print Room,B2201,Electricity,37.92,Ecotricity Ltd,Electricity - Electricity Charges,2043669,202305
Rother District Council,04/07/2023,T31HUMANRES,Human Resources,20173,Administrative Offices - Town Hall,B2201,Electricity,"3,024.41",Ecotricity Ltd,Electricity - Electricity Charges,2044059,202306
Rother District Council,04/09/2023,T31HUMANRES,Human Resources,20173,Administrative Offices - Town Hall,B2201,Electricity,"2,198.66",Ecotricity Ltd,Electricity - Electricity Charges,2044472,202306
Rother District Council,08/01/2023,T32ENVSERV,"Environmental Services, Licencing & Community Safety",20129,Community Safety - CCTV costs only,B2201,Electricity,"1,404.16",Ecotricity Ltd,Electricity - Electricity Charges,2043552,202305
Rother District Council,07/02/2023,T32ENVSERV,"Environmental Services, Licencing & Community Safety",20129,Community Safety - CCTV costs only,B2201,Electricity,"1,395.19",Ecotricity Ltd,Electricity - Electricity Charges,2043556,202305
Rother District Council,13/03/2023,T32ENVSERV,"Environmental Services, Licencing & Community Safety",20129,Community Safety - CCTV costs only,B2201,Electricity,"1,257.99",Ecotricity Ltd,Electricity - Electricity Charges,2043558,202305
Rother District Council,08/03/2023,T32ENVSERV,"Environmental Services, Licencing & Community Safety",20129,Community Safety - CCTV costs only,B2201,Electricity,155.27,Ecotricity Ltd,Electricity - Electricity Charges,2043563,202305
Rother District Council,11/04/2023,T32ENVSERV,"Environmental Services, Licencing & Community Safety",20129,Community Safety - CCTV costs only,B2201,Electricity,"1,376.60",Ecotricity Ltd,Electricity - Electricity Charges,2043591,202305
Rother District Council,11/04/2023,T32ENVSERV,"Environmental Services, Licencing & Community Safety",20129,Community Safety - CCTV costs only,B2201,Electricity,169.69,Ecotricity Ltd,Electricity - Electricity Charges,2043592,202305
Rother District Council,04/05/2023,T32ENVSERV,"Environmental Services, Licencing & Community Safety",20129,Community Safety - CCTV costs only,B2201,Electricity,962.44,Ecotricity Ltd,Electricity - Electricity Charges,2043593,202305
Rother District Council,04/05/2023,T32ENVSERV,"Environmental Services, Licencing & Community Safety",20129,Community Safety - CCTV costs only,B2201,Electricity,118.02,Ecotricity Ltd,Electricity - Electricity Charges,2043596,202305
Rother District Council,04/06/2023,T32ENVSERV,"Environmental Services, Licencing & Community Safety",20129,Community Safety - CCTV costs only,B2201,Electricity,954.91,Ecotricity Ltd,Electricity - Electricity Charges,2043629,202305
Rother District Council,04/06/2023,T32ENVSERV,"Environmental Services, Licencing & Community Safety",20129,Community Safety - CCTV costs only,B2201,Electricity,111.73,Ecotricity Ltd,Electricity - Electricity Charges,2043632,202305
Rother District Council,04/07/2023,T32ENVSERV,"Environmental Services, Licencing & Community Safety",20129,Community Safety - CCTV costs only,B2201,Electricity,958.56,Ecotricity Ltd,Electricity - Electricity Charges,2043655,202305
Rother District Council,04/07/2023,T32ENVSERV,"Environmental Services, Licencing & Community Safety",20129,Community Safety - CCTV costs only,B2201,Electricity,101.57,Ecotricity Ltd,Electricity - Electricity Charges,2043658,202305
Rother District Council,04/09/2023,T32ENVSERV,"Environmental Services, Licencing & Community Safety",20129,Community Safety - CCTV costs only,B2201,Electricity,694.50,Ecotricity Ltd,Electricity - Electricity Charges,2044470,202306
Rother District Council,04/09/2023,T32ENVSERV,"Environmental Services, Licencing & Community Safety",20129,Community Safety - CCTV costs only,B2201,Electricity,79.92,Ecotricity Ltd,Electricity - Electricity Charges,2044473,202306
Rother District Council,28/06/2023,T33HOUSING,Housing,20261,"TA Purchases (prev - 41 Jameson Mews, Bexhill on Sea)",B2201,Electricity,20.72,Ecotricity Ltd,Electricity - Electricity Charges,2043518,202305
Rother District Council,08/01/2023,T33HOUSING,Housing,20261,"TA Purchases (prev - 41 Jameson Mews, Bexhill on Sea)",B2201,Electricity,64.61,Ecotricity Ltd,Electricity - Electricity Charges,2043550,202305
Rother District Council,13/03/2023,T33HOUSING,Housing,20261,"TA Purchases (prev - 41 Jameson Mews, Bexhill on Sea)",B2201,Electricity,61.34,Ecotricity Ltd,Electricity - Electricity Charges,2043560,202305
Rother District Council,04/04/2023,T33HOUSING,Housing,20261,"TA Purchases (prev - 41 Jameson Mews, Bexhill on Sea)",B2201,Electricity,288.10,Ecotricity Ltd,Electricity - Electricity Charges,2043585,202305
Rother District Council,11/04/2023,T33HOUSING,Housing,20261,"TA Purchases (prev - 41 Jameson Mews, Bexhill on Sea)",B2201,Electricity,69.88,Ecotricity Ltd,Electricity - Electricity Charges,2043586,202305
Rother District Council,04/05/2023,T33HOUSING,Housing,20261,"TA Purchases (prev - 41 Jameson Mews, Bexhill on Sea)",B2201,Electricity,70.28,Ecotricity Ltd,Electricity - Electricity Charges,2043625,202305
Rother District Council,04/05/2023,T33HOUSING,Housing,20261,"TA Purchases (prev - 41 Jameson Mews, Bexhill on Sea)",B2201,Electricity,66.35,Ecotricity Ltd,Electricity - Electricity Charges,2043626,202305
Rother District Council,04/05/2023,T33HOUSING,Housing,20261,"TA Purchases (prev - 41 Jameson Mews, Bexhill on Sea)",B2201,Electricity,229.27,Ecotricity Ltd,Electricity - Electricity Charges,2043627,202305
Rother District Council,04/06/2023,T33HOUSING,Housing,20261,"TA Purchases (prev - 41 Jameson Mews, Bexhill on Sea)",B2201,Electricity,69.79,Ecotricity Ltd,Electricity - Electricity Charges,2043648,202305
Rother District Council,04/06/2023,T33HOUSING,Housing,20261,"TA Purchases (prev - 41 Jameson Mews, Bexhill on Sea)",B2201,Electricity,56.82,Ecotricity Ltd,Electricity - Electricity Charges,2043649,202305
Rother District Council,04/07/2023,T33HOUSING,Housing,20261,"TA Purchases (prev - 41 Jameson Mews, Bexhill on Sea)",B2201,Electricity,66.45,Ecotricity Ltd,Electricity - Electricity Charges,2043673,202305
Rother District Council,04/07/2023,T33HOUSING,Housing,20261,"TA Purchases (prev - 41 Jameson Mews, Bexhill on Sea)",B2201,Electricity,50.51,Ecotricity Ltd,Electricity - Electricity Charges,2043674,202305
Rother District Council,25/08/2023,T33HOUSING,Housing,20261,"TA Purchases (prev - 41 Jameson Mews, Bexhill on Sea)",B2201,Electricity,54.84,Ecotricity Ltd,Electricity - Electricity Charges,2044466,202306
Rother District Council,04/09/2023,T33HOUSING,Housing,20261,"TA Purchases (prev - 41 Jameson Mews, Bexhill on Sea)",B2201,Electricity,73.59,Ecotricity Ltd,Electricity - Electricity Charges,2044492,202306
Rother District Council,04/05/2023,T33HREGEN,Regeneration,20154,Committee Property Account,B2201,Electricity,55.20,Ecotricity Ltd,Electricity,2043610,202305
Rother District Council,04/05/2023,T33HREGEN,Regeneration,20154,Committee Property Account,B2201,Electricity,55.92,Ecotricity Ltd,Electricity,2043610,202305
Rother District Council,04/05/2023,T33HREGEN,Regeneration,20154,Committee Property Account,B2201,Electricity,55.92,Ecotricity Ltd,Electricity,2043610,202305
Rother District Council,04/05/2023,T33HREGEN,Regeneration,20154,Committee Property Account,B2201,Electricity,55.92,Ecotricity Ltd,Electricity,2043610,202305
Rother District Council,04/05/2023,T33HREGEN,Regeneration,20154,Committee Property Account,B2201,Electricity,"2,516.99",Ecotricity Ltd,Electricity,2043610,202305
Rother District Council,04/09/2023,T33HREGEN,Regeneration,20155,Investment properties,B1101,Repairs funded from reserves,39.42,Ecotricity Ltd,Electricity - Electricity Charges,2044481,202306
Rother District Council,04/11/2022,T33HREGEN,Regeneration,20154,Committee Property Account,B2201,Electricity,98.00,Ecotricity Ltd,Electricity - Electricity Charges,2043545,202305
Rother District Council,04/11/2022,T33HREGEN,Regeneration,20154,Committee Property Account,B2201,Electricity,98.00,Ecotricity Ltd,Electricity - Electricity Charges,2043545,202305
Rother District Council,04/11/2022,T33HREGEN,Regeneration,20154,Committee Property Account,B2201,Electricity,98.00,Ecotricity Ltd,Electricity - Electricity Charges,2043545,202305
Rother District Council,04/11/2022,T33HREGEN,Regeneration,20154,Committee Property Account,B2201,Electricity,98.00,Ecotricity Ltd,Electricity - Electricity Charges,2043545,202305
Rother District Council,04/01/2023,T33HREGEN,Regeneration,20154,Committee Property Account,B2201,Electricity,75.06,Ecotricity Ltd,Electricity - Electricity Charges,2043548,202305
Rother District Council,04/01/2023,T33HREGEN,Regeneration,20154,Committee Property Account,B2201,Electricity,75.06,Ecotricity Ltd,Electricity - Electricity Charges,2043548,202305
Rother District Council,04/01/2023,T33HREGEN,Regeneration,20154,Committee Property Account,B2201,Electricity,75.06,Ecotricity Ltd,Electricity - Electricity Charges,2043548,202305
Rother District Council,08/01/2023,T33HREGEN,Regeneration,20154,Committee Property Account,B2201,Electricity,30.56,Ecotricity Ltd,Electricity - Electricity Charges,2043553,202305
Rother District Council,08/01/2023,T33HREGEN,Regeneration,20154,Committee Property Account,B2201,Electricity,61.12,Ecotricity Ltd,Electricity - Electricity Charges,2043553,202305
Rother District Council,08/01/2023,T33HREGEN,Regeneration,20154,Committee Property Account,B2201,Electricity,61.12,Ecotricity Ltd,Electricity - Electricity Charges,2043553,202305
Rother District Council,08/01/2023,T33HREGEN,Regeneration,20154,Committee Property Account,B2201,Electricity,61.12,Ecotricity Ltd,Electricity - Electricity Charges,2043553,202305
Rother District Council,08/01/2023,T33HREGEN,Regeneration,20154,Committee Property Account,B2201,Electricity,"2,781.07",Ecotricity Ltd,Electricity - Electricity Charges,2043553,202305
